Directorate,Department,Expenditure Type,Ref.Doc.1,Vendor Name,Expenditure Amount (exc VAT),Payment Date
COMMERCIAL,ENVIRONMENT,Other Services,1002011802,Conway Aecom Ltd,"20,393.61",02/07/2020
COMMERCIAL,ENVIRONMENT,Other Services,1002945801,Conway Aecom Ltd,"2,269.00",21/07/2020
COMMERCIAL,ENVIRONMENT,Other Services,1003107801,Conway Aecom Ltd,"14,221.86",30/07/2020
COMMERCIAL,ENVIRONMENT,Other Services,1002884102,RE (REGIONAL ENTERPRISE) LIMITED,"24,409.49",31/07/2020
COMMERCIAL,ENVIRONMENT,Other Services,1002918302,RE (REGIONAL ENTERPRISE) LIMITED,"79,467.60",31/07/2020
COMMERCIAL,ENVIRONMENT,Other Services,1002686002,BEIS CHINUCH PRIMARY SCHOOL,"1,500.00",10/07/2020
COMMERCIAL,ENVIRONMENT,Other Services,1002959902,THE HYDE EF ACADEMY,"1,600.00",23/07/2020
COMMERCIAL,ENVIRONMENT,Other Services,1002931001,Child Seat Safety Ltd,585.00,20/07/2020
COMMERCIAL,ENVIRONMENT,Other Services,1002256002,Street Tree Care Ltd,"30,842.00",06/07/2020
COMMERCIAL,ENVIRONMENT,Other Services,1000953201,ARTS DEPOT,"7,242.00",16/07/2020
COMMERCIAL,ENVIRONMENT,Advertising,1002919401,TMP (UK) LTD,"4,112.00",20/07/2020
COMMERCIAL,ENVIRONMENT,Advertising,1003097501,TMP (UK) LTD,368.00,30/07/2020
COMMERCIAL,ENVIRONMENT,Other Services,1001382203,Conway Aecom Ltd,272.89,06/07/2020
COMMERCIAL,ENVIRONMENT,Professional Services,1002601402,APPLEYARD & TREW LLP,"4,147.33",06/07/2020
COMMERCIAL,ENVIRONMENT,Professional Services,1002606601,APPLEYARD & TREW LLP,"4,147.33",06/07/2020
COMMERCIAL,ENVIRONMENT,Professional Services,1002950301,Emergent Vernacular Architecture Ltd,"8,592.17",21/07/2020
COMMERCIAL,ENVIRONMENT,Other Services,1003102901,Conway Aecom Ltd,"7,461.71",30/07/2020
COMMERCIAL,ENVIRONMENT,Other Services,1002059702,WATES PROPERTY SERVICES LTD,763.11,10/07/2020
COMMERCIAL,HOUSING REVENUE ACCOUNT,Professional Services,1002606801,THE BARNETGROUP LIMITED,"4,524,800.00",06/07/2020
Commercial,HRA,Consultants Fees,1002459602,THE BARNETGROUP LIMITED,"1,218.75",08/07/2020
Commercial,HRA,Consultants Fees,1003126502,THE BARNETGROUP LIMITED,"4,213.02",31/07/2020
Commercial,HRA,Consultants Fees,1002945001,PRIORITY ESTATES PROJECT LTD,"1,778.00",21/07/2020
Commercial,HRA,Consultants Fees,1001059003,THE BARNETGROUP LIMITED,"234,813.07",20/07/2020
Commercial,HRA,Consultants Fees,1002720402,Microfish Communications Ltd,319.98,16/07/2020
Commercial,Regional Enterprise,Legal and Court Fees,0080037148,Planning Advisory Ltd,"2,900.00",28/07/2020
Commercial,Regional Enterprise,Other Services,1000993302,Castle Water Ltd,135.14,09/07/2020
Commercial,Regional Enterprise,Other Services,1000997102,Castle Water Ltd,27.21,09/07/2020
Commercial,Regional Enterprise,Other Services,1003026702,Castle Water Ltd,38.35,28/07/2020
Commercial,Regional Enterprise,Other Services,1003029302,Castle Water Ltd,42.23,28/07/2020
Commercial,Regional Enterprise,Other Services,1003032402,Castle Water Ltd,15.82,28/07/2020
Commercial,Regional Enterprise,Advertising,1001583602,TMP (UK) LTD,108.00,21/07/2020
Commercial,Regional Enterprise,Advertising,1001586202,TMP (UK) LTD,188.00,29/07/2020
Commercial,Regional Enterprise,Advertising,1001589802,TMP (UK) LTD,188.00,29/07/2020
Commercial,Regional Enterprise,Advertising,1002346002,TMP (UK) LTD,90.00,03/07/2020
Commercial,Regional Enterprise,Advertising,1002520901,TMP (UK) LTD,197.00,17/07/2020
Commercial,Regional Enterprise,Advertising,1002737902,TMP (UK) LTD,90.00,16/07/2020
Commercial,Regional Enterprise,Advertising,1002893501,TMP (UK) LTD,117.00,17/07/2020
Commercial,Regional Enterprise,Advertising,1002913702,TMP (UK) LTD,108.00,21/07/2020
Commercial,Regional Enterprise,Advertising,1002914002,TMP (UK) LTD,99.00,21/07/2020
Commercial,Regional Enterprise,Advertising,1002917202,TMP (UK) LTD,108.00,21/07/2020
Commercial,Regional Enterprise,Advertising,1002917401,TMP (UK) LTD,144.00,20/07/2020
Commercial,Regional Enterprise,Advertising,1002918402,TMP (UK) LTD,99.00,21/07/2020
Commercial,Regional Enterprise,Advertising,1002918902,TMP (UK) LTD,242.00,21/07/2020
Commercial,Regional Enterprise,Advertising,1002925202,TMP (UK) LTD,90.00,21/07/2020
Commercial,Regional Enterprise,Advertising,1002925702,TMP (UK) LTD,108.00,21/07/2020
Commercial,Regional Enterprise,Advertising,1002931202,TMP (UK) LTD,108.00,21/07/2020
Commercial,Regional Enterprise,Advertising,1002932102,TMP (UK) LTD,108.00,21/07/2020
Commercial,Regional Enterprise,Advertising,1002945702,TMP (UK) LTD,260.00,21/07/2020
Commercial,Regional Enterprise,Advertising,1002947702,TMP (UK) LTD,278.00,21/07/2020
Commercial,Regional Enterprise,Advertising,1002991001,TMP (UK) LTD,197.00,23/07/2020
Commercial,Regional Enterprise,Advertising,1003004102,TMP (UK) LTD,260.00,28/07/2020
Commercial,Regional Enterprise,Advertising,1003052901,TMP (UK) LTD,90.00,28/07/2020
Commercial,Regional Enterprise,Advertising,1003053101,TMP (UK) LTD,90.00,28/07/2020
Commercial,Regional Enterprise,Advertising,1003054201,TMP (UK) LTD,90.00,28/07/2020
Commercial,Regional Enterprise,Advertising,1003054501,TMP (UK) LTD,260.00,28/07/2020
Commercial,Regional Enterprise,Advertising,1003055601,TMP (UK) LTD,170.00,28/07/2020
Commercial,Regional Enterprise,Advertising,1003057401,TMP (UK) LTD,90.00,28/07/2020
Commercial,Regional Enterprise,Advertising,1003057501,TMP (UK) LTD,170.00,28/07/2020
Commercial,Regional Enterprise,Advertising,1003057601,TMP (UK) LTD,170.00,28/07/2020
Commercial,Regional Enterprise,Advertising,1003057801,TMP (UK) LTD,170.00,28/07/2020
Commercial,Regional Enterprise,Advertising,1003057901,TMP (UK) LTD,90.00,28/07/2020
Commercial,Regional Enterprise,Advertising,1003058201,TMP (UK) LTD,90.00,28/07/2020
Commercial,Regional Enterprise,Advertising,1003058301,TMP (UK) LTD,90.00,28/07/2020
Commercial,Regional Enterprise,Advertising,1003062101,TMP (UK) LTD,117.00,29/07/2020
Commercial,Regional Enterprise,Advertising,1003062601,TMP (UK) LTD,126.00,29/07/2020
Commercial,Regional Enterprise,Advertising,1003063201,TMP (UK) LTD,99.00,29/07/2020
Commercial,Regional Enterprise,Advertising,1003064601,TMP (UK) LTD,90.00,29/07/2020
Commercial,Regional Enterprise,Advertising,1003065301,TMP (UK) LTD,126.00,29/07/2020
Commercial,Regional Enterprise,Advertising,1003065401,TMP (UK) LTD,296.00,29/07/2020
Commercial,Regional Enterprise,Advertising,1003066201,TMP (UK) LTD,99.00,29/07/2020
Commercial,Regional Enterprise,Advertising,1003067601,TMP (UK) LTD,179.00,29/07/2020
Commercial,Regional Enterprise,Advertising,1003068301,TMP (UK) LTD,170.00,29/07/2020
Commercial,Regional Enterprise,Advertising,1001998501,TMP (UK) LTD,342.00,16/07/2020
Commercial,Regional Enterprise,Advertising,1002945301,TMP (UK) LTD,440.00,21/07/2020
Commercial,Regional Enterprise,Advertising,1002946601,TMP (UK) LTD,450.00,21/07/2020
Commercial,Regional Enterprise,Advertising,1002972301,TMP (UK) LTD,"1,061.00",22/07/2020
Commercial,Regional Enterprise,Advertising,1003056301,TMP (UK) LTD,422.00,28/07/2020
Commercial,Regional Enterprise,Advertising,1003056601,TMP (UK) LTD,278.00,28/07/2020
Commercial,Regional Enterprise,Advertising,1003059201,TMP (UK) LTD,557.00,28/07/2020
Commercial,Regional Enterprise,Advertising,1003098101,TMP (UK) LTD,296.00,30/07/2020
Commercial,Regional Enterprise,Other Services,1002001201,Conway Aecom Ltd,"40,000.00",17/07/2020
Commercial,Regional Enterprise,Fees and Charges,0080033297,REDACTED - PERSONAL DATA,140.00,15/07/2020
Commercial,Regional Enterprise,Fees and Charges,0080036118,REDACTED - PERSONAL DATA,105.00,16/07/2020
Commercial,Regional Enterprise,Other Services,1002606502,Conway Aecom Ltd,394.36,13/07/2020
Commercial,Regional Enterprise,Other Services,1002950801,Conway Aecom Ltd,"37,708.92",21/07/2020
Commercial,Regional Enterprise,Grant Payments,0080036695,DPBUILDERS DISABLEDADAPTATIONS,136.00,23/07/2020
Commercial,Regional Enterprise,Other Establishments - Third P,0080036511,Transport For London,"402,162.61",09/07/2020
Commercial,Regional Enterprise,Grant Payments,0080036703,DPBUILDERS DISABLEDADAPTATIONS,454.00,23/07/2020
Commercial,Regional Enterprise,Consultants Fees,1001804002,RE (REGIONAL ENTERPRISE) LIMITED,"13,992.00",30/07/2020
Commercial,Regional Enterprise,Consultants Fees,1001907702,RE (REGIONAL ENTERPRISE) LIMITED,"139,964.00",14/07/2020
Commercial,Regional Enterprise,Consultants Fees,1002872402,RE (REGIONAL ENTERPRISE) LIMITED,"6,151.22",28/07/2020
Commercial,Regional Enterprise,Professional Services,1002882202,RE (REGIONAL ENTERPRISE) LIMITED,212.48,28/07/2020
Commercial,Regional Enterprise,Consultants Fees,1002882902,RE (REGIONAL ENTERPRISE) LIMITED,"6,682.55",31/07/2020
Commercial,Regional Enterprise,Professional Services,1002883602,RE (REGIONAL ENTERPRISE) LIMITED,411.68,31/07/2020
Commercial,Regional Enterprise,Professional Services,1002872602,RE (REGIONAL ENTERPRISE) LIMITED,"1,738.80",31/07/2020
Commercial,Regional Enterprise,Professional Services,1002883702,RE (REGIONAL ENTERPRISE) LIMITED,"1,545.60",28/07/2020
Commercial,Regional Enterprise,Professional Services,1002884202,RE (REGIONAL ENTERPRISE) LIMITED,"2,511.60",28/07/2020
Commercial,Regional Enterprise,Professional Services,1002885002,RE (REGIONAL ENTERPRISE) LIMITED,"2,769.20",31/07/2020
Commercial,Regional Enterprise,Professional Services,1001011303,WATES PROPERTY SERVICES LTD,144.06,21/07/2020
Commercial,Regional Enterprise,Professional Services,1002560701,WATES PROPERTY SERVICES LTD,318.98,02/07/2020
Commercial,Regional Enterprise,Professional Services,1002648701,WATES PROPERTY SERVICES LTD,190.76,08/07/2020
Commercial,Regional Enterprise,Professional Services,1002648801,WATES PROPERTY SERVICES LTD,"1,358.07",08/07/2020
Commercial,Regional Enterprise,Professional Services,1002649101,WATES PROPERTY SERVICES LTD,257.24,08/07/2020
Commercial,Regional Enterprise,Professional Services,1002950401,WATES PROPERTY SERVICES LTD,286.58,21/07/2020
Commercial,Regional Enterprise,Professional Services,1003131501,WATES PROPERTY SERVICES LTD,184.61,31/07/2020
Commercial,Regional Enterprise,RE Services Contract Payment,1002314201,RE (REGIONAL ENTERPRISE) LIMITED,"78,172.00",14/07/2020
Commercial,Regional Enterprise,RE Services Contract Payment,1002521901,RE (REGIONAL ENTERPRISE) LIMITED,"161,467.15",14/07/2020
Commercial,Regional Enterprise,RE Services Contract Payment,1002918002,RE (REGIONAL ENTERPRISE) LIMITED,"131,499.00",21/07/2020
Commercial,Regional Enterprise,CSG Services Contract Payment,1002482901,RE (REGIONAL ENTERPRISE) LIMITED,"1,368.05",14/07/2020
Commercial,Regional Enterprise,CSG Services Contract Payment,1002487601,RE (REGIONAL ENTERPRISE) LIMITED,410.80,14/07/2020
Commercial,Regional Enterprise,Other Services,1002738902,RE (REGIONAL ENTERPRISE) LIMITED,"4,267.41",21/07/2020
Commercial,Regional Enterprise,Other Services,1002886402,RE (REGIONAL ENTERPRISE) LIMITED,"5,345.00",28/07/2020
Corporate Accounting,Corporate Accounting,Other Local Authorities - Thir,0080036821,Department for Communities & Local Gov.,"2,691,961.00",20/07/2020
Corporate Accounting,Corporate Accounting,Other Local Authorities - Thir,0080036675,GLA LEVIES,"1,808,016.00",20/07/2020
Corporate Accounting,Corporate Accounting,Other Local Authorities - Thir,0080036822,GLA LEVIES,"104,578.53",16/07/2020
Corporate Accounting,Corporate Accounting,Miscellaneous Expenses,0080037041,THE BARNETGROUP LIMITED,"12,685.00",24/07/2020
Corporate Accounting,Corporate Accounting,Government departments - Third,0080037223,Department for Communities & Local Gov.,"438,132.50",30/07/2020
Corporate Accounting,Corporate Accounting,Other Transfer Payments to Soc,0080036547,PFS FS - Ongoing Payments eWallet,"1,300.00",08/07/2020
Corporate Accounting,Corporate Accounting,Fees and Charges,0080037043,YAJ Investments Limited,"2,000.00",27/07/2020
Corporate Accounting,Corporate Accounting,Fees and Charges,0080036617,D & N SCAFFOLDING LTD,"1,500.00",16/07/2020
Corporate Accounting,Corporate Accounting,Fees and Charges,0080036222,J   L Scaffolding LTD,"2,346.78",01/07/2020
Corporate Accounting,Corporate Accounting,Fees and Charges,0080036031,Morgan Sindall Construction &,"4,635.82",01/07/2020
Corporate Accounting,Corporate Accounting,Fees and Charges,0080036220,'Moreland Estates Ltd Sycamore,"2,000.00",01/07/2020
Corporate Accounting,Corporate Accounting,Fees and Charges,0080035811,The Scaffolding Company Ltd,"2,300.00",01/07/2020
Corporate Accounting,Corporate Accounting,Fees and Charges,0080036208,Southern Cranes & Access Limited,"5,000.00",01/07/2020
Corporate Accounting,Corporate Accounting,Fees and Charges,0080036211,Ray Jones Roofing Limited,"1,000.00",01/07/2020
DELIVERY UNITS,ADULTS AND COMMUNITIES,Equipment and Materials Purcha,1002872801,John Graham Construction Ltd,"101,096.39",16/07/2020
Delivery Units,Adults and Health,Other Services,1002794002,Alina Homecare Ltd,"1,771.60",20/07/2020
Delivery Units,Adults and Health,Other Services,1002797202,Alina Homecare Ltd,"1,666.06",20/07/2020
Delivery Units,Adults and Health,Other Services,1002797702,Alina Homecare Ltd,"2,148.41",20/07/2020
Delivery Units,Adults and Health,Other Services,1002798302,Alina Homecare Ltd,"1,660.95",20/07/2020
Delivery Units,Adults and Health,Other Services,1002799402,Alina Homecare Ltd,"1,583.57",20/07/2020
Delivery Units,Adults and Health,Voluntary Associations - Third,0050014402,BARNET MENCAP,"11,142.65",17/07/2020
Delivery Units,Adults and Health,Ttl IT & Comms,1002737001,P A Consulting Services Ltd,"378,500.00",10/07/2020
Delivery Units,Adults and Health,Other Services,1002572302,Barnet Homes Assist,917.13,17/07/2020
Delivery Units,Adults and Health,Other Services,1002582702,Barnet Homes Assist,"1,076.53",28/07/2020
Delivery Units,Adults and Health,Other Services,1002587802,Barnet Homes Assist,"1,221.15",17/07/2020
Delivery Units,Adults and Health,Other Services,1002760201,Barnet Homes Assist,484.62,14/07/2020
Delivery Units,Adults and Health,Other Services,1002761501,Barnet Homes Assist,484.62,14/07/2020
Delivery Units,Adults and Health,Other Services,1002763201,Barnet Homes Assist,403.02,14/07/2020
Delivery Units,Adults and Health,Other Services,1002765001,Barnet Homes Assist,518.31,14/07/2020
Delivery Units,Adults and Health,Equipment and Materials Purcha,1003131401,Millbrook Healthcare Group,"8,037.65",31/07/2020
Delivery Units,Adults and Health,Equipment and Materials Purcha,1003135401,Millbrook Healthcare Group,"29,211.80",31/07/2020
Delivery Units,Adults and Health,Voluntary Associations - Third,1002679602,MIDDLESEX ASSOCIATION  FOR THE BLIN,"2,268.25",15/07/2020
Delivery Units,Adults and Health,Other Services,1002600302,BARNET MENCAP,"28,583.33",09/07/2020
Delivery Units,Adults and Health,Other Transfer Payments to Soc,1002778702,PRT BARNET CARERS CENTRE,"84,272.75",21/07/2020
Delivery Units,Adults and Health,Voluntary Associations - Third,0050014401,AGE CONCERN,"45,833.33",17/07/2020
Delivery Units,Adults and Health,Other Transfer Payments to Soc,1002742702,ALZHEIMER'S SOCIETY (BARNET),"18,166.67",16/07/2020
Delivery Units,Adults and Health,Health authorities - Third Par,1002890001,THE BARNETGROUP LIMITED,"66,666.67",17/07/2020
Delivery Units,Adults and Health,Health authorities - Third Par,1002925301,THE BARNETGROUP LIMITED,"56,666.67",20/07/2020
Delivery Units,Adults and Health,Other Services,1002728802,POhWER,"5,662.37",16/07/2020
Delivery Units,Adults and Health,Other Services,1002890702,POhWER,"4,303.00",23/07/2020
Delivery Units,Adults and Health,Professional Services,1001894503,Nicholson McBride,550.00,01/07/2020
Delivery Units,Adults and Health,Other Services,1002136101,D.A. Languages Ltd,91.00,15/07/2020
Delivery Units,Adults and Health,Other Services,1002688701,D.A. Languages Ltd,103.48,09/07/2020
Delivery Units,Adults and Health,Training,1002798802,BARNET MENCAP,"1,170.00",20/07/2020
Delivery Units,Adults and Health,Other Services,1002675301,D.A. Languages Ltd,24.96,09/07/2020
Delivery Units,Adults and Health,Other Services,1002797101,Waterlogic GB Limited,807.13,15/07/2020
Delivery Units,Adults and Health,Cleaning and domestic material,1003028402,Norse Commercial Services Ltd,505.99,28/07/2020
Delivery Units,Adults and Health,Training,1002798601,HUNTERSJOY LTD,"9,825.00",15/07/2020
Delivery Units,Adults and Health,Training,1001538601,Edge Training & Consultancy Lt,"1,090.00",31/07/2020
Delivery Units,Adults and Health,Other Transfer Payments to Soc,1002743401,HAS Technology Ltd,"4,971.36",13/07/2020
Delivery Units,Adults and Health,Other Services,1003099301,REDACTED - PERSONAL DATA,"1,200.00",30/07/2020
Delivery Units,Adults and Health,Venue Hire,1002885701,SARACENS LTD,"8,380.00",16/07/2020
Delivery Units,Adults and Health,Other Services,1002761701,HAS Technology Ltd,"1,389.75",14/07/2020
Delivery Units,Adults and Health,Transport Hire Charges,1003013602,Mott MacDonald Ltd/Cambridge Education,49.00,28/07/2020
Delivery Units,Adults and Health,Translation Exp / Interpret,1002136001,D.A. Languages Ltd,52.52,15/07/2020
Delivery Units,Adults and Health,Translation Exp / Interpret,1002136601,D.A. Languages Ltd,98.00,15/07/2020
Delivery Units,Adults and Health,Translation Exp / Interpret,1002150101,D.A. Languages Ltd,98.00,15/07/2020
Delivery Units,Adults and Health,Translation Exp / Interpret,1002150401,D.A. Languages Ltd,3.64,15/07/2020
Delivery Units,Adults and Health,Translation Exp / Interpret,1002166601,D.A. Languages Ltd,98.00,15/07/2020
Delivery Units,Adults and Health,Translation Exp / Interpret,1002576502,D.A. Languages Ltd,72.00,15/07/2020
Delivery Units,Adults and Health,Translation Exp / Interpret,1002678402,D.A. Languages Ltd,251.68,15/07/2020
Delivery Units,Adults and Health,Translation Exp / Interpret,1002686402,D.A. Languages Ltd,98.00,15/07/2020
Delivery Units,Adults and Health,Other Services,1002727401,Chumleigh Lodge Hotel,"1,575.00",10/07/2020
Delivery Units,Adults and Health,Other Services,1003017402,Chumleigh Lodge Hotel,"2,057.14",28/07/2020
Delivery Units,Adults and Health,Stationery,1002578002,Staples UK Ltd,232.83,15/07/2020
Delivery Units,Adults and Health,Other Transfer Payments to Soc,1003031301,KORU MEDICAL LTD,"2,145.00",27/07/2020
Delivery Units,Adults and Health,Other Services,1003106801,Run Healthcare Ltd,"3,120.00",30/07/2020
Delivery Units,Adults and Health,Other Transfer Payments to Soc,1003108001,POhWER,130.62,30/07/2020
Delivery Units,Adults and Health,Other Transfer Payments to Soc,1000748501,Aisa Medical Ltd,173.37,03/07/2020
Delivery Units,Adults and Health,Other Transfer Payments to Soc,1000754801,Aisa Medical Ltd,173.37,03/07/2020
Delivery Units,Adults and Health,Other Transfer Payments to Soc,1000790807,Aisa Medical Ltd,173.37,22/07/2020
Delivery Units,Adults and Health,Other Transfer Payments to Soc,1001011502,Aisa Medical Ltd,173.37,16/07/2020
Delivery Units,Adults and Health,Other Transfer Payments to Soc,1002365902,Aisa Medical Ltd,173.37,17/07/2020
Delivery Units,Adults and Health,Other Transfer Payments to Soc,1002366502,Aisa Medical Ltd,173.37,01/07/2020
Delivery Units,Adults and Health,Other Transfer Payments to Soc,1002569602,Aisa Medical Ltd,184.81,03/07/2020
Delivery Units,Adults and Health,Other Transfer Payments to Soc,1002598702,Aisa Medical Ltd,173.37,09/07/2020
Delivery Units,Adults and Health,Other Transfer Payments to Soc,1002761302,Aisa Medical Ltd,178.61,20/07/2020
Delivery Units,Adults and Health,Translation Exp / Interpret,1002136301,D.A. Languages Ltd,64.80,15/07/2020
Delivery Units,Adults and Health,Translation Exp / Interpret,1002137201,D.A. Languages Ltd,80.40,15/07/2020
Delivery Units,Adults and Health,Other Services,1003032202,Steve Chamberlain Social Care Ltd,550.00,28/07/2020
Delivery Units,Adults and Health,Other Services,1002996702,Recruitment Team Nine Limited,270.00,31/07/2020
Delivery Units,Adults and Health,Other Services,1003029601,Recruitment Team Nine Limited,270.00,27/07/2020
Delivery Units,Adults and Health,Other Services,1003030501,Recruitment Team Nine Limited,270.00,27/07/2020
Delivery Units,Adults and Health,Other Services,1003055701,Ambrosial Services Limited,"2,062.50",28/07/2020
Delivery Units,Adults and Health,Other Transfer Payments to Soc,1002794101,Swan Advocacy Network,101.50,15/07/2020
Delivery Units,Adults and Health,Other Services,1002622601,CMG Consultants Limited,"2,062.50",07/07/2020
Delivery Units,Adults and Health,Other Transfer Payments to Soc,1002578401,Shannons MCA Partnership,335.00,03/07/2020
Delivery Units,Adults and Health,Other Transfer Payments to Soc,1002576301,REDACTED - PERSONAL DATA,170.00,03/07/2020
Delivery Units,Adults and Health,Other Agencies - Third Party P,0050013245,DR FRENCH MEMORIAL HOME LTD,"14,407.47",03/07/2020
Delivery Units,Adults and Health,Other Agencies - Third Party P,0050012966,HOME FARM TRUST LTD,884.24,02/07/2020
Delivery Units,Adults and Health,Other Agencies - Third Party P,0050013001,HOME FARM TRUST LTD,304.82,02/07/2020
Delivery Units,Adults and Health,Other Agencies - Third Party P,0050013260,ROSEACRES CARE HOME LIMITED,"18,676.35",03/07/2020
Delivery Units,Adults and Health,Other Agencies - Third Party P,0050013021,ELIZABETH FITZROY SUPPORT,534.66,02/07/2020
Delivery Units,Adults and Health,Other Agencies - Third Party P,0050013133,THE RICHMOND FELLOWSHIP,400.86,02/07/2020
Delivery Units,Adults and Health,Other Agencies - Third Party P,0050014459,THE RICHMOND FELLOWSHIP,"3,201.66",28/07/2020
Delivery Units,Adults and Health,Other Agencies - Third Party P,0050014463,THE RICHMOND FELLOWSHIP,"6,403.32",28/07/2020
Delivery Units,Adults and Health,Other Agencies - Third Party P,0050013115,TREEHAVEN,"4,864.32",02/07/2020
Delivery Units,Adults and Health,Other Agencies - Third Party P,0050013041,NIGHTINGALE HOUSE,595.63,02/07/2020
Delivery Units,Adults and Health,Other Agencies - Third Party P,0050013246,ELEANOR PALMER TRUST NO 2 A/C.,"17,609.13",03/07/2020
Delivery Units,Adults and Health,Other Agencies - Third Party P,0050014458,ELM PARK LODGE,"14,407.47",28/07/2020
Delivery Units,Adults and Health,Other Agencies - Third Party P,0050013299,FRIERN RESIDENTIAL CARE HOME,"9,604.98",13/07/2020
Delivery Units,Adults and Health,Other Agencies - Third Party P,0050013123,WESTBROOK HOUSE,491.26,02/07/2020
Delivery Units,Adults and Health,Other Agencies - Third Party P,0050014456,TORRINGTON HOMES,"17,075.52",28/07/2020
Delivery Units,Adults and Health,Other Agencies - Third Party P,0050013050,PARADISE HOUSE ASSOCIATION LTD,345.79,02/07/2020
Delivery Units,Adults and Health,Other Agencies - Third Party P,0050013020,MACINTYRE CARE,"1,969.28",02/07/2020
Delivery Units,Adults and Health,Other Agencies - Third Party P,0050013265,THE GRANGE,"14,941.08",03/07/2020
Delivery Units,Adults and Health,Other Agencies - Third Party P,0050013053,FREEWAYS TRUST LIMITED,420.10,02/07/2020
Delivery Units,Adults and Health,Other Agencies - Third Party P,0050012965,CITY OF WESTMINSTER,733.54,02/07/2020
Delivery Units,Adults and Health,Other Agencies - Third Party P,0050012941,JEWISH CARE,518.70,02/07/2020
Delivery Units,Adults and Health,Other Agencies - Third Party P,0050013069,JEWISH CARE,"1,326.67",02/07/2020
Delivery Units,Adults and Health,Other Agencies - Third Party P,0050013075,JEWISH CARE,"3,280.06",02/07/2020
Delivery Units,Adults and Health,Other Agencies - Third Party P,0050013117,JEWISH CARE,248.39,02/07/2020
Delivery Units,Adults and Health,Other Agencies - Third Party P,0050013296,JEWISH CARE,"24,012.45",13/07/2020
Delivery Units,Adults and Health,Other Agencies - Third Party P,0050013303,JEWISH CARE,"8,004.15",13/07/2020
Delivery Units,Adults and Health,Other Agencies - Third Party P,0050013304,JEWISH CARE,"25,613.28",13/07/2020
Delivery Units,Adults and Health,Other Agencies - Third Party P,0050013305,JEWISH CARE,"64,033.20",13/07/2020
Delivery Units,Adults and Health,Other Agencies - Third Party P,0050013307,JEWISH CARE,"28,814.94",13/07/2020
Delivery Units,Adults and Health,Other Agencies - Third Party P,0050013308,JEWISH CARE,"29,348.55",13/07/2020
Delivery Units,Adults and Health,Other Agencies - Third Party P,0050013038,THE NATIONAL SOCIETY FOR EPILEPSY,"1,466.86",02/07/2020
Delivery Units,Adults and Health,Other Agencies - Third Party P,0050013297,CLOVELLY HOUSE RESID. HOME LTD,"25,613.28",13/07/2020
Delivery Units,Adults and Health,Other Agencies - Third Party P,0050013109,JANITH HOMES LTD,483.66,02/07/2020
Delivery Units,Adults and Health,Other Agencies - Third Party P,0050013052,ST.DAVIDS CARE IN THE,394.27,02/07/2020
Delivery Units,Adults and Health,Other Agencies - Third Party P,0050013010,IVER HOUSE LTD,138.82,02/07/2020
Delivery Units,Adults and Health,Other Agencies - Third Party P,0050013138,YAD VOEZER LIMITED,572.08,02/07/2020
Delivery Units,Adults and Health,Other Agencies - Third Party P,0050013248,FERNBANK NURSING HOME.,"16,008.30",03/07/2020
Delivery Units,Adults and Health,Other Agencies - Third Party P,0050013125,FINBOND LIMITED,567.71,02/07/2020
Delivery Units,Adults and Health,Other Agencies - Third Party P,0050012974,QUANTUM CARE LIMITED,431.79,02/07/2020
Delivery Units,Adults and Health,Other Agencies - Third Party P,0050012989,QUANTUM CARE LIMITED,675.36,02/07/2020
Delivery Units,Adults and Health,Other Agencies - Third Party P,0050013026,QUANTUM CARE LIMITED,413.93,02/07/2020
Delivery Units,Adults and Health,Other Agencies - Third Party P,0050012969,CRESWICK HOUSE,"1,255.09",02/07/2020
Delivery Units,Adults and Health,Other Agencies - Third Party P,0050013089,ST RAPHAELS HOME,242.26,02/07/2020
Delivery Units,Adults and Health,Other Agencies - Third Party P,0050013264,CEDARS NURSING HOME,"24,012.45",03/07/2020
Delivery Units,Adults and Health,Other Agencies - Third Party P,0050013071,SAXON COURT,478.96,02/07/2020
Delivery Units,Adults and Health,Other Agencies - Third Party P,0050013238,CATHERINE LODGE,"20,810.79",03/07/2020
Delivery Units,Adults and Health,Other Agencies - Third Party P,0050013263,BUPA NURSING HOMES LTD - ARKLEY,"28,814.94",03/07/2020
Delivery Units,Adults and Health,Other Agencies - Third Party P,0050013094,SUNRIDGE HOUSING ASSOCIATION LTD,294.11,02/07/2020
Delivery Units,Adults and Health,Other Agencies - Third Party P,0050013311,SUNRIDGE HOUSING ASSOCIATION LTD,"22,945.23",13/07/2020
Delivery Units,Adults and Health,Other Agencies - Third Party P,0050012946,AGUDAS ISRAEL HOUSING ASSCTN LTD,"1,094.08",02/07/2020
Delivery Units,Adults and Health,Other Agencies - Third Party P,0050013257,NAZARETH HOUSE,"44,823.24",03/07/2020
Delivery Units,Adults and Health,Other Agencies - Third Party P,0050013032,NAS SERVICES LTD,682.33,02/07/2020
Delivery Units,Adults and Health,Other Agencies - Third Party P,0050013022,MANDELA HOUSE,481.26,02/07/2020
Delivery Units,Adults and Health,Other Agencies - Third Party P,0050013235,THE WOODSIDE HOME,"30,415.77",03/07/2020
Delivery Units,Adults and Health,Other Agencies - Third Party P,0050012950,BIRNBECK HOUSING ASSOCIATION,342.96,02/07/2020
Delivery Units,Adults and Health,Other Agencies - Third Party P,0050013061,REHABILITATION EDUCATION AND,610.00,02/07/2020
Delivery Units,Adults and Health,Other Agencies - Third Party P,0050013023,SENSE CAS FINANCE TEAM,517.91,02/07/2020
Delivery Units,Adults and Health,Other Agencies - Third Party P,0050013033,SENSE CAS FINANCE TEAM,737.80,02/07/2020
Delivery Units,Adults and Health,Other Agencies - Third Party P,0050013073,SENSE CAS FINANCE TEAM,807.46,02/07/2020
Delivery Units,Adults and Health,Other Agencies - Third Party P,0050013137,SOUTHDOWN HOUSING ASSOC. LIMITED,453.14,02/07/2020
Delivery Units,Adults and Health,Other Agencies - Third Party P,0050013017,LILAS HOUSE,"1,003.08",02/07/2020
Delivery Units,Adults and Health,Other Agencies - Third Party P,0050012978,NORWOOD RAVENSWOOD SCHOOLS LTD,848.34,02/07/2020
Delivery Units,Adults and Health,Other Agencies - Third Party P,0050013044,NORWOOD RAVENSWOOD SCHOOLS LTD,"2,026.88",02/07/2020
Delivery Units,Adults and Health,Other Agencies - Third Party P,0050013045,NORWOOD RAVENSWOOD SCHOOLS LTD,544.64,02/07/2020
Delivery Units,Adults and Health,Other Agencies - Third Party P,0050013046,NORWOOD RAVENSWOOD SCHOOLS LTD,"4,768.89",02/07/2020
Delivery Units,Adults and Health,Other Agencies - Third Party P,0050013047,NORWOOD RAVENSWOOD SCHOOLS LTD,507.17,02/07/2020
Delivery Units,Adults and Health,Other Agencies - Third Party P,0050013049,NORWOOD RAVENSWOOD SCHOOLS LTD,536.36,02/07/2020
Delivery Units,Adults and Health,Other Agencies - Third Party P,0050013092,NORWOOD RAVENSWOOD SCHOOLS LTD,603.46,02/07/2020
Delivery Units,Adults and Health,Other Agencies - Third Party P,0050013097,NORWOOD RAVENSWOOD SCHOOLS LTD,"2,022.59",02/07/2020
Delivery Units,Adults and Health,Other Agencies - Third Party P,0050013099,NORWOOD RAVENSWOOD SCHOOLS LTD,"1,004.32",02/07/2020
Delivery Units,Adults and Health,Other Agencies - Third Party P,0050013101,NORWOOD RAVENSWOOD SCHOOLS LTD,"1,396.46",02/07/2020
Delivery Units,Adults and Health,Other Agencies - Third Party P,0050013113,NORWOOD RAVENSWOOD SCHOOLS LTD,778.62,02/07/2020
Delivery Units,Adults and Health,Other Agencies - Third Party P,0050013114,NORWOOD RAVENSWOOD SCHOOLS LTD,"1,583.82",02/07/2020
Delivery Units,Adults and Health,Other Agencies - Third Party P,0050013258,NORWOOD RAVENSWOOD SCHOOLS LTD,"3,201.66",03/07/2020
Delivery Units,Adults and Health,Other Agencies - Third Party P,0050014464,NORWOOD RAVENSWOOD SCHOOLS LTD,"4,268.88",28/07/2020
Delivery Units,Adults and Health,Other Agencies - Third Party P,0050013008,WESTMINSTER HEALTH CARE LTD,"2,009.68",02/07/2020
Delivery Units,Adults and Health,Other Agencies - Third Party P,0050013062,REAL LIFE OPTIONS,590.91,02/07/2020
Delivery Units,Adults and Health,Other Agencies - Third Party P,0050012977,METHODIST HOMES FOR THE AGED,286.67,02/07/2020
Delivery Units,Adults and Health,Other Agencies - Third Party P,0050013116,METHODIST HOMES FOR THE AGED,261.43,02/07/2020
Delivery Units,Adults and Health,Other Agencies - Third Party P,0050013127,METHODIST HOMES FOR THE AGED,261.27,02/07/2020
Delivery Units,Adults and Health,Other Agencies - Third Party P,0050013301,HENRY NIHILL HOUSE,"16,008.30",13/07/2020
Delivery Units,Adults and Health,Other Agencies - Third Party P,0050012980,BROOKDALE HEALTHCARE,902.93,02/07/2020
Delivery Units,Adults and Health,Other Agencies - Third Party P,0050013048,BROOKDALE HEALTHCARE,954.95,02/07/2020
Delivery Units,Adults and Health,Other Agencies - Third Party P,0050013247,BROOKDALE HEALTHCARE,"4,268.88",03/07/2020
Delivery Units,Adults and Health,Other Agencies - Third Party P,0050013262,SYDMAR LODGE,"30,415.77",03/07/2020
Delivery Units,Adults and Health,Other Agencies - Third Party P,0050013295,BAYTREE COMMUNITY CARE (LONDON) LTD,"6,403.32",13/07/2020
Delivery Units,Adults and Health,Other Agencies - Third Party P,0050012962,LEONARD CHESHIRE,652.70,02/07/2020
Delivery Units,Adults and Health,Other Agencies - Third Party P,0050012957,CARETECH COMMUNITY SERVICES LTD,745.91,02/07/2020
Delivery Units,Adults and Health,Other Agencies - Third Party P,0050012958,CARETECH COMMUNITY SERVICES LTD,"1,318.03",02/07/2020
Delivery Units,Adults and Health,Other Agencies - Third Party P,0050012959,CARETECH COMMUNITY SERVICES LTD,"1,250.94",02/07/2020
Delivery Units,Adults and Health,Other Agencies - Third Party P,0050012960,CARETECH COMMUNITY SERVICES LTD,952.35,02/07/2020
Delivery Units,Adults and Health,Other Agencies - Third Party P,0050012973,CARETECH COMMUNITY SERVICES LTD,"1,344.62",02/07/2020
Delivery Units,Adults and Health,Other Agencies - Third Party P,0050013009,CARETECH COMMUNITY SERVICES LTD,"1,362.06",02/07/2020
Delivery Units,Adults and Health,Other Agencies - Third Party P,0050013104,CARETECH COMMUNITY SERVICES LTD,"3,454.64",02/07/2020
Delivery Units,Adults and Health,Other Agencies - Third Party P,0050013236,CARETECH COMMUNITY SERVICES LTD,"2,668.05",03/07/2020
Delivery Units,Adults and Health,Other Agencies - Third Party P,0050013239,CARETECH COMMUNITY SERVICES LTD,"6,403.32",03/07/2020
Delivery Units,Adults and Health,Other Agencies - Third Party P,0050013254,CARETECH COMMUNITY SERVICES LTD,"13,340.25",03/07/2020
Delivery Units,Adults and Health,Other Agencies - Third Party P,0050014457,CARETECH COMMUNITY SERVICES LTD,"3,201.66",28/07/2020
Delivery Units,Adults and Health,Other Agencies - Third Party P,0050014467,CARETECH COMMUNITY SERVICES LTD,"3,735.27",28/07/2020
Delivery Units,Adults and Health,Other Agencies - Third Party P,0050013310,SONESTA NURSING HOME LTD.,"17,075.52",13/07/2020
Delivery Units,Adults and Health,Other Agencies - Third Party P,0050013306,THE LIMES RESIDENTIAL HOME,"13,873.86",13/07/2020
Delivery Units,Adults and Health,Other Agencies - Third Party P,0050013079,SPRINGDENE,498.89,02/07/2020
Delivery Units,Adults and Health,Other Agencies - Third Party P,0050012981,FAIRBURN HOUSE LTD,419.47,02/07/2020
Delivery Units,Adults and Health,Other Agencies - Third Party P,0050012983,SCIMITAR CARE HOTELS PLC,413.93,02/07/2020
Delivery Units,Adults and Health,Other Agencies - Third Party P,0050013034,SCIMITAR CARE HOTELS PLC,370.36,02/07/2020
Delivery Units,Adults and Health,Other Agencies - Third Party P,0050013121,WALSINGHAM,"2,679.13",02/07/2020
Delivery Units,Adults and Health,Other Agencies - Third Party P,0050013314,WALSINGHAM,"3,201.66",13/07/2020
Delivery Units,Adults and Health,Other Agencies - Third Party P,0050013108,RESIDENTIAL CARE PROVIDERS LTD,"1,760.87",02/07/2020
Delivery Units,Adults and Health,Other Agencies - Third Party P,0050012961,CARMEN LODGE RESIDENTIAL HOME,269.53,02/07/2020
Delivery Units,Adults and Health,Other Agencies - Third Party P,0050013030,MEERA NURSING HOME LIMITED,"1,530.19",02/07/2020
Delivery Units,Adults and Health,Other Agencies - Third Party P,0050014461,NEWCENTURY CARE LTD,"17,075.52",28/07/2020
Delivery Units,Adults and Health,Other Agencies - Third Party P,0050013063,COMPLETE CARE SERVICES LTD,533.93,02/07/2020
Delivery Units,Adults and Health,Other Agencies - Third Party P,0050012993,GREEN TREES,335.50,02/07/2020
Delivery Units,Adults and Health,Other Agencies - Third Party P,0050012971,THE DISABILITIES TRUST,"2,879.88",02/07/2020
Delivery Units,Adults and Health,Other Agencies - Third Party P,0050013006,THE DISABILITIES TRUST,"1,039.07",02/07/2020
Delivery Units,Adults and Health,Other Agencies - Third Party P,0050013082,ST ELIZABETHS CENTRE,"1,048.66",02/07/2020
Delivery Units,Adults and Health,Other Agencies - Third Party P,0050012954,WESTMINSTER HEALTH CARE LTD,133.57,02/07/2020
Delivery Units,Adults and Health,Other Agencies - Third Party P,0050013250,BUPA CARE HOMES,"23,478.84",03/07/2020
Delivery Units,Adults and Health,Other Agencies - Third Party P,0050013251,BUPA CARE HOMES,"19,209.96",03/07/2020
Delivery Units,Adults and Health,Other Agencies - Third Party P,1003064002,GREENWICH LEISURE LTD,"720,245.00",30/07/2020
Delivery Units,Adults and Health,Other Agencies - Third Party P,0050013057,THE NATIONAL AUTISTIC SOCIETY,"2,496.53",02/07/2020
Delivery Units,Adults and Health,Other Agencies - Third Party P,0050013112,THORNDENE LTD,380.24,02/07/2020
Delivery Units,Adults and Health,Other Agencies - Third Party P,0050012985,ASPEN VILLAGES LTD,"3,491.60",02/07/2020
Delivery Units,Adults and Health,Other Agencies - Third Party P,0050012970,PARKCARE HOMES (NO2) LIMITED,"1,125.28",02/07/2020
Delivery Units,Adults and Health,Other Agencies - Third Party P,0050013093,PARKCARE HOMES (NO2) LIMITED,"1,651.73",02/07/2020
Delivery Units,Adults and Health,Other Agencies - Third Party P,0050013028,MCCH SOCIETY LIMITED,466.21,02/07/2020
Delivery Units,Adults and Health,Other Agencies - Third Party P,0050012940,ANASTASIA LODGE,827.86,02/07/2020
Delivery Units,Adults and Health,Other Agencies - Third Party P,0050013302,HILTON LODGE LTD.,"6,936.93",13/07/2020
Delivery Units,Adults and Health,Other Agencies - Third Party P,0050013253,FOUR SEASONS HEALTH CARE,"49,092.12",03/07/2020
Delivery Units,Adults and Health,Other Agencies - Third Party P,0050013007,HOUSE MARTINS CARE LTD,605.98,02/07/2020
Delivery Units,Adults and Health,Other Agencies - Third Party P,0050013091,Stamford Nursing Centre,722.96,02/07/2020
Delivery Units,Adults and Health,Other Agencies - Third Party P,0050013016,NORTH LONDON CARE SERVICES LTD,615.99,02/07/2020
Delivery Units,Adults and Health,Other Agencies - Third Party P,0050013102,ALL ABOUT CARE,201.10,02/07/2020
Delivery Units,Adults and Health,Other Agencies - Third Party P,0050012942,THE REGARD PARTNERSHIP LTD,814.83,02/07/2020
Delivery Units,Adults and Health,Other Agencies - Third Party P,0050013234,VENTRY RESIDENTIAL CARE LTD,"11,205.81",03/07/2020
Delivery Units,Adults and Health,Other Agencies - Third Party P,0050013131,Bupa Wingham Court,500.16,02/07/2020
Delivery Units,Adults and Health,Other Agencies - Third Party P,0050012998,SANCTUARY CARE LTD,253.23,02/07/2020
Delivery Units,Adults and Health,Other Agencies - Third Party P,0050012996,LEWIS.W.HAMMERSON MEMORIAL HOME,"1,030.80",02/07/2020
Delivery Units,Adults and Health,Other Agencies - Third Party P,0050012991,GLOUCESTERSHIRE GROUP HOMES,412.16,02/07/2020
Delivery Units,Adults and Health,Other Agencies - Third Party P,0050012994,B & M CARE,"1,048.75",02/07/2020
Delivery Units,Adults and Health,Other Agencies - Third Party P,0050013105,B & M CARE,370.36,02/07/2020
Delivery Units,Adults and Health,Other Agencies - Third Party P,0050013004,BUPA CARE HOMES,"2,127.41",02/07/2020
Delivery Units,Adults and Health,Other Agencies - Third Party P,0050013261,SAGE NURSING HOME,"32,016.60",03/07/2020
Delivery Units,Adults and Health,Other Agencies - Third Party P,0050013298,EASTSIDE HOUSE CARE HOME,"8,537.76",13/07/2020
Delivery Units,Adults and Health,Other Agencies - Third Party P,0050014460,GLENHOLME,"9,604.98",28/07/2020
Delivery Units,Adults and Health,Other Agencies - Third Party P,0050013037,YOUNG FOUNDATIONS LTD,"1,285.36",02/07/2020
Delivery Units,Adults and Health,Other Agencies - Third Party P,0050014466,PLATINUM HEALTH RESOURCES LTD,"3,201.66",28/07/2020
Delivery Units,Adults and Health,Other Agencies - Third Party P,0050012987,M D HOMES,305.30,02/07/2020
Delivery Units,Adults and Health,Other Agencies - Third Party P,0050013036,M D HOMES,359.03,02/07/2020
Delivery Units,Adults and Health,Other Agencies - Third Party P,0050012952,BROOKVALE,742.53,02/07/2020
Delivery Units,Adults and Health,Other Agencies - Third Party P,0050013029,MEADOWBANK TRUST,314.79,02/07/2020
Delivery Units,Adults and Health,Other Agencies - Third Party P,0050013090,ST VINCENTS NURSING HOME,"1,129.55",02/07/2020
Delivery Units,Adults and Health,Other Agencies - Third Party P,0050013039,NATIONAL STAR COLLEGE,"1,408.54",02/07/2020
Delivery Units,Adults and Health,Other Agencies - Third Party P,0050013230,APPLE TREE COURT CARE HOME,"41,087.97",03/07/2020
Delivery Units,Adults and Health,Other Agencies - Third Party P,0050013002,HERTFORDSHIRE COUNTY COUNCIL,539.82,02/07/2020
Delivery Units,Adults and Health,Other Agencies - Third Party P,0050012967,DANA CARE LIMITED,"2,455.26",02/07/2020
Delivery Units,Adults and Health,Other Agencies - Third Party P,0050013240,DANA CARE LIMITED,"1,600.83",03/07/2020
Delivery Units,Adults and Health,Other Agencies - Third Party P,0050013058,RMBI,230.17,02/07/2020
Delivery Units,Adults and Health,Other Agencies - Third Party P,0050013098,TENTERDEN HOUSE,413.19,02/07/2020
Delivery Units,Adults and Health,Other Agencies - Third Party P,0050013096,SWANBOROUGH HOUSE,405.48,02/07/2020
Delivery Units,Adults and Health,Other Agencies - Third Party P,0050012943,Ashfields Residential Care Home,784.47,02/07/2020
Delivery Units,Adults and Health,Other Agencies - Third Party P,0050013232,Ashfields Residential Care Home,"10,672.20",03/07/2020
Delivery Units,Adults and Health,Other Agencies - Third Party P,0050013059,QUEEN ANN CARE,400.77,02/07/2020
Delivery Units,Adults and Health,Other Agencies - Third Party P,0050013067,ROWAN HOUSE,435.10,02/07/2020
Delivery Units,Adults and Health,Other Agencies - Third Party P,0050012944,AUTUMN GARDENS,"2,122.63",02/07/2020
Delivery Units,Adults and Health,Other Agencies - Third Party P,0050012992,THE CHRISTIAN CARE TRUST,535.54,02/07/2020
Delivery Units,Adults and Health,Other Agencies - Third Party P,0050013300,THE CHRISTIAN CARE TRUST,"5,336.10",13/07/2020
Delivery Units,Adults and Health,Other Agencies - Third Party P,0050013120,VOYAGE CARE,700.25,02/07/2020
Delivery Units,Adults and Health,Other Agencies - Third Party P,0050013122,VOYAGE CARE,"1,318.21",02/07/2020
Delivery Units,Adults and Health,Other Agencies - Third Party P,0050013228,HOFFMAN FOUNDATION FOR AUTISM,"2,945.19",02/07/2020
Delivery Units,Adults and Health,Other Agencies - Third Party P,0050013312,QUALITY HOUSING & SOCIAL CARE LTD,"2,668.05",13/07/2020
Delivery Units,Adults and Health,Other Agencies - Third Party P,0050013313,QUALITY HOUSING & SOCIAL CARE LTD,"2,668.05",13/07/2020
Delivery Units,Adults and Health,Other Agencies - Third Party P,0050013135,CARE UK COMMUNITY PARTNERSHIPS,463.57,02/07/2020
Delivery Units,Adults and Health,Other Agencies - Third Party P,0050013119,MILBURY,758.69,02/07/2020
Delivery Units,Adults and Health,Other Agencies - Third Party P,0050013252,KEMBLE HOUSE,"8,004.15",03/07/2020
Delivery Units,Adults and Health,Other Agencies - Third Party P,0050013110,THE WELL HOUSE,442.25,02/07/2020
Delivery Units,Adults and Health,Other Agencies - Third Party P,0050013012,JEMINI RESPONSE,"1,916.49",02/07/2020
Delivery Units,Adults and Health,Other Agencies - Third Party P,0050013266,TWO RIVERS,"3,735.27",03/07/2020
Delivery Units,Adults and Health,Other Agencies - Third Party P,0050013242,DIMENSIONS UK,"3,201.66",03/07/2020
Delivery Units,Adults and Health,Other Agencies - Third Party P,0050013243,DIMENSIONS UK,"4,268.88",03/07/2020
Delivery Units,Adults and Health,Other Agencies - Third Party P,0050013244,DIMENSIONS UK,"3,201.66",03/07/2020
Delivery Units,Adults and Health,Other Agencies - Third Party P,0050013095,SUNRISE SENIOR LIVING,702.26,02/07/2020
Delivery Units,Adults and Health,Other Agencies - Third Party P,0050013294,ABBEY RAVENSCROFT PARK NURSING HOME,"35,751.87",13/07/2020
Delivery Units,Adults and Health,Other Agencies - Third Party P,0050012997,CAMPHILL DEVON COMMUNITY LIMITED,505.78,02/07/2020
Delivery Units,Adults and Health,Other Agencies - Third Party P,0050013237,CARLTON COURT (TLC GROUP),"45,356.85",03/07/2020
Delivery Units,Adults and Health,Other Agencies - Third Party P,0050013065,ROBERT OWEN COMMUNITIES (ROC),534.19,02/07/2020
Delivery Units,Adults and Health,Other Agencies - Third Party P,0050014468,WOODFIELD HOUSE,"2,668.05",28/07/2020
Delivery Units,Adults and Health,Other Agencies - Third Party P,0050012999,HUSKARDS NEW CARE LTD,235.90,02/07/2020
Delivery Units,Adults and Health,Other Agencies - Third Party P,0050013233,ASHTON LODGE CARE CENTRE,"49,625.73",03/07/2020
Delivery Units,Adults and Health,Other Agencies - Third Party P,0050012975,SELF UNLIMITED-LONDON REGION,232.18,02/07/2020
Delivery Units,Adults and Health,Other Agencies - Third Party P,0050012976,SELF UNLIMITED-LONDON REGION,340.89,02/07/2020
Delivery Units,Adults and Health,Other Agencies - Third Party P,0050013040,LIVABILITY,"2,390.74",02/07/2020
Delivery Units,Adults and Health,Other Agencies - Third Party P,0050014462,LIVABILITY,"12,806.64",28/07/2020
Delivery Units,Adults and Health,Other Agencies - Third Party P,0050013124,WESTGATE HOUSE CARE CENTRE,366.57,02/07/2020
Delivery Units,Adults and Health,Other Agencies - Third Party P,0050013024,CONNIFERS CARE LTD,631.69,02/07/2020
Delivery Units,Adults and Health,Other Agencies - Third Party P,0050013056,ACTION ON HEARING LOSS,"1,120.63",02/07/2020
Delivery Units,Adults and Health,Other Agencies - Third Party P,0050013066,ACTION ON HEARING LOSS,323.46,02/07/2020
Delivery Units,Adults and Health,Other Agencies - Third Party P,0050013083,ACTION ON HEARING LOSS,"1,071.03",02/07/2020
Delivery Units,Adults and Health,Other Agencies - Third Party P,0050013088,ST MUNGO ASSOCIATION,296.29,02/07/2020
Delivery Units,Adults and Health,Other Agencies - Third Party P,0050013129,WILSMERE HOUSE CARE CENTRE,"2,990.99",02/07/2020
Delivery Units,Adults and Health,Other Agencies - Third Party P,0050013231,THE BARNETGROUP LIMITED,"43,756.02",03/07/2020
Delivery Units,Adults and Health,Other Agencies - Third Party P,0050013241,THE BARNETGROUP LIMITED,"21,344.40",03/07/2020
Delivery Units,Adults and Health,Other Agencies - Third Party P,0050013256,THE BARNETGROUP LIMITED,"36,285.48",03/07/2020
Delivery Units,Adults and Health,Other Agencies - Third Party P,0050013267,THE BARNETGROUP LIMITED,"3,201.66",03/07/2020
Delivery Units,Adults and Health,Other Agencies - Third Party P,0050013309,THE BARNETGROUP LIMITED,"2,134.44",13/07/2020
Delivery Units,Adults and Health,Other Agencies - Third Party P,0050012949,BIRCHWOOD GRANGE CARE HOME,588.21,02/07/2020
Delivery Units,Adults and Health,Other Agencies - Third Party P,0050012990,GLEBELANDS,"1,307.14",02/07/2020
Delivery Units,Adults and Health,Other Agencies - Third Party P,0050012937,AARON COURT CARE HOME,72.56,02/07/2020
Delivery Units,Adults and Health,Other Agencies - Third Party P,0050012955,CAMBIAN BEECHES,"1,308.17",02/07/2020
Delivery Units,Adults and Health,Other Agencies - Third Party P,0050013019,Z & M CARE LTD,283.21,02/07/2020
Delivery Units,Adults and Health,Other Agencies - Third Party P,0050012804,NHS BARNET CCG,939.87,16/07/2020
Delivery Units,Adults and Health,Other Agencies - Third Party P,0050012805,NHS BARNET CCG,"1,606.64",16/07/2020
Delivery Units,Adults and Health,Other Agencies - Third Party P,0050012806,NHS BARNET CCG,187.35,16/07/2020
Delivery Units,Adults and Health,Other Agencies - Third Party P,0050012900,NHS BARNET CCG,181.10,16/07/2020
Delivery Units,Adults and Health,Other Agencies - Third Party P,0050013126,CARE ASSIST LIMITED,418.07,02/07/2020
Delivery Units,Adults and Health,Other Agencies - Third Party P,0050013027,MAYFIELD ADULT SERVICES,"1,000.79",02/07/2020
Delivery Units,Adults and Health,Other Agencies - Third Party P,0050013107,The Red House,237.28,02/07/2020
Delivery Units,Adults and Health,Other Agencies - Third Party P,0050013085,St Martin of Tours HA Ltd,370.36,02/07/2020
Delivery Units,Adults and Health,Other Agencies - Third Party P,0050013025,Marlborough House,44.61,02/07/2020
Delivery Units,Adults and Health,Other Agencies - Third Party P,0050013011,Mental Health Care (Uk) Ltd,"1,121.20",02/07/2020
Delivery Units,Adults and Health,Other Agencies - Third Party P,0050013060,Rapkyns Care Centre,"1,282.74",02/07/2020
Delivery Units,Adults and Health,Other Agencies - Third Party P,0050013118,Victoria Care Centre,298.97,02/07/2020
Delivery Units,Adults and Health,Other Agencies - Third Party P,0050013128,Sequence Care Group,821.17,02/07/2020
Delivery Units,Adults and Health,Other Agencies - Third Party P,0050013042,Nightingales Residential Care Home,337.06,02/07/2020
Delivery Units,Adults and Health,Other Agencies - Third Party P,0050013077,Sophia Care Home,435.71,02/07/2020
Delivery Units,Adults and Health,Other Agencies - Third Party P,0050013106,The Meath Epilepsy Trust,893.65,02/07/2020
Delivery Units,Adults and Health,Other Agencies - Third Party P,0050012948,Belmont Lodge Care Centre,237.90,02/07/2020
Delivery Units,Adults and Health,Other Agencies - Third Party P,0050012938,Advent Care Plus,777.75,02/07/2020
Delivery Units,Adults and Health,Other Agencies - Third Party P,0050012986,Residential Care Services Ltd t/a Frankl,468.28,02/07/2020
Delivery Units,Adults and Health,Other Agencies - Third Party P,0050013051,Paternoster House (Barchester Care),"1,345.00",02/07/2020
Delivery Units,Adults and Health,Other Agencies - Third Party P,0050013013,Karuna Manor,"1,826.44",02/07/2020
Delivery Units,Adults and Health,Other Agencies - Third Party P,0050012939,Alexandra House (Runwood Homes),222.62,02/07/2020
Delivery Units,Adults and Health,Other Agencies - Third Party P,0050013015,An Diandan House,"2,063.74",02/07/2020
Delivery Units,Adults and Health,Other Agencies - Third Party P,0050013080,St Anns Home-Little Sisters of the Poor,238.26,02/07/2020
Delivery Units,Adults and Health,Other Agencies - Third Party P,0050013134,Woodfield Homes,"1,597.29",02/07/2020
Delivery Units,Adults and Health,Other Agencies - Third Party P,0050014465,Woodfield Homes,"2,668.05",28/07/2020
Delivery Units,Adults and Health,Other Agencies - Third Party P,0050013103,3A Care (London) Ltd,305.00,02/07/2020
Delivery Units,Adults and Health,Other Agencies - Third Party P,0050012968,Vision Mental Health (VMH),"2,440.00",02/07/2020
Delivery Units,Adults and Health,Other Agencies - Third Party P,0050013074,Striving for Independence Care,"1,214.77",02/07/2020
Delivery Units,Adults and Health,Other Agencies - Third Party P,0050012982,L'Arche,641.79,02/07/2020
Delivery Units,Adults and Health,Other Agencies - Third Party P,0050013005,Heathcotes Southern Ltd,891.04,02/07/2020
Delivery Units,Adults and Health,Other Agencies - Third Party P,0050013054,Pinelodge Care Home,261.27,02/07/2020
Delivery Units,Adults and Health,Other Agencies - Third Party P,0050012947,Black Swan International Ltd,452.77,02/07/2020
Delivery Units,Adults and Health,Other Agencies - Third Party P,0050012972,Black Swan International Ltd,331.37,02/07/2020
Delivery Units,Adults and Health,Other Agencies - Third Party P,0050013003,Hesley Group,"1,950.10",02/07/2020
Delivery Units,Adults and Health,Other Agencies - Third Party P,0050012964,Chiswick House,326.79,02/07/2020
Delivery Units,Adults and Health,Other Agencies - Third Party P,0050013249,De Bohun Care Ltd,"3,201.66",03/07/2020
Delivery Units,Adults and Health,Other Agencies - Third Party P,0050013111,The Windmill Care Home,210.53,02/07/2020
Delivery Units,Adults and Health,Other Agencies - Third Party P,0050013087,Charing Lodge Ltd,393.86,02/07/2020
Delivery Units,Adults and Health,Other Agencies - Third Party P,0050013086,Sonnet Care Homes (Essex) Ltd,479.29,02/07/2020
Delivery Units,Adults and Health,Other Agencies - Third Party P,0050012953,Adara Healthcare Ltd,370.36,02/07/2020
Delivery Units,Adults and Health,Other Agencies - Third Party P,0050012945,GCH (Hertfordshire) Ltd T/A,263.03,02/07/2020
Delivery Units,Adults and Health,Other Agencies - Third Party P,0050012988,Caring Homes Group (Galsworthy Hse),440.07,02/07/2020
Delivery Units,Adults and Health,Other Agencies - Third Party P,0050013229,Aarandale Manor Care Home,"34,684.65",03/07/2020
Delivery Units,Adults and Health,Other Agencies - Third Party P,0050013000,Heathcote Care Home,424.82,02/07/2020
Delivery Units,Adults and Health,Other Agencies - Third Party P,0050013100,Bondcare London (The Fountains),232.89,02/07/2020
Delivery Units,Adults and Health,Other Agencies - Third Party P,0050013072,Medstar Domicilliary Care Services Ltd,697.88,02/07/2020
Delivery Units,Adults and Health,Other Agencies - Third Party P,0050012963,Barchester Healthcare (Cheverton Lodge),"1,217.80",02/07/2020
Delivery Units,Adults and Health,Other Agencies - Third Party P,0050013130,Wilton House Ltd,782.91,02/07/2020
Delivery Units,Adults and Health,Other Agencies - Third Party P,0050013084,Bondcare (London 2),280.49,02/07/2020
Delivery Units,Adults and Health,Other Agencies - Third Party P,0050013132,Winnett Cottage (Nouvita),501.07,02/07/2020
Delivery Units,Adults and Health,Other Agencies - Third Party P,0050013078,Contemplation Homes,335.48,02/07/2020
Delivery Units,Adults and Health,Other Agencies - Third Party P,0050013043,Normanshire Care Services Ltd,707.60,02/07/2020
Delivery Units,Adults and Health,Other Agencies - Third Party P,0050013259,Normanshire Care Services Ltd,"29,882.16",03/07/2020
Delivery Units,Adults and Health,Other Agencies - Third Party P,0050013055,Amron Premier Care,92.91,02/07/2020
Delivery Units,Adults and Health,Other Agencies - Third Party P,0050013014,Alliance Care (Dales Homes) Limited,370.36,02/07/2020
Delivery Units,Adults and Health,Other Agencies - Third Party P,0050013136,Wordsworth House Care Home,261.43,02/07/2020
Delivery Units,Adults and Health,Other Agencies - Third Party P,0050013064,Caring Homes Healthcare Group Limited t/,765.99,02/07/2020
Delivery Units,Adults and Health,Other Agencies - Third Party P,0050012979,Jackson Care Limited,522.86,02/07/2020
Delivery Units,Adults and Health,Cleaning and domestic material,1002576901,Norse Commercial Services Ltd,700.00,03/07/2020
Delivery Units,Adults and Health,Other Agencies - Third Party P,0050012984,A.H.J. David Ltd t/a Florence House,348.57,02/07/2020
Delivery Units,Adults and Health,Other Agencies - Third Party P,0050012956,Safequarter South Ltd,255.99,02/07/2020
Delivery Units,Adults and Health,Other Agencies - Third Party P,0050013031,HC One Beamish Ltd,258.19,02/07/2020
Delivery Units,Adults and Health,Other Agencies - Third Party P,0050013035,Bondcare (London) Ltd -,370.36,02/07/2020
Delivery Units,Adults and Health,Other Agencies - Third Party P,0050013068,Rowles House,38.66,02/07/2020
Delivery Units,Adults and Health,Other Agencies - Third Party P,0050012951,Barchester Healthcare Homes Ltd (Brook,413.93,02/07/2020
Delivery Units,Adults and Health,Other Agencies - Third Party P,0050013070,MNS Care Plc T/A Sairam Villa,522.86,02/07/2020
Delivery Units,Adults and Health,Other Agencies - Third Party P,0050013076,REDACTED - PERSONAL DATA,478.43,02/07/2020
Delivery Units,Adults and Health,Other Agencies - Third Party P,0090271451,JEWISH CARE,"2,727.16",09/07/2020
Delivery Units,Adults and Health,Other Agencies - Third Party P,0090271452,JEWISH CARE,"2,478.24",09/07/2020
Delivery Units,Adults and Health,Other Agencies - Third Party P,0090271456,JEWISH CARE,"2,478.24",09/07/2020
Delivery Units,Adults and Health,Other Agencies - Third Party P,0090271462,JEWISH CARE,"5,738.18",09/07/2020
Delivery Units,Adults and Health,Other Agencies - Third Party P,0090271467,JEWISH CARE,"2,478.24",09/07/2020
Delivery Units,Adults and Health,Other Agencies - Third Party P,0090271477,JEWISH CARE,"2,478.24",09/07/2020
Delivery Units,Adults and Health,Other Agencies - Third Party P,0090271481,JEWISH CARE,"2,380.92",09/07/2020
Delivery Units,Adults and Health,Other Agencies - Third Party P,0090271488,JEWISH CARE,"3,086.24",09/07/2020
Delivery Units,Adults and Health,Other Agencies - Third Party P,0090271490,JEWISH CARE,"2,727.16",09/07/2020
Delivery Units,Adults and Health,Other Agencies - Third Party P,0090271506,JEWISH CARE,"8,682.28",09/07/2020
Delivery Units,Adults and Health,Other Agencies - Third Party P,0090271510,JEWISH CARE,"2,478.24",09/07/2020
Delivery Units,Adults and Health,Other Agencies - Third Party P,0090271515,JEWISH CARE,"2,727.16",09/07/2020
Delivery Units,Adults and Health,Other Agencies - Third Party P,0090271516,JEWISH CARE,"2,727.16",09/07/2020
Delivery Units,Adults and Health,Other Agencies - Third Party P,0090271522,JEWISH CARE,"2,727.16",09/07/2020
Delivery Units,Adults and Health,Other Agencies - Third Party P,0090271523,JEWISH CARE,"3,489.64",09/07/2020
Delivery Units,Adults and Health,Other Agencies - Third Party P,0090271526,JEWISH CARE,"2,478.24",09/07/2020
Delivery Units,Adults and Health,Other Agencies - Third Party P,0090271540,JEWISH CARE,"2,478.24",09/07/2020
Delivery Units,Adults and Health,Other Agencies - Third Party P,0090271541,JEWISH CARE,"2,478.24",09/07/2020
Delivery Units,Adults and Health,Other Agencies - Third Party P,0090271550,JEWISH CARE,"2,478.24",09/07/2020
Delivery Units,Adults and Health,Other Agencies - Third Party P,0090276103,JEWISH CARE,"2,727.16",30/07/2020
Delivery Units,Adults and Health,Other Agencies - Third Party P,0090276104,JEWISH CARE,"2,478.24",30/07/2020
Delivery Units,Adults and Health,Other Agencies - Third Party P,0090276108,JEWISH CARE,"2,478.24",30/07/2020
Delivery Units,Adults and Health,Other Agencies - Third Party P,0090276114,JEWISH CARE,"2,727.16",30/07/2020
Delivery Units,Adults and Health,Other Agencies - Third Party P,0090276137,JEWISH CARE,"8,682.28",30/07/2020
Delivery Units,Adults and Health,Other Agencies - Third Party P,0090276141,JEWISH CARE,"2,478.24",30/07/2020
Delivery Units,Adults and Health,Other Agencies - Third Party P,0090276145,JEWISH CARE,"2,727.16",30/07/2020
Delivery Units,Adults and Health,Other Agencies - Third Party P,0090276147,JEWISH CARE,"2,727.16",30/07/2020
Delivery Units,Adults and Health,Other Agencies - Third Party P,0090276157,JEWISH CARE,"2,727.16",30/07/2020
Delivery Units,Adults and Health,Other Agencies - Third Party P,0090276158,JEWISH CARE,"3,489.64",30/07/2020
Delivery Units,Adults and Health,Other Agencies - Third Party P,0090276160,JEWISH CARE,"2,478.24",30/07/2020
Delivery Units,Adults and Health,Other Agencies - Third Party P,0090276176,JEWISH CARE,"2,478.24",30/07/2020
Delivery Units,Adults and Health,Other Agencies - Third Party P,0090276177,JEWISH CARE,"2,478.24",30/07/2020
Delivery Units,Adults and Health,Other Agencies - Third Party P,0090276185,JEWISH CARE,"2,478.24",30/07/2020
Delivery Units,Adults and Health,Other Agencies - Third Party P,0090276189,JEWISH CARE,"2,478.24",30/07/2020
Delivery Units,Adults and Health,Other Agencies - Third Party P,0090276198,JEWISH CARE,"2,478.24",30/07/2020
Delivery Units,Adults and Health,Other Agencies - Third Party P,0090276202,JEWISH CARE,"2,380.92",30/07/2020
Delivery Units,Adults and Health,Other Agencies - Third Party P,0090276209,JEWISH CARE,"3,086.24",30/07/2020
Delivery Units,Adults and Health,Other Agencies - Third Party P,0090276211,JEWISH CARE,"2,727.16",30/07/2020
Delivery Units,Adults and Health,Other Agencies - Third Party P,0090273127,FERNBANK NURSING HOME.,"3,653.35",15/07/2020
Delivery Units,Adults and Health,Other Agencies - Third Party P,0090273128,FERNBANK NURSING HOME.,"3,542.68",15/07/2020
Delivery Units,Adults and Health,Other Agencies - Third Party P,0090270114,BUPA NURSING HOMES LTD - ARKLEY,"2,265.36",07/07/2020
Delivery Units,Adults and Health,Other Agencies - Third Party P,0090270115,BUPA NURSING HOMES LTD - ARKLEY,"2,265.36",07/07/2020
Delivery Units,Adults and Health,Other Agencies - Third Party P,0090270116,BUPA NURSING HOMES LTD - ARKLEY,"4,400.00",07/07/2020
Delivery Units,Adults and Health,Other Agencies - Third Party P,0090270117,BUPA NURSING HOMES LTD - ARKLEY,"4,400.00",07/07/2020
Delivery Units,Adults and Health,Other Agencies - Third Party P,0090270118,BUPA NURSING HOMES LTD - ARKLEY,"3,337.76",07/07/2020
Delivery Units,Adults and Health,Other Agencies - Third Party P,0090270119,BUPA NURSING HOMES LTD - ARKLEY,"3,800.00",07/07/2020
Delivery Units,Adults and Health,Other Agencies - Third Party P,0090273433,BUPA NURSING HOMES LTD - ARKLEY,"3,800.00",16/07/2020
Delivery Units,Adults and Health,Other Agencies - Third Party P,0090275172,BUPA NURSING HOMES LTD - ARKLEY,"2,850.00",22/07/2020
Delivery Units,Adults and Health,Other Agencies - Third Party P,0090275173,BUPA NURSING HOMES LTD - ARKLEY,"2,850.00",22/07/2020
Delivery Units,Adults and Health,Other Agencies - Third Party P,0090275174,BUPA NURSING HOMES LTD - ARKLEY,"2,850.00",22/07/2020
Delivery Units,Adults and Health,Other Agencies - Third Party P,0090275176,BUPA NURSING HOMES LTD - ARKLEY,"2,850.00",22/07/2020
Delivery Units,Adults and Health,Other Agencies - Third Party P,0090275177,BUPA NURSING HOMES LTD - ARKLEY,"2,850.00",22/07/2020
Delivery Units,Adults and Health,Other Agencies - Third Party P,0090275178,BUPA NURSING HOMES LTD - ARKLEY,"2,850.00",22/07/2020
Delivery Units,Adults and Health,Other Agencies - Third Party P,0090275435,BUPA NURSING HOMES LTD - ARKLEY,"2,657.14",22/07/2020
Delivery Units,Adults and Health,Other Agencies - Third Party P,0090275436,BUPA NURSING HOMES LTD - ARKLEY,"2,657.14",22/07/2020
Delivery Units,Adults and Health,Other Agencies - Third Party P,0090275476,BUPA NURSING HOMES LTD - ARKLEY,"2,657.14",22/07/2020
Delivery Units,Adults and Health,Other Agencies - Third Party P,0090275485,BUPA NURSING HOMES LTD - ARKLEY,"2,657.14",22/07/2020
Delivery Units,Adults and Health,Other Agencies - Third Party P,0090269584,AGUDAS ISRAEL HOUSING ASSCTN LTD,"2,648.57",03/07/2020
Delivery Units,Adults and Health,Other Agencies - Third Party P,0090270920,WESTMINSTER HEALTH CARE LTD,"4,783.20",07/07/2020
Delivery Units,Adults and Health,Other Agencies - Third Party P,0090270921,WESTMINSTER HEALTH CARE LTD,"1,997.48",07/07/2020
Delivery Units,Adults and Health,Other Agencies - Third Party P,0090270922,WESTMINSTER HEALTH CARE LTD,"4,860.00",07/07/2020
Delivery Units,Adults and Health,Other Agencies - Third Party P,0090271449,HENRY NIHILL HOUSE,"2,265.36",09/07/2020
Delivery Units,Adults and Health,Other Agencies - Third Party P,0090271466,HENRY NIHILL HOUSE,"2,358.24",09/07/2020
Delivery Units,Adults and Health,Other Agencies - Third Party P,0090271476,HENRY NIHILL HOUSE,"2,265.36",09/07/2020
Delivery Units,Adults and Health,Other Agencies - Third Party P,0090271500,HENRY NIHILL HOUSE,"2,358.24",09/07/2020
Delivery Units,Adults and Health,Other Agencies - Third Party P,0090271517,HENRY NIHILL HOUSE,"5,400.00",09/07/2020
Delivery Units,Adults and Health,Other Agencies - Third Party P,0090276101,HENRY NIHILL HOUSE,"2,265.36",30/07/2020
Delivery Units,Adults and Health,Other Agencies - Third Party P,0090276131,HENRY NIHILL HOUSE,926.45,30/07/2020
Delivery Units,Adults and Health,Other Agencies - Third Party P,0090276148,HENRY NIHILL HOUSE,"5,400.00",30/07/2020
Delivery Units,Adults and Health,Other Agencies - Third Party P,0090276188,HENRY NIHILL HOUSE,"2,358.24",30/07/2020
Delivery Units,Adults and Health,Other Agencies - Third Party P,0090276197,HENRY NIHILL HOUSE,"2,265.36",30/07/2020
Delivery Units,Adults and Health,Other Agencies - Third Party P,0090275199,LEONARD CHESHIRE,"6,420.00",22/07/2020
Delivery Units,Adults and Health,Other Agencies - Third Party P,0090275200,LEONARD CHESHIRE,"6,634.00",22/07/2020
Delivery Units,Adults and Health,Other Agencies - Third Party P,0090275201,LEONARD CHESHIRE,"6,206.00",22/07/2020
Delivery Units,Adults and Health,Other Agencies - Third Party P,0090275202,LEONARD CHESHIRE,"6,634.00",22/07/2020
Delivery Units,Adults and Health,Other Agencies - Third Party P,0090271146,LIFESTYLE CARE PLC,"30,428.48",09/07/2020
Delivery Units,Adults and Health,Other Agencies - Third Party P,0090271147,LIFESTYLE CARE PLC,"2,826.17",09/07/2020
Delivery Units,Adults and Health,Other Agencies - Third Party P,0090271149,LIFESTYLE CARE PLC,"2,826.17",09/07/2020
Delivery Units,Adults and Health,Other Agencies - Third Party P,0090271150,LIFESTYLE CARE PLC,"2,826.17",09/07/2020
Delivery Units,Adults and Health,Other Agencies - Third Party P,0090271152,LIFESTYLE CARE PLC,"2,826.17",09/07/2020
Delivery Units,Adults and Health,Other Agencies - Third Party P,0090271153,LIFESTYLE CARE PLC,"2,826.17",09/07/2020
Delivery Units,Adults and Health,Other Agencies - Third Party P,0090271154,LIFESTYLE CARE PLC,"2,826.17",09/07/2020
Delivery Units,Adults and Health,Other Agencies - Third Party P,0090271155,LIFESTYLE CARE PLC,"2,826.17",09/07/2020
Delivery Units,Adults and Health,Other Agencies - Third Party P,0090271157,LIFESTYLE CARE PLC,"2,826.17",09/07/2020
Delivery Units,Adults and Health,Other Agencies - Third Party P,0090275488,CARETECH COMMUNITY SERVICES LTD,"4,975.59",22/07/2020
Delivery Units,Adults and Health,Other Agencies - Third Party P,0090271820,SONESTA NURSING HOME LTD.,"-2,135.71",13/07/2020
Delivery Units,Adults and Health,Other Agencies - Third Party P,0090275231,MEERA NURSING HOME LIMITED,"2,445.68",22/07/2020
Delivery Units,Adults and Health,Other Agencies - Third Party P,0090275232,MEERA NURSING HOME LIMITED,"3,506.72",22/07/2020
Delivery Units,Adults and Health,Other Agencies - Third Party P,0090275233,MEERA NURSING HOME LIMITED,"2,445.68",22/07/2020
Delivery Units,Adults and Health,Other Agencies - Third Party P,0090275234,MEERA NURSING HOME LIMITED,"3,100.00",22/07/2020
Delivery Units,Adults and Health,Other Agencies - Third Party P,0090268902,NEWCENTURY CARE LTD,"3,494.12",01/07/2020
Delivery Units,Adults and Health,Other Agencies - Third Party P,0090268903,NEWCENTURY CARE LTD,"4,028.48",01/07/2020
Delivery Units,Adults and Health,Other Agencies - Third Party P,0090268904,NEWCENTURY CARE LTD,"3,232.00",01/07/2020
Delivery Units,Adults and Health,Other Agencies - Third Party P,0090268905,NEWCENTURY CARE LTD,"3,400.00",01/07/2020
Delivery Units,Adults and Health,Other Agencies - Third Party P,0090276243,NEWCENTURY CARE LTD,"3,494.12",30/07/2020
Delivery Units,Adults and Health,Other Agencies - Third Party P,0090276244,NEWCENTURY CARE LTD,"4,028.48",30/07/2020
Delivery Units,Adults and Health,Other Agencies - Third Party P,0090276245,NEWCENTURY CARE LTD,"3,232.00",30/07/2020
Delivery Units,Adults and Health,Other Agencies - Third Party P,0090276246,NEWCENTURY CARE LTD,"3,400.00",30/07/2020
Delivery Units,Adults and Health,Other Agencies - Third Party P,0090271824,BUPA CARE HOMES,341.57,10/07/2020
Delivery Units,Adults and Health,Other Agencies - Third Party P,0090271825,BUPA CARE HOMES,814.50,10/07/2020
Delivery Units,Adults and Health,Other Agencies - Third Party P,0090275179,BUPA CARE HOMES,"2,850.00",22/07/2020
Delivery Units,Adults and Health,Other Agencies - Third Party P,0090275180,BUPA CARE HOMES,"2,850.00",22/07/2020
Delivery Units,Adults and Health,Other Agencies - Third Party P,0090275181,BUPA CARE HOMES,"2,850.00",22/07/2020
Delivery Units,Adults and Health,Other Agencies - Third Party P,0090275182,BUPA CARE HOMES,"2,850.00",22/07/2020
Delivery Units,Adults and Health,Other Agencies - Third Party P,0090275184,BUPA CARE HOMES,"1,330.00",22/07/2020
Delivery Units,Adults and Health,Other Agencies - Third Party P,0090271821,BUPA CARE HOMES,"1,364.21",10/07/2020
Delivery Units,Adults and Health,Other Agencies - Third Party P,0090271826,BUPA CARE HOMES,525.49,10/07/2020
Delivery Units,Adults and Health,Other Agencies - Third Party P,0090275185,BUPA CARE HOMES,"2,850.00",22/07/2020
Delivery Units,Adults and Health,Other Agencies - Third Party P,0090275187,BUPA CARE HOMES,"2,850.00",22/07/2020
Delivery Units,Adults and Health,Other Agencies - Third Party P,0090275188,BUPA CARE HOMES,"2,850.00",22/07/2020
Delivery Units,Adults and Health,Other Agencies - Third Party P,0090275189,BUPA CARE HOMES,"2,850.00",22/07/2020
Delivery Units,Adults and Health,Other Agencies - Third Party P,0090275190,BUPA CARE HOMES,190.00,22/07/2020
Delivery Units,Adults and Health,Other Agencies - Third Party P,0090275191,BUPA CARE HOMES,"2,850.00",22/07/2020
Delivery Units,Adults and Health,Other Agencies - Third Party P,0090275192,BUPA CARE HOMES,"2,850.00",22/07/2020
Delivery Units,Adults and Health,Other Agencies - Third Party P,0090275193,BUPA CARE HOMES,"2,850.00",22/07/2020
Delivery Units,Adults and Health,Other Agencies - Third Party P,0090275555,FOUR SEASONS HEALTH CARE,"2,560.00",24/07/2020
Delivery Units,Adults and Health,Other Agencies - Third Party P,0090275557,FOUR SEASONS HEALTH CARE,"2,560.00",24/07/2020
Delivery Units,Adults and Health,Other Agencies - Third Party P,0090275559,FOUR SEASONS HEALTH CARE,"2,560.00",24/07/2020
Delivery Units,Adults and Health,Other Agencies - Third Party P,0090275560,FOUR SEASONS HEALTH CARE,"2,560.00",24/07/2020
Delivery Units,Adults and Health,Other Agencies - Third Party P,0090275562,FOUR SEASONS HEALTH CARE,"2,560.00",24/07/2020
Delivery Units,Adults and Health,Other Agencies - Third Party P,0090275563,FOUR SEASONS HEALTH CARE,"2,560.00",24/07/2020
Delivery Units,Adults and Health,Other Agencies - Third Party P,0090275564,FOUR SEASONS HEALTH CARE,"2,560.00",24/07/2020
Delivery Units,Adults and Health,Other Agencies - Third Party P,0090275565,FOUR SEASONS HEALTH CARE,"2,560.00",24/07/2020
Delivery Units,Adults and Health,Other Agencies - Third Party P,0090275566,FOUR SEASONS HEALTH CARE,"2,560.00",24/07/2020
Delivery Units,Adults and Health,Other Agencies - Third Party P,0090275567,FOUR SEASONS HEALTH CARE,"2,560.00",24/07/2020
Delivery Units,Adults and Health,Other Agencies - Third Party P,0090275569,FOUR SEASONS HEALTH CARE,"2,560.00",24/07/2020
Delivery Units,Adults and Health,Other Agencies - Third Party P,0090275570,FOUR SEASONS HEALTH CARE,"2,560.00",24/07/2020
Delivery Units,Adults and Health,Other Agencies - Third Party P,0090269586,BUPA CARE HOMES,"3,107.14",03/07/2020
Delivery Units,Adults and Health,Other Agencies - Third Party P,0090269589,BUPA CARE HOMES,"3,534.17",03/07/2020
Delivery Units,Adults and Health,Other Agencies - Third Party P,0090269591,BUPA CARE HOMES,"2,671.16",03/07/2020
Delivery Units,Adults and Health,Other Agencies - Third Party P,0090269595,SAGE NURSING HOME,"4,071.43",03/07/2020
Delivery Units,Adults and Health,Other Agencies - Third Party P,0090269598,SAGE NURSING HOME,"2,526.69",03/07/2020
Delivery Units,Adults and Health,Other Agencies - Third Party P,0090271822,M D HOMES,"3,002.96",10/07/2020
Delivery Units,Adults and Health,Other Agencies - Third Party P,0090271823,M D HOMES,"3,103.06",10/07/2020
Delivery Units,Adults and Health,Other Agencies - Third Party P,0090271827,M D HOMES,"3,002.96",10/07/2020
Delivery Units,Adults and Health,Other Agencies - Third Party P,0090273108,M D HOMES,"3,103.06",15/07/2020
Delivery Units,Adults and Health,Other Agencies - Third Party P,0090273434,M D HOMES,362.86,16/07/2020
Delivery Units,Adults and Health,Other Agencies - Third Party P,0090273629,ST VINCENTS NURSING HOME,"1,754.38",20/07/2020
Delivery Units,Adults and Health,Other Agencies - Third Party P,0090273630,ST VINCENTS NURSING HOME,"6,642.86",20/07/2020
Delivery Units,Adults and Health,Other Agencies - Third Party P,0090271133,APPLE TREE COURT CARE HOME,"3,429.66",09/07/2020
Delivery Units,Adults and Health,Other Agencies - Third Party P,0090271134,APPLE TREE COURT CARE HOME,"3,208.39",09/07/2020
Delivery Units,Adults and Health,Other Agencies - Third Party P,0090273805,APPLE TREE COURT CARE HOME,"3,429.66",21/07/2020
Delivery Units,Adults and Health,Other Agencies - Third Party P,0090273806,APPLE TREE COURT CARE HOME,"3,429.66",21/07/2020
Delivery Units,Adults and Health,Other Agencies - Third Party P,0090273808,APPLE TREE COURT CARE HOME,"3,429.66",21/07/2020
Delivery Units,Adults and Health,Other Agencies - Third Party P,0090273809,APPLE TREE COURT CARE HOME,"3,916.81",21/07/2020
Delivery Units,Adults and Health,Other Agencies - Third Party P,0090273810,APPLE TREE COURT CARE HOME,"1,389.84",21/07/2020
Delivery Units,Adults and Health,Other Agencies - Third Party P,0090273811,APPLE TREE COURT CARE HOME,"3,916.81",21/07/2020
Delivery Units,Adults and Health,Other Agencies - Third Party P,0090273834,APPLE TREE COURT CARE HOME,"4,871.43",21/07/2020
Delivery Units,Adults and Health,Other Agencies - Third Party P,0090273837,APPLE TREE COURT CARE HOME,"4,167.29",21/07/2020
Delivery Units,Adults and Health,Other Agencies - Third Party P,0090273838,APPLE TREE COURT CARE HOME,"3,985.71",21/07/2020
Delivery Units,Adults and Health,Other Agencies - Third Party P,0090273839,APPLE TREE COURT CARE HOME,"4,207.14",21/07/2020
Delivery Units,Adults and Health,Other Agencies - Third Party P,0090273840,APPLE TREE COURT CARE HOME,"2,760.20",21/07/2020
Delivery Units,Adults and Health,Other Agencies - Third Party P,0090275712,APPLE TREE COURT CARE HOME,"3,319.03",27/07/2020
Delivery Units,Adults and Health,Other Agencies - Third Party P,0090275715,APPLE TREE COURT CARE HOME,"3,319.03",27/07/2020
Delivery Units,Adults and Health,Other Agencies - Third Party P,0090275716,APPLE TREE COURT CARE HOME,"3,790.46",27/07/2020
Delivery Units,Adults and Health,Other Agencies - Third Party P,0090275717,APPLE TREE COURT CARE HOME,"3,319.03",27/07/2020
Delivery Units,Adults and Health,Other Agencies - Third Party P,0090275718,APPLE TREE COURT CARE HOME,"3,319.03",27/07/2020
Delivery Units,Adults and Health,Other Agencies - Third Party P,0090272835,AUTUMN GARDENS,"3,440.00",14/07/2020
Delivery Units,Adults and Health,Other Agencies - Third Party P,0090272838,AUTUMN GARDENS,"-2,914.29",14/07/2020
Delivery Units,Adults and Health,Other Agencies - Third Party P,0090270122,SUNRISE SENIOR LIVING,"6,176.40",07/07/2020
Delivery Units,Adults and Health,Other Agencies - Third Party P,0090273641,ABBEY RAVENSCROFT PARK NURSING HOME,-138.53,20/07/2020
Delivery Units,Adults and Health,Other Agencies - Third Party P,0090273643,ABBEY RAVENSCROFT PARK NURSING HOME,-174.44,20/07/2020
Delivery Units,Adults and Health,Other Agencies - Third Party P,0090273651,ABBEY RAVENSCROFT PARK NURSING HOME,-337.63,20/07/2020
Delivery Units,Adults and Health,Other Agencies - Third Party P,0090273652,ABBEY RAVENSCROFT PARK NURSING HOME,"-1,035.39",20/07/2020
Delivery Units,Adults and Health,Other Agencies - Third Party P,0090275441,ABBEY RAVENSCROFT PARK NURSING HOME,"3,321.43",22/07/2020
Delivery Units,Adults and Health,Other Agencies - Third Party P,0090275443,ABBEY RAVENSCROFT PARK NURSING HOME,"2,788.32",22/07/2020
Delivery Units,Adults and Health,Other Agencies - Third Party P,0090275444,ABBEY RAVENSCROFT PARK NURSING HOME,"3,321.43",22/07/2020
Delivery Units,Adults and Health,Other Agencies - Third Party P,0090275445,ABBEY RAVENSCROFT PARK NURSING HOME,"2,788.32",22/07/2020
Delivery Units,Adults and Health,Other Agencies - Third Party P,0090275446,ABBEY RAVENSCROFT PARK NURSING HOME,"3,321.43",22/07/2020
Delivery Units,Adults and Health,Other Agencies - Third Party P,0090275447,ABBEY RAVENSCROFT PARK NURSING HOME,"4,995.43",22/07/2020
Delivery Units,Adults and Health,Other Agencies - Third Party P,0090275450,ABBEY RAVENSCROFT PARK NURSING HOME,"3,321.43",22/07/2020
Delivery Units,Adults and Health,Other Agencies - Third Party P,0090275452,ABBEY RAVENSCROFT PARK NURSING HOME,"3,764.29",22/07/2020
Delivery Units,Adults and Health,Other Agencies - Third Party P,0090275453,ABBEY RAVENSCROFT PARK NURSING HOME,"3,764.29",22/07/2020
Delivery Units,Adults and Health,Other Agencies - Third Party P,0090275454,ABBEY RAVENSCROFT PARK NURSING HOME,"3,764.29",22/07/2020
Delivery Units,Adults and Health,Other Agencies - Third Party P,0090275456,ABBEY RAVENSCROFT PARK NURSING HOME,"3,321.43",22/07/2020
Delivery Units,Adults and Health,Other Agencies - Third Party P,0090275736,CARLTON COURT (TLC GROUP),"5,978.57",27/07/2020
Delivery Units,Adults and Health,Other Agencies - Third Party P,0090275742,CARLTON COURT (TLC GROUP),"3,736.61",27/07/2020
Delivery Units,Adults and Health,Other Agencies - Third Party P,0090275749,CARLTON COURT (TLC GROUP),"2,448.78",27/07/2020
Delivery Units,Adults and Health,Other Agencies - Third Party P,0090275750,CARLTON COURT (TLC GROUP),"3,764.29",27/07/2020
Delivery Units,Adults and Health,Other Agencies - Third Party P,0090275751,CARLTON COURT (TLC GROUP),"4,428.57",27/07/2020
Delivery Units,Adults and Health,Other Agencies - Third Party P,0090273610,HUSKARDS NEW CARE LTD,"2,531.99",20/07/2020
Delivery Units,Adults and Health,Other Agencies - Third Party P,0090275534,ASHTON LODGE CARE CENTRE,"3,779.34",24/07/2020
Delivery Units,Adults and Health,Other Agencies - Third Party P,0090275536,ASHTON LODGE CARE CENTRE,"3,158.59",24/07/2020
Delivery Units,Adults and Health,Other Agencies - Third Party P,0090275537,ASHTON LODGE CARE CENTRE,"5,245.38",24/07/2020
Delivery Units,Adults and Health,Other Agencies - Third Party P,0090275538,ASHTON LODGE CARE CENTRE,"4,436.37",24/07/2020
Delivery Units,Adults and Health,Other Agencies - Third Party P,0090275539,ASHTON LODGE CARE CENTRE,"3,642.32",24/07/2020
Delivery Units,Adults and Health,Other Agencies - Third Party P,0090275540,ASHTON LODGE CARE CENTRE,"4,359.66",24/07/2020
Delivery Units,Adults and Health,Other Agencies - Third Party P,0090275541,ASHTON LODGE CARE CENTRE,"3,391.67",24/07/2020
Delivery Units,Adults and Health,Other Agencies - Third Party P,0090275542,ASHTON LODGE CARE CENTRE,"3,846.97",24/07/2020
Delivery Units,Adults and Health,Other Agencies - Third Party P,0090275544,ASHTON LODGE CARE CENTRE,"3,541.79",24/07/2020
Delivery Units,Adults and Health,Other Agencies - Third Party P,0090275545,ASHTON LODGE CARE CENTRE,"4,212.72",24/07/2020
Delivery Units,Adults and Health,Other Agencies - Third Party P,0090275548,ASHTON LODGE CARE CENTRE,"3,164.04",24/07/2020
Delivery Units,Adults and Health,Other Agencies - Third Party P,0090275550,ASHTON LODGE CARE CENTRE,"3,695.38",24/07/2020
Delivery Units,Adults and Health,Other Agencies - Third Party P,0090275551,ASHTON LODGE CARE CENTRE,"3,541.79",24/07/2020
Delivery Units,Adults and Health,Other Agencies - Third Party P,0090275552,ASHTON LODGE CARE CENTRE,"3,018.60",24/07/2020
Delivery Units,Adults and Health,Other Agencies - Third Party P,0090275553,ASHTON LODGE CARE CENTRE,"2,923.96",24/07/2020
Delivery Units,Adults and Health,Other Agencies - Third Party P,0090275554,ASHTON LODGE CARE CENTRE,-119.21,24/07/2020
Delivery Units,Adults and Health,Other Agencies - Third Party P,0090268921,WESTGATE HOUSE CARE CENTRE,"3,605.57",01/07/2020
Delivery Units,Adults and Health,Other Agencies - Third Party P,0090268922,WESTGATE HOUSE CARE CENTRE,"3,725.76",01/07/2020
Delivery Units,Adults and Health,Other Agencies - Third Party P,0090268923,WESTGATE HOUSE CARE CENTRE,"3,605.57",01/07/2020
Delivery Units,Adults and Health,Other Agencies - Third Party P,0090273137,WESTGATE HOUSE CARE CENTRE,"3,725.76",15/07/2020
Delivery Units,Adults and Health,Other Agencies - Third Party P,0090273618,WILSMERE HOUSE CARE CENTRE,"4,979.35",20/07/2020
Delivery Units,Adults and Health,Other Agencies - Third Party P,0090273435,Victoria Care Centre,"2,863.50",16/07/2020
Delivery Units,Adults and Health,Other Agencies - Third Party P,0090275731,Karuna Manor,"4,207.14",27/07/2020
Delivery Units,Adults and Health,Other Agencies - Third Party P,0090275732,Karuna Manor,"4,392.43",27/07/2020
Delivery Units,Adults and Health,Other Agencies - Third Party P,0090275733,Karuna Manor,"2,373.71",27/07/2020
Delivery Units,Adults and Health,Other Agencies - Third Party P,0090269577,St Anns Home-Little Sisters of the Poor,"2,343.56",03/07/2020
Delivery Units,Adults and Health,Other Agencies - Third Party P,0090269580,St Anns Home-Little Sisters of the Poor,"2,421.68",03/07/2020
Delivery Units,Adults and Health,Other Agencies - Third Party P,0090269581,St Anns Home-Little Sisters of the Poor,"2,343.56",03/07/2020
Delivery Units,Adults and Health,Other Agencies - Third Party P,0090273147,Adara Healthcare Ltd,"3,400.00",15/07/2020
Delivery Units,Adults and Health,Other Agencies - Third Party P,0090269177,Aarandale Manor Care Home,"99,428.57",01/07/2020
Delivery Units,Adults and Health,Other Agencies - Third Party P,0090271567,Contemplation Homes,"3,189.79",09/07/2020
Delivery Units,Adults and Health,Other Agencies - Third Party P,0090273144,HC One Beamish Ltd,"2,624.19",15/07/2020
Delivery Units,Adults and Health,Other Agencies - Third Party P,0090273619,Barchester Healthcare Homes Ltd (Brook,"4,207.14",20/07/2020
Delivery Units,Adults and Health,Other Agencies - Third Party P,0090275437,MNS Care Plc T/A Sairam Villa,"5,314.29",22/07/2020
Delivery Units,Adults and Health,Other Agencies - Third Party P,0090275438,MNS Care Plc T/A Sairam Villa,"5,142.86",22/07/2020
Delivery Units,Adults and Health,Other Agencies - Third Party P,0090270109,DR FRENCH MEMORIAL HOME LTD,"2,517.94",07/07/2020
Delivery Units,Adults and Health,Other Agencies - Third Party P,0090270110,DR FRENCH MEMORIAL HOME LTD,"3,428.57",07/07/2020
Delivery Units,Adults and Health,Other Agencies - Third Party P,0090270111,DR FRENCH MEMORIAL HOME LTD,"3,428.57",07/07/2020
Delivery Units,Adults and Health,Other Agencies - Third Party P,0090270112,DR FRENCH MEMORIAL HOME LTD,"3,642.86",07/07/2020
Delivery Units,Adults and Health,Other Agencies - Third Party P,0090270113,DR FRENCH MEMORIAL HOME LTD,"3,642.86",07/07/2020
Delivery Units,Adults and Health,Other Agencies - Third Party P,0090275457,ROSEACRES CARE HOME LIMITED,"2,550.86",22/07/2020
Delivery Units,Adults and Health,Other Agencies - Third Party P,0090275458,ROSEACRES CARE HOME LIMITED,"2,550.86",22/07/2020
Delivery Units,Adults and Health,Other Agencies - Third Party P,0090275459,ROSEACRES CARE HOME LIMITED,"3,764.29",22/07/2020
Delivery Units,Adults and Health,Other Agencies - Third Party P,0090275460,ROSEACRES CARE HOME LIMITED,"2,550.86",22/07/2020
Delivery Units,Adults and Health,Other Agencies - Third Party P,0090275461,ROSEACRES CARE HOME LIMITED,"2,550.86",22/07/2020
Delivery Units,Adults and Health,Other Agencies - Third Party P,0090275462,ROSEACRES CARE HOME LIMITED,"2,988.53",22/07/2020
Delivery Units,Adults and Health,Other Agencies - Third Party P,0090275463,ROSEACRES CARE HOME LIMITED,"3,321.43",22/07/2020
Delivery Units,Adults and Health,Other Agencies - Third Party P,0090275464,ROSEACRES CARE HOME LIMITED,"3,321.43",22/07/2020
Delivery Units,Adults and Health,Other Agencies - Third Party P,0090275467,ROSEACRES CARE HOME LIMITED,"3,764.29",22/07/2020
Delivery Units,Adults and Health,Other Agencies - Third Party P,0090275468,ROSEACRES CARE HOME LIMITED,"2,550.86",22/07/2020
Delivery Units,Adults and Health,Other Agencies - Third Party P,0090275469,ROSEACRES CARE HOME LIMITED,"3,321.43",22/07/2020
Delivery Units,Adults and Health,Other Agencies - Third Party P,0090272762,ELEANOR PALMER TRUST NO 2 A/C.,"3,214.29",14/07/2020
Delivery Units,Adults and Health,Other Agencies - Third Party P,0090272763,ELEANOR PALMER TRUST NO 2 A/C.,"3,214.29",14/07/2020
Delivery Units,Adults and Health,Other Agencies - Third Party P,0090272764,ELEANOR PALMER TRUST NO 2 A/C.,"3,214.29",14/07/2020
Delivery Units,Adults and Health,Other Agencies - Third Party P,0090272765,ELEANOR PALMER TRUST NO 2 A/C.,"3,246.43",14/07/2020
Delivery Units,Adults and Health,Other Agencies - Third Party P,0090272766,ELEANOR PALMER TRUST NO 2 A/C.,"3,246.43",14/07/2020
Delivery Units,Adults and Health,Other Agencies - Third Party P,0090272767,ELEANOR PALMER TRUST NO 2 A/C.,"3,214.29",14/07/2020
Delivery Units,Adults and Health,Other Agencies - Third Party P,0090272768,ELEANOR PALMER TRUST NO 2 A/C.,"2,545.50",14/07/2020
Delivery Units,Adults and Health,Other Agencies - Third Party P,0090272769,ELEANOR PALMER TRUST NO 2 A/C.,"2,545.50",14/07/2020
Delivery Units,Adults and Health,Other Agencies - Third Party P,0090272770,ELEANOR PALMER TRUST NO 2 A/C.,"2,448.51",14/07/2020
Delivery Units,Adults and Health,Other Agencies - Third Party P,0090272771,ELEANOR PALMER TRUST NO 2 A/C.,"3,214.29",14/07/2020
Delivery Units,Adults and Health,Other Agencies - Third Party P,0090272772,ELEANOR PALMER TRUST NO 2 A/C.,"3,319.80",14/07/2020
Delivery Units,Adults and Health,Other Agencies - Third Party P,0090272773,ELEANOR PALMER TRUST NO 2 A/C.,"3,214.29",14/07/2020
Delivery Units,Adults and Health,Other Agencies - Third Party P,0090272774,ELEANOR PALMER TRUST NO 2 A/C.,"2,448.51",14/07/2020
Delivery Units,Adults and Health,Other Agencies - Third Party P,0090272775,ELEANOR PALMER TRUST NO 2 A/C.,"2,545.50",14/07/2020
Delivery Units,Adults and Health,Other Agencies - Third Party P,0090272776,ELEANOR PALMER TRUST NO 2 A/C.,"3,246.43",14/07/2020
Delivery Units,Adults and Health,Other Agencies - Third Party P,0090272777,ELEANOR PALMER TRUST NO 2 A/C.,"3,214.29",14/07/2020
Delivery Units,Adults and Health,Other Agencies - Third Party P,0090272778,ELEANOR PALMER TRUST NO 2 A/C.,"3,319.80",14/07/2020
Delivery Units,Adults and Health,Other Agencies - Third Party P,0090272857,ELEANOR PALMER TRUST NO 2 A/C.,"1,714.29",14/07/2020
Delivery Units,Adults and Health,Other Agencies - Third Party P,0090272858,ELEANOR PALMER TRUST NO 2 A/C.,"3,107.14",14/07/2020
Delivery Units,Adults and Health,Other Agencies - Third Party P,0090272859,ELEANOR PALMER TRUST NO 2 A/C.,"3,321.43",14/07/2020
Delivery Units,Adults and Health,Other Agencies - Third Party P,0090272860,ELEANOR PALMER TRUST NO 2 A/C.,"3,107.14",14/07/2020
Delivery Units,Adults and Health,Other Agencies - Third Party P,0090272861,ELEANOR PALMER TRUST NO 2 A/C.,"3,214.29",14/07/2020
Delivery Units,Adults and Health,Other Agencies - Third Party P,0090272862,ELEANOR PALMER TRUST NO 2 A/C.,"3,321.43",14/07/2020
Delivery Units,Adults and Health,Other Agencies - Third Party P,0090272863,ELEANOR PALMER TRUST NO 2 A/C.,"2,892.86",14/07/2020
Delivery Units,Adults and Health,Other Agencies - Third Party P,0090272864,ELEANOR PALMER TRUST NO 2 A/C.,"3,214.29",14/07/2020
Delivery Units,Adults and Health,Other Agencies - Third Party P,0090272865,ELEANOR PALMER TRUST NO 2 A/C.,"3,214.29",14/07/2020
Delivery Units,Adults and Health,Other Agencies - Third Party P,0090272866,ELEANOR PALMER TRUST NO 2 A/C.,"3,321.43",14/07/2020
Delivery Units,Adults and Health,Other Agencies - Third Party P,0090275213,ELEANOR PALMER TRUST NO 2 A/C.,"3,321.43",22/07/2020
Delivery Units,Adults and Health,Other Agencies - Third Party P,0090275214,ELEANOR PALMER TRUST NO 2 A/C.,"3,321.43",22/07/2020
Delivery Units,Adults and Health,Other Agencies - Third Party P,0090275215,ELEANOR PALMER TRUST NO 2 A/C.,"3,321.43",22/07/2020
Delivery Units,Adults and Health,Other Agencies - Third Party P,0090275216,ELEANOR PALMER TRUST NO 2 A/C.,"3,354.64",22/07/2020
Delivery Units,Adults and Health,Other Agencies - Third Party P,0090275217,ELEANOR PALMER TRUST NO 2 A/C.,"3,354.64",22/07/2020
Delivery Units,Adults and Health,Other Agencies - Third Party P,0090275218,ELEANOR PALMER TRUST NO 2 A/C.,"3,321.43",22/07/2020
Delivery Units,Adults and Health,Other Agencies - Third Party P,0090275219,ELEANOR PALMER TRUST NO 2 A/C.,"2,630.35",22/07/2020
Delivery Units,Adults and Health,Other Agencies - Third Party P,0090275220,ELEANOR PALMER TRUST NO 2 A/C.,"2,630.35",22/07/2020
Delivery Units,Adults and Health,Other Agencies - Third Party P,0090275221,ELEANOR PALMER TRUST NO 2 A/C.,"2,530.13",22/07/2020
Delivery Units,Adults and Health,Other Agencies - Third Party P,0090275222,ELEANOR PALMER TRUST NO 2 A/C.,"3,321.43",22/07/2020
Delivery Units,Adults and Health,Other Agencies - Third Party P,0090275223,ELEANOR PALMER TRUST NO 2 A/C.,"3,321.43",22/07/2020
Delivery Units,Adults and Health,Other Agencies - Third Party P,0090275224,ELEANOR PALMER TRUST NO 2 A/C.,"3,430.46",22/07/2020
Delivery Units,Adults and Health,Other Agencies - Third Party P,0090275225,ELEANOR PALMER TRUST NO 2 A/C.,"3,321.43",22/07/2020
Delivery Units,Adults and Health,Other Agencies - Third Party P,0090275226,ELEANOR PALMER TRUST NO 2 A/C.,"2,530.13",22/07/2020
Delivery Units,Adults and Health,Other Agencies - Third Party P,0090275227,ELEANOR PALMER TRUST NO 2 A/C.,"2,630.35",22/07/2020
Delivery Units,Adults and Health,Other Agencies - Third Party P,0090275228,ELEANOR PALMER TRUST NO 2 A/C.,"3,354.64",22/07/2020
Delivery Units,Adults and Health,Other Agencies - Third Party P,0090275229,ELEANOR PALMER TRUST NO 2 A/C.,"3,321.43",22/07/2020
Delivery Units,Adults and Health,Other Agencies - Third Party P,0090275230,ELEANOR PALMER TRUST NO 2 A/C.,"3,430.46",22/07/2020
Delivery Units,Adults and Health,Other Agencies - Third Party P,0090276260,ELM PARK LODGE,"3,242.51",30/07/2020
Delivery Units,Adults and Health,Other Agencies - Third Party P,0090273130,TORRINGTON HOMES,"2,249.45",15/07/2020
Delivery Units,Adults and Health,Other Agencies - Third Party P,0090273131,TORRINGTON HOMES,"3,764.29",15/07/2020
Delivery Units,Adults and Health,Other Agencies - Third Party P,0090273132,TORRINGTON HOMES,"2,448.78",15/07/2020
Delivery Units,Adults and Health,Other Agencies - Third Party P,0090272867,THE GRANGE,"6,642.84",14/07/2020
Delivery Units,Adults and Health,Other Agencies - Third Party P,0090275477,THE GRANGE,"3,000.00",22/07/2020
Delivery Units,Adults and Health,Other Agencies - Third Party P,0090275478,THE GRANGE,"2,458.20",22/07/2020
Delivery Units,Adults and Health,Other Agencies - Third Party P,0090275479,THE GRANGE,"2,600.00",22/07/2020
Delivery Units,Adults and Health,Other Agencies - Third Party P,0090275480,THE GRANGE,"3,000.00",22/07/2020
Delivery Units,Adults and Health,Other Agencies - Third Party P,0090275486,THE GRANGE,"3,000.00",22/07/2020
Delivery Units,Adults and Health,Other Agencies - Third Party P,0090273425,ELMHURST RESIDENTIAL HOME,"1,714.28",16/07/2020
Delivery Units,Adults and Health,Other Agencies - Third Party P,0090271269,JEWISH CARE,"1,792.00",09/07/2020
Delivery Units,Adults and Health,Other Agencies - Third Party P,0090271270,JEWISH CARE,"27,868.10",09/07/2020
Delivery Units,Adults and Health,Other Agencies - Third Party P,0090271271,JEWISH CARE,"29,816.77",09/07/2020
Delivery Units,Adults and Health,Other Agencies - Third Party P,0090271272,JEWISH CARE,"9,293.89",09/07/2020
Delivery Units,Adults and Health,Other Agencies - Third Party P,0090271435,JEWISH CARE,"3,250.66",09/07/2020
Delivery Units,Adults and Health,Other Agencies - Third Party P,0090271436,JEWISH CARE,"4,922.72",09/07/2020
Delivery Units,Adults and Health,Other Agencies - Third Party P,0090271440,JEWISH CARE,"1,843.58",09/07/2020
Delivery Units,Adults and Health,Other Agencies - Third Party P,0090271441,JEWISH CARE,"4,265.48",09/07/2020
Delivery Units,Adults and Health,Other Agencies - Third Party P,0090271443,JEWISH CARE,"2,399.56",09/07/2020
Delivery Units,Adults and Health,Other Agencies - Third Party P,0090271444,JEWISH CARE,"2,484.56",09/07/2020
Delivery Units,Adults and Health,Other Agencies - Third Party P,0090271445,JEWISH CARE,"2,399.56",09/07/2020
Delivery Units,Adults and Health,Other Agencies - Third Party P,0090271446,JEWISH CARE,"2,479.68",09/07/2020
Delivery Units,Adults and Health,Other Agencies - Third Party P,0090271448,JEWISH CARE,"2,581.00",09/07/2020
Delivery Units,Adults and Health,Other Agencies - Third Party P,0090271450,JEWISH CARE,"2,399.56",09/07/2020
Delivery Units,Adults and Health,Other Agencies - Third Party P,0090271454,JEWISH CARE,"4,825.16",09/07/2020
Delivery Units,Adults and Health,Other Agencies - Third Party P,0090271455,JEWISH CARE,"2,581.00",09/07/2020
Delivery Units,Adults and Health,Other Agencies - Third Party P,0090271457,JEWISH CARE,"2,399.56",09/07/2020
Delivery Units,Adults and Health,Other Agencies - Third Party P,0090271458,JEWISH CARE,"2,581.00",09/07/2020
Delivery Units,Adults and Health,Other Agencies - Third Party P,0090271459,JEWISH CARE,"2,581.00",09/07/2020
Delivery Units,Adults and Health,Other Agencies - Third Party P,0090271460,JEWISH CARE,"2,399.56",09/07/2020
Delivery Units,Adults and Health,Other Agencies - Third Party P,0090271461,JEWISH CARE,"1,935.75",09/07/2020
Delivery Units,Adults and Health,Other Agencies - Third Party P,0090271464,JEWISH CARE,"2,581.00",09/07/2020
Delivery Units,Adults and Health,Other Agencies - Third Party P,0090271465,JEWISH CARE,"1,199.79",09/07/2020
Delivery Units,Adults and Health,Other Agencies - Third Party P,0090271473,JEWISH CARE,"2,399.56",09/07/2020
Delivery Units,Adults and Health,Other Agencies - Third Party P,0090271474,JEWISH CARE,"2,399.56",09/07/2020
Delivery Units,Adults and Health,Other Agencies - Third Party P,0090271479,JEWISH CARE,"2,482.36",09/07/2020
Delivery Units,Adults and Health,Other Agencies - Third Party P,0090271482,JEWISH CARE,"2,581.00",09/07/2020
Delivery Units,Adults and Health,Other Agencies - Third Party P,0090271483,JEWISH CARE,"2,399.56",09/07/2020
Delivery Units,Adults and Health,Other Agencies - Third Party P,0090271484,JEWISH CARE,"2,399.56",09/07/2020
Delivery Units,Adults and Health,Other Agencies - Third Party P,0090271485,JEWISH CARE,"2,399.56",09/07/2020
Delivery Units,Adults and Health,Other Agencies - Third Party P,0090271486,JEWISH CARE,"2,581.00",09/07/2020
Delivery Units,Adults and Health,Other Agencies - Third Party P,0090271489,JEWISH CARE,"2,455.12",09/07/2020
Delivery Units,Adults and Health,Other Agencies - Third Party P,0090271493,JEWISH CARE,"2,482.36",09/07/2020
Delivery Units,Adults and Health,Other Agencies - Third Party P,0090271499,JEWISH CARE,"2,581.00",09/07/2020
Delivery Units,Adults and Health,Other Agencies - Third Party P,0090271503,JEWISH CARE,"2,581.00",09/07/2020
Delivery Units,Adults and Health,Other Agencies - Third Party P,0090271504,JEWISH CARE,"2,484.56",09/07/2020
Delivery Units,Adults and Health,Other Agencies - Third Party P,0090271505,JEWISH CARE,"2,399.56",09/07/2020
Delivery Units,Adults and Health,Other Agencies - Third Party P,0090271508,JEWISH CARE,"2,399.56",09/07/2020
Delivery Units,Adults and Health,Other Agencies - Third Party P,0090271511,JEWISH CARE,"2,581.00",09/07/2020
Delivery Units,Adults and Health,Other Agencies - Third Party P,0090271513,JEWISH CARE,"2,399.56",09/07/2020
Delivery Units,Adults and Health,Other Agencies - Third Party P,0090271520,JEWISH CARE,"2,581.00",09/07/2020
Delivery Units,Adults and Health,Other Agencies - Third Party P,0090271524,JEWISH CARE,"-1,843.57",09/07/2020
Delivery Units,Adults and Health,Other Agencies - Third Party P,0090271527,JEWISH CARE,"2,581.00",09/07/2020
Delivery Units,Adults and Health,Other Agencies - Third Party P,0090271528,JEWISH CARE,"2,280.32",09/07/2020
Delivery Units,Adults and Health,Other Agencies - Third Party P,0090271529,JEWISH CARE,"2,399.56",09/07/2020
Delivery Units,Adults and Health,Other Agencies - Third Party P,0090271533,JEWISH CARE,"2,581.00",09/07/2020
Delivery Units,Adults and Health,Other Agencies - Third Party P,0090271537,JEWISH CARE,"2,482.36",09/07/2020
Delivery Units,Adults and Health,Other Agencies - Third Party P,0090271538,JEWISH CARE,"2,482.36",09/07/2020
Delivery Units,Adults and Health,Other Agencies - Third Party P,0090271544,JEWISH CARE,"2,581.00",09/07/2020
Delivery Units,Adults and Health,Other Agencies - Third Party P,0090271545,JEWISH CARE,"2,480.92",09/07/2020
Delivery Units,Adults and Health,Other Agencies - Third Party P,0090271546,JEWISH CARE,"2,581.00",09/07/2020
Delivery Units,Adults and Health,Other Agencies - Third Party P,0090271548,JEWISH CARE,"2,581.00",09/07/2020
Delivery Units,Adults and Health,Other Agencies - Third Party P,0090271549,JEWISH CARE,"2,581.00",09/07/2020
Delivery Units,Adults and Health,Other Agencies - Third Party P,0090271552,JEWISH CARE,"12,018.61",09/07/2020
Delivery Units,Adults and Health,Other Agencies - Third Party P,0090271553,JEWISH CARE,737.43,09/07/2020
Delivery Units,Adults and Health,Other Agencies - Third Party P,0090271554,JEWISH CARE,368.72,09/07/2020
Delivery Units,Adults and Health,Other Agencies - Third Party P,0090271555,JEWISH CARE,"2,156.80",09/07/2020
Delivery Units,Adults and Health,Other Agencies - Third Party P,0090271557,JEWISH CARE,"3,800.00",09/07/2020
Delivery Units,Adults and Health,Other Agencies - Third Party P,0090276085,JEWISH CARE,"11,061.43",30/07/2020
Delivery Units,Adults and Health,Other Agencies - Third Party P,0090276086,JEWISH CARE,"5,539.81",30/07/2020
Delivery Units,Adults and Health,Other Agencies - Third Party P,0090276092,JEWISH CARE,"4,265.48",30/07/2020
Delivery Units,Adults and Health,Other Agencies - Third Party P,0090276094,JEWISH CARE,"2,399.56",30/07/2020
Delivery Units,Adults and Health,Other Agencies - Third Party P,0090276096,JEWISH CARE,"2,484.56",30/07/2020
Delivery Units,Adults and Health,Other Agencies - Third Party P,0090276097,JEWISH CARE,"2,399.56",30/07/2020
Delivery Units,Adults and Health,Other Agencies - Third Party P,0090276098,JEWISH CARE,"-7,881.84",30/07/2020
Delivery Units,Adults and Health,Other Agencies - Third Party P,0090276100,JEWISH CARE,"2,581.00",30/07/2020
Delivery Units,Adults and Health,Other Agencies - Third Party P,0090276102,JEWISH CARE,856.99,30/07/2020
Delivery Units,Adults and Health,Other Agencies - Third Party P,0090276106,JEWISH CARE,"4,825.16",30/07/2020
Delivery Units,Adults and Health,Other Agencies - Third Party P,0090276107,JEWISH CARE,"2,581.00",30/07/2020
Delivery Units,Adults and Health,Other Agencies - Third Party P,0090276109,JEWISH CARE,"2,399.56",30/07/2020
Delivery Units,Adults and Health,Other Agencies - Third Party P,0090276110,JEWISH CARE,"2,581.00",30/07/2020
Delivery Units,Adults and Health,Other Agencies - Third Party P,0090276112,JEWISH CARE,"2,581.00",30/07/2020
Delivery Units,Adults and Health,Other Agencies - Third Party P,0090276113,JEWISH CARE,"2,399.56",30/07/2020
Delivery Units,Adults and Health,Other Agencies - Third Party P,0090276116,JEWISH CARE,"2,581.00",30/07/2020
Delivery Units,Adults and Health,Other Agencies - Third Party P,0090276117,JEWISH CARE,"10,784.89",30/07/2020
Delivery Units,Adults and Health,Other Agencies - Third Party P,0090276118,JEWISH CARE,"10,784.89",30/07/2020
Delivery Units,Adults and Health,Other Agencies - Third Party P,0090276119,JEWISH CARE,"10,784.89",30/07/2020
Delivery Units,Adults and Health,Other Agencies - Third Party P,0090276120,JEWISH CARE,"10,784.89",30/07/2020
Delivery Units,Adults and Health,Other Agencies - Third Party P,0090276124,JEWISH CARE,"2,894.53",30/07/2020
Delivery Units,Adults and Health,Other Agencies - Third Party P,0090276130,JEWISH CARE,"2,581.00",30/07/2020
Delivery Units,Adults and Health,Other Agencies - Third Party P,0090276134,JEWISH CARE,"2,581.00",30/07/2020
Delivery Units,Adults and Health,Other Agencies - Third Party P,0090276135,JEWISH CARE,"2,484.56",30/07/2020
Delivery Units,Adults and Health,Other Agencies - Third Party P,0090276136,JEWISH CARE,"2,399.56",30/07/2020
Delivery Units,Adults and Health,Other Agencies - Third Party P,0090276139,JEWISH CARE,"2,399.56",30/07/2020
Delivery Units,Adults and Health,Other Agencies - Third Party P,0090276142,JEWISH CARE,"2,581.00",30/07/2020
Delivery Units,Adults and Health,Other Agencies - Third Party P,0090276144,JEWISH CARE,"2,399.56",30/07/2020
Delivery Units,Adults and Health,Other Agencies - Third Party P,0090276146,JEWISH CARE,"3,800.00",30/07/2020
Delivery Units,Adults and Health,Other Agencies - Third Party P,0090276149,JEWISH CARE,"29,203.76",30/07/2020
Delivery Units,Adults and Health,Other Agencies - Third Party P,0090276150,JEWISH CARE,"10,784.89",30/07/2020
Delivery Units,Adults and Health,Other Agencies - Third Party P,0090276151,JEWISH CARE,"10,784.89",30/07/2020
Delivery Units,Adults and Health,Other Agencies - Third Party P,0090276152,JEWISH CARE,"10,784.89",30/07/2020
Delivery Units,Adults and Health,Other Agencies - Third Party P,0090276155,JEWISH CARE,"2,581.00",30/07/2020
Delivery Units,Adults and Health,Other Agencies - Third Party P,0090276162,JEWISH CARE,"2,581.00",30/07/2020
Delivery Units,Adults and Health,Other Agencies - Third Party P,0090276163,JEWISH CARE,"-7,247.99",30/07/2020
Delivery Units,Adults and Health,Other Agencies - Third Party P,0090276164,JEWISH CARE,"2,399.56",30/07/2020
Delivery Units,Adults and Health,Other Agencies - Third Party P,0090276166,JEWISH CARE,"-6,932.57",30/07/2020
Delivery Units,Adults and Health,Other Agencies - Third Party P,0090276169,JEWISH CARE,"2,581.00",30/07/2020
Delivery Units,Adults and Health,Other Agencies - Third Party P,0090276173,JEWISH CARE,"-7,890.36",30/07/2020
Delivery Units,Adults and Health,Other Agencies - Third Party P,0090276174,JEWISH CARE,"-7,890.36",30/07/2020
Delivery Units,Adults and Health,Other Agencies - Third Party P,0090276179,JEWISH CARE,"2,581.00",30/07/2020
Delivery Units,Adults and Health,Other Agencies - Third Party P,0090276180,JEWISH CARE,"-7,885.78",30/07/2020
Delivery Units,Adults and Health,Other Agencies - Third Party P,0090276181,JEWISH CARE,"2,581.00",30/07/2020
Delivery Units,Adults and Health,Other Agencies - Third Party P,0090276183,JEWISH CARE,"2,581.00",30/07/2020
Delivery Units,Adults and Health,Other Agencies - Third Party P,0090276184,JEWISH CARE,"2,581.00",30/07/2020
Delivery Units,Adults and Health,Other Agencies - Third Party P,0090276187,JEWISH CARE,"10,784.89",30/07/2020
Delivery Units,Adults and Health,Other Agencies - Third Party P,0090276194,JEWISH CARE,"2,399.56",30/07/2020
Delivery Units,Adults and Health,Other Agencies - Third Party P,0090276195,JEWISH CARE,"2,399.56",30/07/2020
Delivery Units,Adults and Health,Other Agencies - Third Party P,0090276200,JEWISH CARE,"-7,890.36",30/07/2020
Delivery Units,Adults and Health,Other Agencies - Third Party P,0090276203,JEWISH CARE,"2,581.00",30/07/2020
Delivery Units,Adults and Health,Other Agencies - Third Party P,0090276204,JEWISH CARE,"2,399.56",30/07/2020
Delivery Units,Adults and Health,Other Agencies - Third Party P,0090276205,JEWISH CARE,"2,399.56",30/07/2020
Delivery Units,Adults and Health,Other Agencies - Third Party P,0090276206,JEWISH CARE,"2,399.56",30/07/2020
Delivery Units,Adults and Health,Other Agencies - Third Party P,0090276207,JEWISH CARE,"2,581.00",30/07/2020
Delivery Units,Adults and Health,Other Agencies - Third Party P,0090276210,JEWISH CARE,"2,455.12",30/07/2020
Delivery Units,Adults and Health,Other Agencies - Third Party P,0090276212,JEWISH CARE,"2,581.00",30/07/2020
Delivery Units,Adults and Health,Other Agencies - Third Party P,0090276213,JEWISH CARE,"23,596.55",30/07/2020
Delivery Units,Adults and Health,Other Agencies - Third Party P,0090276214,JEWISH CARE,"10,784.89",30/07/2020
Delivery Units,Adults and Health,Other Agencies - Third Party P,0090276215,JEWISH CARE,"10,026.73",30/07/2020
Delivery Units,Adults and Health,Other Agencies - Third Party P,0090273109,CLOVELLY HOUSE RESID. HOME LTD,"2,458.20",15/07/2020
Delivery Units,Adults and Health,Other Agencies - Third Party P,0090273110,CLOVELLY HOUSE RESID. HOME LTD,"3,000.00",15/07/2020
Delivery Units,Adults and Health,Other Agencies - Third Party P,0090273111,CLOVELLY HOUSE RESID. HOME LTD,"3,000.00",15/07/2020
Delivery Units,Adults and Health,Other Agencies - Third Party P,0090273113,CLOVELLY HOUSE RESID. HOME LTD,"3,000.00",15/07/2020
Delivery Units,Adults and Health,Other Agencies - Third Party P,0090273114,CLOVELLY HOUSE RESID. HOME LTD,"3,000.00",15/07/2020
Delivery Units,Adults and Health,Other Agencies - Third Party P,0090273115,CLOVELLY HOUSE RESID. HOME LTD,"3,000.00",15/07/2020
Delivery Units,Adults and Health,Other Agencies - Third Party P,0090273119,CLOVELLY HOUSE RESID. HOME LTD,"2,600.00",15/07/2020
Delivery Units,Adults and Health,Other Agencies - Third Party P,0090273121,CLOVELLY HOUSE RESID. HOME LTD,"2,458.20",15/07/2020
Delivery Units,Adults and Health,Other Agencies - Third Party P,0090273122,CLOVELLY HOUSE RESID. HOME LTD,"3,000.00",15/07/2020
Delivery Units,Adults and Health,Other Agencies - Third Party P,0090273123,CLOVELLY HOUSE RESID. HOME LTD,"3,100.00",15/07/2020
Delivery Units,Adults and Health,Other Agencies - Third Party P,0090270120,QUANTUM CARE LIMITED,"1,457.14",07/07/2020
Delivery Units,Adults and Health,Other Agencies - Third Party P,0090270121,QUANTUM CARE LIMITED,-728.57,07/07/2020
Delivery Units,Adults and Health,Other Agencies - Third Party P,0090276069,QUANTUM CARE LIMITED,"4,071.43",29/07/2020
Delivery Units,Adults and Health,Other Agencies - Third Party P,0090276070,QUANTUM CARE LIMITED,"4,071.43",29/07/2020
Delivery Units,Adults and Health,Other Agencies - Third Party P,0090273426,CATHERINE LODGE,"1,335.71",16/07/2020
Delivery Units,Adults and Health,Other Agencies - Third Party P,0090275719,CATHERINE LODGE,"3,963.57",27/07/2020
Delivery Units,Adults and Health,Other Agencies - Third Party P,0090275720,CATHERINE LODGE,"3,321.43",27/07/2020
Delivery Units,Adults and Health,Other Agencies - Third Party P,0090275724,CATHERINE LODGE,"2,601.87",27/07/2020
Delivery Units,Adults and Health,Other Agencies - Third Party P,0090275725,CATHERINE LODGE,"2,601.87",27/07/2020
Delivery Units,Adults and Health,Other Agencies - Third Party P,0090275726,CATHERINE LODGE,"3,764.29",27/07/2020
Delivery Units,Adults and Health,Other Agencies - Third Party P,0090275483,BUPA NURSING HOMES LTD - ARKLEY,"2,657.14",22/07/2020
Delivery Units,Adults and Health,Other Agencies - Third Party P,0090275487,BUPA NURSING HOMES LTD - ARKLEY,"2,657.14",22/07/2020
Delivery Units,Adults and Health,Other Agencies - Third Party P,0090273216,NAZARETH HOUSE,"2,350.08",15/07/2020
Delivery Units,Adults and Health,Other Agencies - Third Party P,0090273217,NAZARETH HOUSE,"2,186.88",15/07/2020
Delivery Units,Adults and Health,Other Agencies - Third Party P,0090273218,NAZARETH HOUSE,"2,186.88",15/07/2020
Delivery Units,Adults and Health,Other Agencies - Third Party P,0090273219,NAZARETH HOUSE,"2,186.88",15/07/2020
Delivery Units,Adults and Health,Other Agencies - Third Party P,0090273220,NAZARETH HOUSE,"2,350.08",15/07/2020
Delivery Units,Adults and Health,Other Agencies - Third Party P,0090273221,NAZARETH HOUSE,"2,186.88",15/07/2020
Delivery Units,Adults and Health,Other Agencies - Third Party P,0090273222,NAZARETH HOUSE,"2,285.28",15/07/2020
Delivery Units,Adults and Health,Other Agencies - Third Party P,0090273223,NAZARETH HOUSE,"2,186.88",15/07/2020
Delivery Units,Adults and Health,Other Agencies - Third Party P,0090273224,NAZARETH HOUSE,"2,186.88",15/07/2020
Delivery Units,Adults and Health,Other Agencies - Third Party P,0090273226,NAZARETH HOUSE,"2,650.40",15/07/2020
Delivery Units,Adults and Health,Other Agencies - Third Party P,0090273227,NAZARETH HOUSE,"2,186.88",15/07/2020
Delivery Units,Adults and Health,Other Agencies - Third Party P,0090273228,NAZARETH HOUSE,"2,458.20",15/07/2020
Delivery Units,Adults and Health,Other Agencies - Third Party P,0090273229,NAZARETH HOUSE,"2,350.08",15/07/2020
Delivery Units,Adults and Health,Other Agencies - Third Party P,0090273230,NAZARETH HOUSE,"2,186.88",15/07/2020
Delivery Units,Adults and Health,Other Agencies - Third Party P,0090273231,NAZARETH HOUSE,"2,186.88",15/07/2020
Delivery Units,Adults and Health,Other Agencies - Third Party P,0090273232,NAZARETH HOUSE,"2,186.88",15/07/2020
Delivery Units,Adults and Health,Other Agencies - Third Party P,0090273233,NAZARETH HOUSE,"2,350.08",15/07/2020
Delivery Units,Adults and Health,Other Agencies - Third Party P,0090273234,NAZARETH HOUSE,"2,186.88",15/07/2020
Delivery Units,Adults and Health,Other Agencies - Third Party P,0090273235,NAZARETH HOUSE,"2,186.88",15/07/2020
Delivery Units,Adults and Health,Other Agencies - Third Party P,0090273236,NAZARETH HOUSE,"2,186.88",15/07/2020
Delivery Units,Adults and Health,Other Agencies - Third Party P,0090273237,NAZARETH HOUSE,"2,186.88",15/07/2020
Delivery Units,Adults and Health,Other Agencies - Third Party P,0090273238,NAZARETH HOUSE,"2,186.88",15/07/2020
Delivery Units,Adults and Health,Other Agencies - Third Party P,0090273239,NAZARETH HOUSE,"2,350.08",15/07/2020
Delivery Units,Adults and Health,Other Agencies - Third Party P,0090273240,NAZARETH HOUSE,"2,186.88",15/07/2020
Delivery Units,Adults and Health,Other Agencies - Third Party P,0090273151,THE WOODSIDE HOME,"2,285.28",15/07/2020
Delivery Units,Adults and Health,Other Agencies - Third Party P,0090273152,THE WOODSIDE HOME,"2,458.20",15/07/2020
Delivery Units,Adults and Health,Other Agencies - Third Party P,0090273153,THE WOODSIDE HOME,"2,285.28",15/07/2020
Delivery Units,Adults and Health,Other Agencies - Third Party P,0090273154,THE WOODSIDE HOME,"2,285.28",15/07/2020
Delivery Units,Adults and Health,Other Agencies - Third Party P,0090273139,METHODIST HOMES FOR THE AGED,"2,631.76",15/07/2020
Delivery Units,Adults and Health,Other Agencies - Third Party P,0090273626,SYDMAR LODGE,"2,469.42",20/07/2020
Delivery Units,Adults and Health,Other Agencies - Third Party P,0090273627,SYDMAR LODGE,"4,871.43",20/07/2020
Delivery Units,Adults and Health,Other Agencies - Third Party P,0090273628,SYDMAR LODGE,"2,506.26",20/07/2020
Delivery Units,Adults and Health,Other Agencies - Third Party P,0090271437,THE LIMES RESIDENTIAL HOME,"2,304.00",09/07/2020
Delivery Units,Adults and Health,Other Agencies - Third Party P,0090271453,THE LIMES RESIDENTIAL HOME,"2,458.20",09/07/2020
Delivery Units,Adults and Health,Other Agencies - Third Party P,0090271487,THE LIMES RESIDENTIAL HOME,"3,000.00",09/07/2020
Delivery Units,Adults and Health,Other Agencies - Third Party P,0090271501,THE LIMES RESIDENTIAL HOME,"2,458.20",09/07/2020
Delivery Units,Adults and Health,Other Agencies - Third Party P,0090271502,THE LIMES RESIDENTIAL HOME,"2,458.20",09/07/2020
Delivery Units,Adults and Health,Other Agencies - Third Party P,0090271512,THE LIMES RESIDENTIAL HOME,"3,040.00",09/07/2020
Delivery Units,Adults and Health,Other Agencies - Third Party P,0090271514,THE LIMES RESIDENTIAL HOME,"2,357.14",09/07/2020
Delivery Units,Adults and Health,Other Agencies - Third Party P,0090271521,THE LIMES RESIDENTIAL HOME,"2,304.00",09/07/2020
Delivery Units,Adults and Health,Other Agencies - Third Party P,0090271530,THE LIMES RESIDENTIAL HOME,"2,458.20",09/07/2020
Delivery Units,Adults and Health,Other Agencies - Third Party P,0090271531,THE LIMES RESIDENTIAL HOME,"2,458.20",09/07/2020
Delivery Units,Adults and Health,Other Agencies - Third Party P,0090271534,THE LIMES RESIDENTIAL HOME,"2,458.20",09/07/2020
Delivery Units,Adults and Health,Other Agencies - Third Party P,0090271535,THE LIMES RESIDENTIAL HOME,"2,458.20",09/07/2020
Delivery Units,Adults and Health,Other Agencies - Third Party P,0090271539,THE LIMES RESIDENTIAL HOME,"2,458.20",09/07/2020
Delivery Units,Adults and Health,Other Agencies - Third Party P,0090271542,THE LIMES RESIDENTIAL HOME,"-3,346.30",09/07/2020
Delivery Units,Adults and Health,Other Agencies - Third Party P,0090271543,THE LIMES RESIDENTIAL HOME,"2,458.20",09/07/2020
Delivery Units,Adults and Health,Other Agencies - Third Party P,0090276087,THE LIMES RESIDENTIAL HOME,"2,304.00",30/07/2020
Delivery Units,Adults and Health,Other Agencies - Third Party P,0090276105,THE LIMES RESIDENTIAL HOME,"2,458.20",30/07/2020
Delivery Units,Adults and Health,Other Agencies - Third Party P,0090276132,THE LIMES RESIDENTIAL HOME,"2,458.20",30/07/2020
Delivery Units,Adults and Health,Other Agencies - Third Party P,0090276133,THE LIMES RESIDENTIAL HOME,"2,458.20",30/07/2020
Delivery Units,Adults and Health,Other Agencies - Third Party P,0090276143,THE LIMES RESIDENTIAL HOME,"3,040.00",30/07/2020
Delivery Units,Adults and Health,Other Agencies - Third Party P,0090276156,THE LIMES RESIDENTIAL HOME,"2,304.00",30/07/2020
Delivery Units,Adults and Health,Other Agencies - Third Party P,0090276165,THE LIMES RESIDENTIAL HOME,"2,458.20",30/07/2020
Delivery Units,Adults and Health,Other Agencies - Third Party P,0090276167,THE LIMES RESIDENTIAL HOME,"2,458.20",30/07/2020
Delivery Units,Adults and Health,Other Agencies - Third Party P,0090276170,THE LIMES RESIDENTIAL HOME,"2,458.20",30/07/2020
Delivery Units,Adults and Health,Other Agencies - Third Party P,0090276171,THE LIMES RESIDENTIAL HOME,"2,458.20",30/07/2020
Delivery Units,Adults and Health,Other Agencies - Third Party P,0090276175,THE LIMES RESIDENTIAL HOME,"2,458.20",30/07/2020
Delivery Units,Adults and Health,Other Agencies - Third Party P,0090276178,THE LIMES RESIDENTIAL HOME,"2,458.20",30/07/2020
Delivery Units,Adults and Health,Other Agencies - Third Party P,0090276208,THE LIMES RESIDENTIAL HOME,"3,000.00",30/07/2020
Delivery Units,Adults and Health,Other Agencies - Third Party P,0090272868,SPRINGDENE,"4,907.14",14/07/2020
Delivery Units,Adults and Health,Other Agencies - Third Party P,0090268919,WESTMINSTER HEALTH CARE LTD,"3,764.29",01/07/2020
Delivery Units,Adults and Health,Other Agencies - Third Party P,0090268920,WESTMINSTER HEALTH CARE LTD,"3,703.57",01/07/2020
Delivery Units,Adults and Health,Other Agencies - Third Party P,0090269450,WESTMINSTER HEALTH CARE LTD,"2,792.86",03/07/2020
Delivery Units,Adults and Health,Other Agencies - Third Party P,0090270926,BUPA CARE HOMES,"3,514.29",07/07/2020
Delivery Units,Adults and Health,Other Agencies - Third Party P,0090270927,BUPA CARE HOMES,"3,514.29",07/07/2020
Delivery Units,Adults and Health,Other Agencies - Third Party P,0090270928,BUPA CARE HOMES,"3,631.43",07/07/2020
Delivery Units,Adults and Health,Other Agencies - Third Party P,0090271144,BUPA CARE HOMES,"2,489.23",09/07/2020
Delivery Units,Adults and Health,Other Agencies - Third Party P,0090271145,BUPA CARE HOMES,"2,572.20",09/07/2020
Delivery Units,Adults and Health,Other Agencies - Third Party P,0090271169,BUPA CARE HOMES,"2,489.23",09/07/2020
Delivery Units,Adults and Health,Other Agencies - Third Party P,0090273150,BUPA CARE HOMES,"2,572.20",15/07/2020
Delivery Units,Adults and Health,Other Agencies - Third Party P,0090272832,ANASTASIA LODGE,"3,800.00",14/07/2020
Delivery Units,Adults and Health,Other Agencies - Third Party P,0090271427,HILTON LODGE LTD.,"2,880.00",09/07/2020
Delivery Units,Adults and Health,Other Agencies - Third Party P,0090271428,HILTON LODGE LTD.,"4,614.29",09/07/2020
Delivery Units,Adults and Health,Other Agencies - Third Party P,0090271429,HILTON LODGE LTD.,"3,800.00",09/07/2020
Delivery Units,Adults and Health,Other Agencies - Third Party P,0090268891,VENTRY RESIDENTIAL CARE LTD,964.29,01/07/2020
Delivery Units,Adults and Health,Other Agencies - Third Party P,0090270923,VENTRY RESIDENTIAL CARE LTD,"3,214.29",07/07/2020
Delivery Units,Adults and Health,Other Agencies - Third Party P,0090270924,VENTRY RESIDENTIAL CARE LTD,428.57,07/07/2020
Delivery Units,Adults and Health,Other Agencies - Third Party P,0090270925,VENTRY RESIDENTIAL CARE LTD,"3,321.43",07/07/2020
Delivery Units,Adults and Health,Other Agencies - Third Party P,0090271137,VENTRY RESIDENTIAL CARE LTD,857.14,09/07/2020
Delivery Units,Adults and Health,Other Agencies - Third Party P,0090271138,VENTRY RESIDENTIAL CARE LTD,"3,321.43",09/07/2020
Delivery Units,Adults and Health,Other Agencies - Third Party P,0090271158,VENTRY RESIDENTIAL CARE LTD,"3,214.29",09/07/2020
Delivery Units,Adults and Health,Other Agencies - Third Party P,0090276265,B & M CARE,"3,764.29",30/07/2020
Delivery Units,Adults and Health,Other Agencies - Third Party P,0090269597,SAGE NURSING HOME,"2,571.43",03/07/2020
Delivery Units,Adults and Health,Other Agencies - Third Party P,0090269599,SAGE NURSING HOME,"2,448.51",03/07/2020
Delivery Units,Adults and Health,Other Agencies - Third Party P,0090269600,SAGE NURSING HOME,"3,000.00",03/07/2020
Delivery Units,Adults and Health,Other Agencies - Third Party P,0090271403,EASTSIDE HOUSE CARE HOME,"3,580.00",09/07/2020
Delivery Units,Adults and Health,Other Agencies - Third Party P,0090273126,EASTSIDE HOUSE CARE HOME,"3,500.00",15/07/2020
Delivery Units,Adults and Health,Other Agencies - Third Party P,0090273807,APPLE TREE COURT CARE HOME,"3,429.66",21/07/2020
Delivery Units,Adults and Health,Other Agencies - Third Party P,0090273835,APPLE TREE COURT CARE HOME,"3,764.29",21/07/2020
Delivery Units,Adults and Health,Other Agencies - Third Party P,0090275713,APPLE TREE COURT CARE HOME,"3,319.03",27/07/2020
Delivery Units,Adults and Health,Other Agencies - Third Party P,0090271141,RMBI,"2,263.98",09/07/2020
Delivery Units,Adults and Health,Other Agencies - Third Party P,0090271142,RMBI,"2,339.44",09/07/2020
Delivery Units,Adults and Health,Other Agencies - Third Party P,0090271164,RMBI,"2,263.97",09/07/2020
Delivery Units,Adults and Health,Other Agencies - Third Party P,0090273141,SWANBOROUGH HOUSE,"4,121.27",15/07/2020
Delivery Units,Adults and Health,Other Agencies - Third Party P,0090271136,Ashfields Residential Care Home,"2,530.13",09/07/2020
Delivery Units,Adults and Health,Other Agencies - Third Party P,0090272829,AUTUMN GARDENS,"2,880.00",14/07/2020
Delivery Units,Adults and Health,Other Agencies - Third Party P,0090272833,AUTUMN GARDENS,"3,680.00",14/07/2020
Delivery Units,Adults and Health,Other Agencies - Third Party P,0090272834,AUTUMN GARDENS,"3,160.00",14/07/2020
Delivery Units,Adults and Health,Other Agencies - Third Party P,0090272839,AUTUMN GARDENS,"-1,144.29",14/07/2020
Delivery Units,Adults and Health,Other Agencies - Third Party P,0090271405,THE CHRISTIAN CARE TRUST,"2,458.20",09/07/2020
Delivery Units,Adults and Health,Other Agencies - Third Party P,0090271406,THE CHRISTIAN CARE TRUST,"2,458.20",09/07/2020
Delivery Units,Adults and Health,Other Agencies - Third Party P,0090276241,THE CHRISTIAN CARE TRUST,"2,458.20",30/07/2020
Delivery Units,Adults and Health,Other Agencies - Third Party P,0090276242,THE CHRISTIAN CARE TRUST,"2,458.20",30/07/2020
Delivery Units,Adults and Health,Other Agencies - Third Party P,0090275735,CARLTON COURT (TLC GROUP),"2,249.45",27/07/2020
Delivery Units,Adults and Health,Other Agencies - Third Party P,0090273155,WOODFIELD HOUSE,"15,080.00",15/07/2020
Delivery Units,Adults and Health,Other Agencies - Third Party P,0090273156,WOODFIELD HOUSE,"15,080.00",15/07/2020
Delivery Units,Adults and Health,Other Agencies - Third Party P,0090275547,ASHTON LODGE CARE CENTRE,"4,359.66",24/07/2020
Delivery Units,Adults and Health,Other Agencies - Third Party P,0090272269,LIVABILITY,"3,211.80",14/07/2020
Delivery Units,Adults and Health,Other Agencies - Third Party P,0090272270,LIVABILITY,"3,458.24",14/07/2020
Delivery Units,Adults and Health,Other Agencies - Third Party P,0090272274,LIVABILITY,"4,364.00",14/07/2020
Delivery Units,Adults and Health,Other Agencies - Third Party P,0090277147,THE BARNETGROUP LIMITED,"2,144.00",31/07/2020
Delivery Units,Adults and Health,Other Agencies - Third Party P,0090277148,THE BARNETGROUP LIMITED,"2,144.00",31/07/2020
Delivery Units,Adults and Health,Other Agencies - Third Party P,0090277149,THE BARNETGROUP LIMITED,"2,304.00",31/07/2020
Delivery Units,Adults and Health,Other Agencies - Third Party P,0090277150,THE BARNETGROUP LIMITED,"2,144.00",31/07/2020
Delivery Units,Adults and Health,Other Agencies - Third Party P,0090277151,THE BARNETGROUP LIMITED,"2,144.00",31/07/2020
Delivery Units,Adults and Health,Other Agencies - Third Party P,0090277152,THE BARNETGROUP LIMITED,"2,144.00",31/07/2020
Delivery Units,Adults and Health,Other Agencies - Third Party P,0090277154,THE BARNETGROUP LIMITED,"3,567.52",31/07/2020
Delivery Units,Adults and Health,Other Agencies - Third Party P,0090277155,THE BARNETGROUP LIMITED,"4,080.00",31/07/2020
Delivery Units,Adults and Health,Other Agencies - Third Party P,0090277156,THE BARNETGROUP LIMITED,0.04,31/07/2020
Delivery Units,Adults and Health,Other Agencies - Third Party P,0090277157,THE BARNETGROUP LIMITED,"2,144.00",31/07/2020
Delivery Units,Adults and Health,Other Agencies - Third Party P,0090277158,THE BARNETGROUP LIMITED,"-4,517.71",31/07/2020
Delivery Units,Adults and Health,Other Agencies - Third Party P,0090277159,THE BARNETGROUP LIMITED,-41.35,31/07/2020
Delivery Units,Adults and Health,Other Agencies - Third Party P,0090277161,THE BARNETGROUP LIMITED,"3,867.43",31/07/2020
Delivery Units,Adults and Health,Other Agencies - Third Party P,0090277162,THE BARNETGROUP LIMITED,"3,785.14",31/07/2020
Delivery Units,Adults and Health,Other Agencies - Third Party P,0090277163,THE BARNETGROUP LIMITED,"2,144.00",31/07/2020
Delivery Units,Adults and Health,Other Agencies - Third Party P,0090277164,THE BARNETGROUP LIMITED,"2,144.00",31/07/2020
Delivery Units,Adults and Health,Other Agencies - Third Party P,0090277166,THE BARNETGROUP LIMITED,"2,304.00",31/07/2020
Delivery Units,Adults and Health,Other Agencies - Third Party P,0090277167,THE BARNETGROUP LIMITED,"2,304.00",31/07/2020
Delivery Units,Adults and Health,Other Agencies - Third Party P,0090277168,THE BARNETGROUP LIMITED,"2,304.00",31/07/2020
Delivery Units,Adults and Health,Other Agencies - Third Party P,0090277169,THE BARNETGROUP LIMITED,"2,304.00",31/07/2020
Delivery Units,Adults and Health,Other Agencies - Third Party P,0090277170,THE BARNETGROUP LIMITED,"2,144.00",31/07/2020
Delivery Units,Adults and Health,Other Agencies - Third Party P,0090277171,THE BARNETGROUP LIMITED,"2,144.00",31/07/2020
Delivery Units,Adults and Health,Other Agencies - Third Party P,0090277172,THE BARNETGROUP LIMITED,"2,144.00",31/07/2020
Delivery Units,Adults and Health,Other Agencies - Third Party P,0090277173,THE BARNETGROUP LIMITED,"2,144.00",31/07/2020
Delivery Units,Adults and Health,Other Agencies - Third Party P,0090277174,THE BARNETGROUP LIMITED,"2,144.00",31/07/2020
Delivery Units,Adults and Health,Other Agencies - Third Party P,0090277175,THE BARNETGROUP LIMITED,"2,144.00",31/07/2020
Delivery Units,Adults and Health,Other Agencies - Third Party P,0090277176,THE BARNETGROUP LIMITED,"2,144.00",31/07/2020
Delivery Units,Adults and Health,Other Agencies - Third Party P,0090277178,THE BARNETGROUP LIMITED,"2,304.00",31/07/2020
Delivery Units,Adults and Health,Other Agencies - Third Party P,0090277179,THE BARNETGROUP LIMITED,"3,000.00",31/07/2020
Delivery Units,Adults and Health,Other Agencies - Third Party P,0090277180,THE BARNETGROUP LIMITED,"4,062.40",31/07/2020
Delivery Units,Adults and Health,Other Agencies - Third Party P,0090277181,THE BARNETGROUP LIMITED,0.04,31/07/2020
Delivery Units,Adults and Health,Other Agencies - Third Party P,0090277182,THE BARNETGROUP LIMITED,"2,304.00",31/07/2020
Delivery Units,Adults and Health,Other Agencies - Third Party P,0090277183,THE BARNETGROUP LIMITED,"2,304.00",31/07/2020
Delivery Units,Adults and Health,Other Agencies - Third Party P,0090277184,THE BARNETGROUP LIMITED,"9,164.00",31/07/2020
Delivery Units,Adults and Health,Other Agencies - Third Party P,0090277185,THE BARNETGROUP LIMITED,"2,304.00",31/07/2020
Delivery Units,Adults and Health,Other Agencies - Third Party P,0090277188,THE BARNETGROUP LIMITED,"5,430.86",31/07/2020
Delivery Units,Adults and Health,Other Agencies - Third Party P,0090277189,THE BARNETGROUP LIMITED,"4,278.86",31/07/2020
Delivery Units,Adults and Health,Other Agencies - Third Party P,0090277191,THE BARNETGROUP LIMITED,"2,304.00",31/07/2020
Delivery Units,Adults and Health,Other Agencies - Third Party P,0090277192,THE BARNETGROUP LIMITED,"2,304.00",31/07/2020
Delivery Units,Adults and Health,Other Agencies - Third Party P,0090277193,THE BARNETGROUP LIMITED,"2,304.00",31/07/2020
Delivery Units,Adults and Health,Other Agencies - Third Party P,0090277195,THE BARNETGROUP LIMITED,"2,304.00",31/07/2020
Delivery Units,Adults and Health,Other Agencies - Third Party P,0090277196,THE BARNETGROUP LIMITED,"2,304.00",31/07/2020
Delivery Units,Adults and Health,Other Agencies - Third Party P,0090277197,THE BARNETGROUP LIMITED,"2,144.00",31/07/2020
Delivery Units,Adults and Health,Other Agencies - Third Party P,0090277198,THE BARNETGROUP LIMITED,"2,144.00",31/07/2020
Delivery Units,Adults and Health,Other Agencies - Third Party P,0090277199,THE BARNETGROUP LIMITED,"2,304.00",31/07/2020
Delivery Units,Adults and Health,Other Agencies - Third Party P,0090277200,THE BARNETGROUP LIMITED,"2,304.00",31/07/2020
Delivery Units,Adults and Health,Other Agencies - Third Party P,0090277201,THE BARNETGROUP LIMITED,"2,694.00",31/07/2020
Delivery Units,Adults and Health,Other Agencies - Third Party P,0090277202,THE BARNETGROUP LIMITED,"39,811.62",31/07/2020
Delivery Units,Adults and Health,Other Agencies - Third Party P,0090277203,THE BARNETGROUP LIMITED,"2,144.00",31/07/2020
Delivery Units,Adults and Health,Other Agencies - Third Party P,0090277204,THE BARNETGROUP LIMITED,"2,304.00",31/07/2020
Delivery Units,Adults and Health,Other Agencies - Third Party P,0090277205,THE BARNETGROUP LIMITED,"2,304.00",31/07/2020
Delivery Units,Adults and Health,Other Agencies - Third Party P,0090277206,THE BARNETGROUP LIMITED,"2,304.00",31/07/2020
Delivery Units,Adults and Health,Other Agencies - Third Party P,0090277207,THE BARNETGROUP LIMITED,"2,144.00",31/07/2020
Delivery Units,Adults and Health,Other Agencies - Third Party P,0090277208,THE BARNETGROUP LIMITED,"20,489.14",31/07/2020
Delivery Units,Adults and Health,Other Agencies - Third Party P,0090277210,THE BARNETGROUP LIMITED,"2,144.00",31/07/2020
Delivery Units,Adults and Health,Other Agencies - Third Party P,0090277213,THE BARNETGROUP LIMITED,"2,144.00",31/07/2020
Delivery Units,Adults and Health,Other Agencies - Third Party P,0090277214,THE BARNETGROUP LIMITED,"2,144.00",31/07/2020
Delivery Units,Adults and Health,Other Agencies - Third Party P,0090277215,THE BARNETGROUP LIMITED,"2,304.00",31/07/2020
Delivery Units,Adults and Health,Other Agencies - Third Party P,0090277216,THE BARNETGROUP LIMITED,"2,304.00",31/07/2020
Delivery Units,Adults and Health,Other Agencies - Third Party P,0090277217,THE BARNETGROUP LIMITED,"2,144.00",31/07/2020
Delivery Units,Adults and Health,Other Agencies - Third Party P,0090277218,THE BARNETGROUP LIMITED,"2,144.00",31/07/2020
Delivery Units,Adults and Health,Other Agencies - Third Party P,0090277219,THE BARNETGROUP LIMITED,"2,144.00",31/07/2020
Delivery Units,Adults and Health,Other Agencies - Third Party P,0090277220,THE BARNETGROUP LIMITED,"2,144.00",31/07/2020
Delivery Units,Adults and Health,Other Agencies - Third Party P,0090277222,THE BARNETGROUP LIMITED,"2,144.00",31/07/2020
Delivery Units,Adults and Health,Other Agencies - Third Party P,0090277223,THE BARNETGROUP LIMITED,"2,304.00",31/07/2020
Delivery Units,Adults and Health,Other Agencies - Third Party P,0090277224,THE BARNETGROUP LIMITED,"2,304.00",31/07/2020
Delivery Units,Adults and Health,Other Agencies - Third Party P,0090277225,THE BARNETGROUP LIMITED,"2,144.00",31/07/2020
Delivery Units,Adults and Health,Other Agencies - Third Party P,0090277227,THE BARNETGROUP LIMITED,-459.43,31/07/2020
Delivery Units,Adults and Health,Other Agencies - Third Party P,0090277228,THE BARNETGROUP LIMITED,"2,184.00",31/07/2020
Delivery Units,Adults and Health,Other Agencies - Third Party P,0090277229,THE BARNETGROUP LIMITED,"2,144.00",31/07/2020
Delivery Units,Adults and Health,Other Agencies - Third Party P,0090277230,THE BARNETGROUP LIMITED,"3,867.43",31/07/2020
Delivery Units,Adults and Health,Other Agencies - Third Party P,0090277231,THE BARNETGROUP LIMITED,"5,513.14",31/07/2020
Delivery Units,Adults and Health,Other Agencies - Third Party P,0090277232,THE BARNETGROUP LIMITED,"4,747.43",31/07/2020
Delivery Units,Adults and Health,Other Agencies - Third Party P,0090271143,AARON COURT CARE HOME,"3,574.85",09/07/2020
Delivery Units,Adults and Health,Other Agencies - Third Party P,0090271414,Z & M CARE LTD,"2,600.00",09/07/2020
Delivery Units,Adults and Health,Other Agencies - Third Party P,0090275769,Belmont Lodge Care Centre,"2,418.04",27/07/2020
Delivery Units,Adults and Health,Other Agencies - Third Party P,0090275730,Karuna Manor,"4,207.14",27/07/2020
Delivery Units,Adults and Health,Other Agencies - Third Party P,0090273142,Sonnet Care Homes (Essex) Ltd,"4,871.43",15/07/2020
Delivery Units,Adults and Health,Other Agencies - Third Party P,0090271412,GCH (Hertfordshire) Ltd T/A,"2,414.68",09/07/2020
Delivery Units,Adults and Health,Other Agencies - Third Party P,0090275203,Heathcote Care Home,"4,178.58",22/07/2020
Delivery Units,Adults and Health,Other Agencies - Third Party P,0090275204,Heathcote Care Home,"-3,064.16",22/07/2020
Delivery Units,Adults and Health,Other Agencies - Third Party P,0090275205,Heathcote Care Home,"4,317.85",22/07/2020
Delivery Units,Adults and Health,Other Agencies - Third Party P,0090275729,Heathcote Care Home,357.14,27/07/2020
Delivery Units,Adults and Health,Other Agencies - Third Party P,0090273612,GCH (North London) t/a The Tudors,"2,300.00",20/07/2020
Delivery Units,Adults and Health,Other Agencies - Third Party P,0090271159,Wilton House Ltd,"2,536.46",09/07/2020
Delivery Units,Adults and Health,Other Agencies - Third Party P,0090271160,Wilton House Ltd,"2,527.24",09/07/2020
Delivery Units,Adults and Health,Other Agencies - Third Party P,0090273622,Wilton House Ltd,"2,724.46",20/07/2020
Delivery Units,Adults and Health,Other Agencies - Third Party P,0090273623,Wilton House Ltd,"2,621.01",20/07/2020
Delivery Units,Adults and Health,Other Agencies - Third Party P,0090273624,Wilton House Ltd,"2,611.48",20/07/2020
Delivery Units,Adults and Health,Other Agencies - Third Party P,0090273611,Wordsworth House Care Home,"2,657.14",20/07/2020
Delivery Units,Adults and Health,Other Agencies - Third Party P,0090272830,A.H.J. David Ltd t/a Florence House,"3,200.00",14/07/2020
Delivery Units,Adults and Health,Other Agencies - Third Party P,0090270915,Safequarter South Ltd,"2,517.94",07/07/2020
Delivery Units,Adults and Health,Other Agencies - Third Party P,0090270916,Safequarter South Ltd,"2,601.87",07/07/2020
Delivery Units,Adults and Health,Other Agencies - Third Party P,0090270917,Safequarter South Ltd,"2,517.94",07/07/2020
Delivery Units,Adults and Health,Direct Transfer Payments to So,0090274318,REDACTED - PERSONAL DATA,"1,881.00",21/07/2020
Delivery Units,Adults and Health,Direct Transfer Payments to So,0090274418,REDACTED - PERSONAL DATA,"2,931.20",21/07/2020
Delivery Units,Adults and Health,Direct Transfer Payments to So,0090274525,REDACTED - PERSONAL DATA,"3,846.40",21/07/2020
Delivery Units,Adults and Health,Direct Transfer Payments to So,0090274308,REDACTED - PERSONAL DATA,"3,834.44",21/07/2020
Delivery Units,Adults and Health,Direct Transfer Payments to So,0090274951,REDACTED - PERSONAL DATA,579.24,21/07/2020
Delivery Units,Adults and Health,Direct Transfer Payments to So,0090274383,REDACTED - PERSONAL DATA,458.88,21/07/2020
Delivery Units,Adults and Health,Direct Transfer Payments to So,0090274988,REDACTED - PERSONAL DATA,"1,560.72",21/07/2020
Delivery Units,Adults and Health,Direct Transfer Payments to So,0090274347,REDACTED - PERSONAL DATA,"2,638.76",21/07/2020
Delivery Units,Adults and Health,Direct Transfer Payments to So,0090275110,REDACTED - PERSONAL DATA,"1,292.32",21/07/2020
Delivery Units,Adults and Health,Direct Transfer Payments to So,0090275111,REDACTED - PERSONAL DATA,233.88,21/07/2020
Delivery Units,Adults and Health,Direct Transfer Payments to So,0090274388,REDACTED - PERSONAL DATA,795.56,21/07/2020
Delivery Units,Adults and Health,Direct Transfer Payments to So,0090274368,REDACTED - PERSONAL DATA,852.76,21/07/2020
Delivery Units,Adults and Health,Direct Transfer Payments to So,0090274448,REDACTED - PERSONAL DATA,889.48,21/07/2020
Delivery Units,Adults and Health,Direct Transfer Payments to So,0090274295,REDACTED - PERSONAL DATA,611.40,21/07/2020
Delivery Units,Adults and Health,Direct Transfer Payments to So,0090270079,REDACTED - PERSONAL DATA,"5,465.00",06/07/2020
Delivery Units,Adults and Health,Direct Transfer Payments to So,0090275053,REDACTED - PERSONAL DATA,349.12,21/07/2020
Delivery Units,Adults and Health,Direct Transfer Payments to So,0090274975,REDACTED - PERSONAL DATA,377.88,21/07/2020
Delivery Units,Adults and Health,Direct Transfer Payments to So,0090274279,REDACTED - PERSONAL DATA,"2,056.84",21/07/2020
Delivery Units,Adults and Health,Direct Transfer Payments to So,0090274458,REDACTED - PERSONAL DATA,"1,143.16",21/07/2020
Delivery Units,Adults and Health,Direct Transfer Payments to So,0090274534,REDACTED - PERSONAL DATA,"1,238.92",21/07/2020
Delivery Units,Adults and Health,Direct Transfer Payments to So,0090275104,REDACTED - PERSONAL DATA,225.90,21/07/2020
Delivery Units,Adults and Health,Direct Transfer Payments to So,0090274712,REDACTED - PERSONAL DATA,"1,497.04",21/07/2020
Delivery Units,Adults and Health,Direct Transfer Payments to So,0090274830,REDACTED - PERSONAL DATA,490.04,21/07/2020
Delivery Units,Adults and Health,Direct Transfer Payments to So,0090274466,REDACTED - PERSONAL DATA,975.36,21/07/2020
Delivery Units,Adults and Health,Direct Transfer Payments to So,0090274953,REDACTED - PERSONAL DATA,800.00,21/07/2020
Delivery Units,Adults and Health,Direct Transfer Payments to So,0090274474,REDACTED - PERSONAL DATA,"2,349.16",21/07/2020
Delivery Units,Adults and Health,Direct Transfer Payments to So,0090274423,REDACTED - PERSONAL DATA,480.80,21/07/2020
Delivery Units,Adults and Health,Direct Transfer Payments to So,0090274569,REDACTED - PERSONAL DATA,"3,444.00",21/07/2020
Delivery Units,Adults and Health,Direct Transfer Payments to So,0090274424,REDACTED - PERSONAL DATA,451.92,21/07/2020
Delivery Units,Adults and Health,Direct Transfer Payments to So,0090274857,REDACTED - PERSONAL DATA,649.08,21/07/2020
Delivery Units,Adults and Health,Direct Transfer Payments to So,0090274488,REDACTED - PERSONAL DATA,348.00,21/07/2020
Delivery Units,Adults and Health,Direct Transfer Payments to So,0090275083,REDACTED - PERSONAL DATA,880.00,21/07/2020
Delivery Units,Adults and Health,Direct Transfer Payments to So,0090274489,REDACTED - PERSONAL DATA,547.08,21/07/2020
Delivery Units,Adults and Health,Direct Transfer Payments to So,0090274429,REDACTED - PERSONAL DATA,"1,284.04",21/07/2020
Delivery Units,Adults and Health,Direct Transfer Payments to So,0090274577,REDACTED - PERSONAL DATA,"1,560.72",21/07/2020
Delivery Units,Adults and Health,Fees and Charges,0090277237,REDACTED - PERSONAL DATA,-331.08,31/07/2020
Delivery Units,Adults and Health,Direct Transfer Payments to So,0090275055,REDACTED - PERSONAL DATA,"2,316.96",21/07/2020
Delivery Units,Adults and Health,Direct Transfer Payments to So,0090268931,REDACTED - PERSONAL DATA,"2,027.36",01/07/2020
Delivery Units,Adults and Health,Direct Transfer Payments to So,0090268944,REDACTED - PERSONAL DATA,"2,027.36",01/07/2020
Delivery Units,Adults and Health,Direct Transfer Payments to So,0090268951,REDACTED - PERSONAL DATA,"-2,569.70",01/07/2020
Delivery Units,Adults and Health,Direct Transfer Payments to So,0090274919,REDACTED - PERSONAL DATA,"1,508.08",21/07/2020
Delivery Units,Adults and Health,Direct Transfer Payments to So,0090271711,REDACTED - PERSONAL DATA,315.87,09/07/2020
Delivery Units,Adults and Health,Direct Transfer Payments to So,0090274436,REDACTED - PERSONAL DATA,738.52,21/07/2020
Delivery Units,Adults and Health,Direct Transfer Payments to So,0090274868,REDACTED - PERSONAL DATA,360.60,21/07/2020
Delivery Units,Adults and Health,Direct Transfer Payments to So,0090274575,REDACTED - PERSONAL DATA,"4,022.52",21/07/2020
Delivery Units,Adults and Health,Direct Transfer Payments to So,0090274442,REDACTED - PERSONAL DATA,844.40,21/07/2020
Delivery Units,Adults and Health,Direct Transfer Payments to So,0090274504,REDACTED - PERSONAL DATA,960.00,21/07/2020
Delivery Units,Adults and Health,Direct Transfer Payments to So,0090274874,REDACTED - PERSONAL DATA,"2,066.00",21/07/2020
Delivery Units,Adults and Health,Direct Transfer Payments to So,0090270933,REDACTED - PERSONAL DATA,"4,051.49",09/07/2020
Delivery Units,Adults and Health,Direct Transfer Payments to So,0090274875,REDACTED - PERSONAL DATA,"2,772.00",21/07/2020
Delivery Units,Adults and Health,Direct Transfer Payments to So,0090274876,REDACTED - PERSONAL DATA,231.40,21/07/2020
Delivery Units,Adults and Health,Direct Transfer Payments to So,0090274453,REDACTED - PERSONAL DATA,478.48,21/07/2020
Delivery Units,Adults and Health,Direct Transfer Payments to So,0090274954,REDACTED - PERSONAL DATA,944.00,21/07/2020
Delivery Units,Adults and Health,Direct Transfer Payments to So,0090274942,REDACTED - PERSONAL DATA,"2,400.00",21/07/2020
Delivery Units,Adults and Health,Direct Transfer Payments to So,0090274939,REDACTED - PERSONAL DATA,772.32,21/07/2020
Delivery Units,Adults and Health,Fees and Charges,0090274512,REDACTED - PERSONAL DATA,-257.60,21/07/2020
Delivery Units,Adults and Health,Direct Transfer Payments to So,0090275084,REDACTED - PERSONAL DATA,996.92,21/07/2020
Delivery Units,Adults and Health,Fees and Charges,0090275106,REDACTED - PERSONAL DATA,47.37,21/07/2020
Delivery Units,Adults and Health,Direct Transfer Payments to So,0090274964,REDACTED - PERSONAL DATA,"4,000.00",21/07/2020
Delivery Units,Adults and Health,Direct Transfer Payments to So,0090270931,REDACTED - PERSONAL DATA,862.20,09/07/2020
Delivery Units,Adults and Health,Direct Transfer Payments to So,0090274581,REDACTED - PERSONAL DATA,136.00,21/07/2020
Delivery Units,Adults and Health,Direct Transfer Payments to So,0090274949,REDACTED - PERSONAL DATA,"4,608.04",21/07/2020
Delivery Units,Adults and Health,Direct Transfer Payments to So,0090275020,REDACTED - PERSONAL DATA,"3,480.00",21/07/2020
Delivery Units,Adults and Health,Direct Transfer Payments to So,0090274592,REDACTED - PERSONAL DATA,"1,351.56",21/07/2020
Delivery Units,Adults and Health,Direct Transfer Payments to So,0090274643,REDACTED - PERSONAL DATA,589.68,21/07/2020
Delivery Units,Adults and Health,Direct Transfer Payments to So,0090274647,REDACTED - PERSONAL DATA,"2,960.56",21/07/2020
Delivery Units,Adults and Health,Direct Transfer Payments to So,0090274967,REDACTED - PERSONAL DATA,"1,470.40",21/07/2020
Delivery Units,Adults and Health,Direct Transfer Payments to So,0090274653,REDACTED - PERSONAL DATA,730.92,21/07/2020
Delivery Units,Adults and Health,Direct Transfer Payments to So,0090274658,REDACTED - PERSONAL DATA,"1,346.12",21/07/2020
Delivery Units,Adults and Health,Direct Transfer Payments to So,0090274663,REDACTED - PERSONAL DATA,"1,238.92",21/07/2020
Delivery Units,Adults and Health,Direct Transfer Payments to So,0090274607,REDACTED - PERSONAL DATA,903.92,21/07/2020
Delivery Units,Adults and Health,Direct Transfer Payments to So,0090275041,REDACTED - PERSONAL DATA,482.72,21/07/2020
Delivery Units,Adults and Health,Direct Transfer Payments to So,0090274612,REDACTED - PERSONAL DATA,"1,238.92",21/07/2020
Delivery Units,Adults and Health,Direct Transfer Payments to So,0090270929,REDACTED - PERSONAL DATA,"2,403.17",09/07/2020
Delivery Units,Adults and Health,Direct Transfer Payments to So,0090270934,REDACTED - PERSONAL DATA,"-2,250.41",09/07/2020
Delivery Units,Adults and Health,Direct Transfer Payments to So,0090275049,REDACTED - PERSONAL DATA,"1,194.24",21/07/2020
Delivery Units,Adults and Health,Direct Transfer Payments to So,0090275115,REDACTED - PERSONAL DATA,"1,155.84",21/07/2020
Delivery Units,Adults and Health,Direct Transfer Payments to So,0090274623,REDACTED - PERSONAL DATA,"3,000.00",21/07/2020
Delivery Units,Adults and Health,Direct Transfer Payments to So,0090274991,REDACTED - PERSONAL DATA,"2,843.24",21/07/2020
Delivery Units,Adults and Health,Direct Transfer Payments to So,0090274618,REDACTED - PERSONAL DATA,"2,751.32",21/07/2020
Delivery Units,Adults and Health,Direct Transfer Payments to So,0090274993,REDACTED - PERSONAL DATA,"2,781.72",21/07/2020
Delivery Units,Adults and Health,Direct Transfer Payments to So,0090274684,REDACTED - PERSONAL DATA,586.96,21/07/2020
Delivery Units,Adults and Health,Direct Transfer Payments to So,0090275086,REDACTED - PERSONAL DATA,"2,252.60",21/07/2020
Delivery Units,Adults and Health,Direct Transfer Payments to So,0090275058,REDACTED - PERSONAL DATA,"2,331.60",21/07/2020
Delivery Units,Adults and Health,Direct Transfer Payments to So,0090274995,REDACTED - PERSONAL DATA,"1,802.08",21/07/2020
Delivery Units,Adults and Health,Direct Transfer Payments to So,0090275061,REDACTED - PERSONAL DATA,450.52,21/07/2020
Delivery Units,Adults and Health,Direct Transfer Payments to So,0090274718,REDACTED - PERSONAL DATA,"3,857.92",21/07/2020
Delivery Units,Adults and Health,Direct Transfer Payments to So,0090270932,REDACTED - PERSONAL DATA,"1,491.99",09/07/2020
Delivery Units,Adults and Health,Fees and Charges,0090275101,REDACTED - PERSONAL DATA,499.61,21/07/2020
Delivery Units,Adults and Health,Direct Transfer Payments to So,0090275062,REDACTED - PERSONAL DATA,"1,350.80",21/07/2020
Delivery Units,Adults and Health,Direct Transfer Payments to So,0090275069,REDACTED - PERSONAL DATA,804.52,21/07/2020
Delivery Units,Adults and Health,Direct Transfer Payments to So,0090275004,REDACTED - PERSONAL DATA,"1,344.00",21/07/2020
Delivery Units,Adults and Health,Direct Transfer Payments to So,0090277112,REDACTED - PERSONAL DATA,664.30,31/07/2020
Delivery Units,Adults and Health,Direct Transfer Payments to So,0090275008,REDACTED - PERSONAL DATA,"1,122.00",21/07/2020
Delivery Units,Adults and Health,Direct Transfer Payments to So,0090275015,REDACTED - PERSONAL DATA,901.04,21/07/2020
Delivery Units,Adults and Health,Direct Transfer Payments to So,0090274690,REDACTED - PERSONAL DATA,193.08,21/07/2020
Delivery Units,Adults and Health,Direct Transfer Payments to So,0090275080,REDACTED - PERSONAL DATA,560.00,21/07/2020
Delivery Units,Adults and Health,Direct Transfer Payments to So,0090274735,REDACTED - PERSONAL DATA,273.20,21/07/2020
Delivery Units,Adults and Health,Direct Transfer Payments to So,0090275066,REDACTED - PERSONAL DATA,"1,802.08",21/07/2020
Delivery Units,Adults and Health,Direct Transfer Payments to So,0090274693,REDACTED - PERSONAL DATA,"2,260.00",21/07/2020
Delivery Units,Adults and Health,Fees and Charges,0090274736,REDACTED - PERSONAL DATA,-602.24,21/07/2020
Delivery Units,Adults and Health,Direct Transfer Payments to So,0090275085,REDACTED - PERSONAL DATA,"1,360.88",21/07/2020
Delivery Units,Adults and Health,Direct Transfer Payments to So,0090275670,REDACTED - PERSONAL DATA,"7,229.56",27/07/2020
Delivery Units,Adults and Health,Direct Transfer Payments to So,0090275082,REDACTED - PERSONAL DATA,396.00,21/07/2020
Delivery Units,Adults and Health,Direct Transfer Payments to So,0090274737,REDACTED - PERSONAL DATA,"3,218.00",21/07/2020
Delivery Units,Adults and Health,Direct Transfer Payments to So,0090275072,REDACTED - PERSONAL DATA,648.16,21/07/2020
Delivery Units,Adults and Health,Direct Transfer Payments to So,0090275088,REDACTED - PERSONAL DATA,346.64,21/07/2020
Delivery Units,Adults and Health,Direct Transfer Payments to So,0090275025,REDACTED - PERSONAL DATA,888.20,21/07/2020
Delivery Units,Adults and Health,Fees and Charges,0090274222,REDACTED - PERSONAL DATA,-300.52,21/07/2020
Delivery Units,Adults and Health,Direct Transfer Payments to So,0090275027,REDACTED - PERSONAL DATA,975.28,21/07/2020
Delivery Units,Adults and Health,Direct Transfer Payments to So,0090275091,REDACTED - PERSONAL DATA,561.48,21/07/2020
Delivery Units,Adults and Health,Direct Transfer Payments to So,0090268937,REDACTED - PERSONAL DATA,"1,403.52",01/07/2020
Delivery Units,Adults and Health,Direct Transfer Payments to So,0090268943,REDACTED - PERSONAL DATA,770.56,01/07/2020
Delivery Units,Adults and Health,Fees and Charges,0090269071,REDACTED - PERSONAL DATA,-403.24,01/07/2020
Delivery Units,Adults and Health,Direct Transfer Payments to So,0090268938,REDACTED - PERSONAL DATA,"3,723.69",01/07/2020
Delivery Units,Adults and Health,Direct Transfer Payments to So,0090268946,REDACTED - PERSONAL DATA,965.40,01/07/2020
Delivery Units,Adults and Health,Fees and Charges,0090269196,REDACTED - PERSONAL DATA,-298.96,01/07/2020
Delivery Units,Adults and Health,Direct Transfer Payments to So,0090268935,REDACTED - PERSONAL DATA,817.74,01/07/2020
Delivery Units,Adults and Health,Direct Transfer Payments to So,0090269575,REDACTED - PERSONAL DATA,363.44,03/07/2020
Delivery Units,Adults and Health,Fees and Charges,0090269576,REDACTED - PERSONAL DATA,-108.78,03/07/2020
Delivery Units,Adults and Health,Direct Transfer Payments to So,0090270075,REDACTED - PERSONAL DATA,"4,242.85",06/07/2020
Delivery Units,Adults and Health,Direct Transfer Payments to So,0090270076,REDACTED - PERSONAL DATA,"3,600.00",06/07/2020
Delivery Units,Adults and Health,Fees and Charges,0090270084,REDACTED - PERSONAL DATA,-699.39,06/07/2020
Delivery Units,Adults and Health,Fees and Charges,0090271705,REDACTED - PERSONAL DATA,0.05,09/07/2020
Delivery Units,Adults and Health,Direct Transfer Payments to So,0090275093,REDACTED - PERSONAL DATA,"1,013.68",21/07/2020
Delivery Units,Adults and Health,Direct Transfer Payments to So,0090275672,REDACTED - PERSONAL DATA,"3,145.58",27/07/2020
Delivery Units,Adults and Health,Fees and Charges,0090271704,REDACTED - PERSONAL DATA,"1,388.77",09/07/2020
Delivery Units,Adults and Health,Direct Transfer Payments to So,0090275666,REDACTED - PERSONAL DATA,384.64,27/07/2020
Delivery Units,Adults and Health,Fees and Charges,0090277115,REDACTED - PERSONAL DATA,-657.77,31/07/2020
Delivery Units,Adults and Health,Other Agencies - Third Party P,0090275787,WESTMINSTER HOMECARE LTD,255.81,27/07/2020
Delivery Units,Adults and Health,Other Agencies - Third Party P,0090275788,WESTMINSTER HOMECARE LTD,105.40,27/07/2020
Delivery Units,Adults and Health,Other Agencies - Third Party P,0090275789,WESTMINSTER HOMECARE LTD,147.56,27/07/2020
Delivery Units,Adults and Health,Other Agencies - Third Party P,0090275790,WESTMINSTER HOMECARE LTD,118.02,27/07/2020
Delivery Units,Adults and Health,Other Agencies - Third Party P,0090275792,WESTMINSTER HOMECARE LTD,198.14,27/07/2020
Delivery Units,Adults and Health,Other Agencies - Third Party P,0090275793,WESTMINSTER HOMECARE LTD,84.07,27/07/2020
Delivery Units,Adults and Health,Other Agencies - Third Party P,0090275794,WESTMINSTER HOMECARE LTD,353.42,27/07/2020
Delivery Units,Adults and Health,Other Agencies - Third Party P,0090275797,WESTMINSTER HOMECARE LTD,168.10,27/07/2020
Delivery Units,Adults and Health,Other Agencies - Third Party P,0090275799,WESTMINSTER HOMECARE LTD,143.34,27/07/2020
Delivery Units,Adults and Health,Other Agencies - Third Party P,0090275800,WESTMINSTER HOMECARE LTD,50.58,27/07/2020
Delivery Units,Adults and Health,Other Agencies - Third Party P,0090275801,WESTMINSTER HOMECARE LTD,206.57,27/07/2020
Delivery Units,Adults and Health,Other Agencies - Third Party P,0090275802,WESTMINSTER HOMECARE LTD,261.36,27/07/2020
Delivery Units,Adults and Health,Other Agencies - Third Party P,0090275803,WESTMINSTER HOMECARE LTD,527.00,27/07/2020
Delivery Units,Adults and Health,Other Agencies - Third Party P,0090275804,WESTMINSTER HOMECARE LTD,109.09,27/07/2020
Delivery Units,Adults and Health,Other Agencies - Third Party P,0090275805,WESTMINSTER HOMECARE LTD,82.67,27/07/2020
Delivery Units,Adults and Health,Other Agencies - Third Party P,0090275807,WESTMINSTER HOMECARE LTD,8.43,27/07/2020
Delivery Units,Adults and Health,Other Agencies - Third Party P,0090275808,WESTMINSTER HOMECARE LTD,265.58,27/07/2020
Delivery Units,Adults and Health,Other Agencies - Third Party P,0090275809,WESTMINSTER HOMECARE LTD,265.58,27/07/2020
Delivery Units,Adults and Health,Other Agencies - Third Party P,0090275811,WESTMINSTER HOMECARE LTD,25.29,27/07/2020
Delivery Units,Adults and Health,Other Agencies - Third Party P,0090275812,WESTMINSTER HOMECARE LTD,59.01,27/07/2020
Delivery Units,Adults and Health,Other Agencies - Third Party P,0090275813,WESTMINSTER HOMECARE LTD,413.21,27/07/2020
Delivery Units,Adults and Health,Other Agencies - Third Party P,0090275814,WESTMINSTER HOMECARE LTD,88.55,27/07/2020
Delivery Units,Adults and Health,Other Agencies - Third Party P,0090275815,WESTMINSTER HOMECARE LTD,278.30,27/07/2020
Delivery Units,Adults and Health,Other Agencies - Third Party P,0090275816,WESTMINSTER HOMECARE LTD,63.25,27/07/2020
Delivery Units,Adults and Health,Other Agencies - Third Party P,0090275818,WESTMINSTER HOMECARE LTD,147.56,27/07/2020
Delivery Units,Adults and Health,Other Agencies - Third Party P,0090275820,WESTMINSTER HOMECARE LTD,316.17,27/07/2020
Delivery Units,Adults and Health,Other Agencies - Third Party P,0090275821,WESTMINSTER HOMECARE LTD,80.10,27/07/2020
Delivery Units,Adults and Health,Other Agencies - Third Party P,0090275823,WESTMINSTER HOMECARE LTD,209.98,27/07/2020
Delivery Units,Adults and Health,Other Agencies - Third Party P,0090275824,WESTMINSTER HOMECARE LTD,105.40,27/07/2020
Delivery Units,Adults and Health,Other Agencies - Third Party P,0090275825,WESTMINSTER HOMECARE LTD,143.34,27/07/2020
Delivery Units,Adults and Health,Other Agencies - Third Party P,0090275827,WESTMINSTER HOMECARE LTD,16.87,27/07/2020
Delivery Units,Adults and Health,Other Agencies - Third Party P,0090275828,WESTMINSTER HOMECARE LTD,118.02,27/07/2020
Delivery Units,Adults and Health,Other Agencies - Third Party P,0090275829,WESTMINSTER HOMECARE LTD,206.57,27/07/2020
Delivery Units,Adults and Health,Other Agencies - Third Party P,0090275830,WESTMINSTER HOMECARE LTD,82.66,27/07/2020
Delivery Units,Adults and Health,Other Agencies - Third Party P,0090275831,WESTMINSTER HOMECARE LTD,353.41,27/07/2020
Delivery Units,Adults and Health,Other Agencies - Third Party P,0090275834,WESTMINSTER HOMECARE LTD,177.10,27/07/2020
Delivery Units,Adults and Health,Other Agencies - Third Party P,0090275836,WESTMINSTER HOMECARE LTD,96.98,27/07/2020
Delivery Units,Adults and Health,Other Agencies - Third Party P,0090275837,WESTMINSTER HOMECARE LTD,143.34,27/07/2020
Delivery Units,Adults and Health,Other Agencies - Third Party P,0090275838,WESTMINSTER HOMECARE LTD,42.15,27/07/2020
Delivery Units,Adults and Health,Other Agencies - Third Party P,0090275839,WESTMINSTER HOMECARE LTD,206.57,27/07/2020
Delivery Units,Adults and Health,Other Agencies - Third Party P,0090275840,WESTMINSTER HOMECARE LTD,244.51,27/07/2020
Delivery Units,Adults and Health,Other Agencies - Third Party P,0090275841,WESTMINSTER HOMECARE LTD,539.63,27/07/2020
Delivery Units,Adults and Health,Other Agencies - Third Party P,0090275842,WESTMINSTER HOMECARE LTD,117.53,27/07/2020
Delivery Units,Adults and Health,Other Agencies - Third Party P,0090275843,WESTMINSTER HOMECARE LTD,84.35,27/07/2020
Delivery Units,Adults and Health,Other Agencies - Third Party P,0090275845,WESTMINSTER HOMECARE LTD,8.43,27/07/2020
Delivery Units,Adults and Health,Other Agencies - Third Party P,0090275846,WESTMINSTER HOMECARE LTD,261.37,27/07/2020
Delivery Units,Adults and Health,Other Agencies - Third Party P,0090275847,WESTMINSTER HOMECARE LTD,265.58,27/07/2020
Delivery Units,Adults and Health,Other Agencies - Third Party P,0090275849,WESTMINSTER HOMECARE LTD,25.29,27/07/2020
Delivery Units,Adults and Health,Other Agencies - Third Party P,0090275850,WESTMINSTER HOMECARE LTD,59.01,27/07/2020
Delivery Units,Adults and Health,Other Agencies - Third Party P,0090275851,WESTMINSTER HOMECARE LTD,408.99,27/07/2020
Delivery Units,Adults and Health,Other Agencies - Third Party P,0090275853,WESTMINSTER HOMECARE LTD,88.55,27/07/2020
Delivery Units,Adults and Health,Other Agencies - Third Party P,0090275854,WESTMINSTER HOMECARE LTD,278.30,27/07/2020
Delivery Units,Adults and Health,Other Agencies - Third Party P,0090275855,WESTMINSTER HOMECARE LTD,63.25,27/07/2020
Delivery Units,Adults and Health,Other Agencies - Third Party P,0090275857,WESTMINSTER HOMECARE LTD,139.14,27/07/2020
Delivery Units,Adults and Health,Other Agencies - Third Party P,0090275859,WESTMINSTER HOMECARE LTD,497.44,27/07/2020
Delivery Units,Adults and Health,Other Agencies - Third Party P,0090275860,WESTMINSTER HOMECARE LTD,126.48,27/07/2020
Delivery Units,Adults and Health,Other Agencies - Third Party P,0090275862,WESTMINSTER HOMECARE LTD,151.22,27/07/2020
Delivery Units,Adults and Health,Other Agencies - Third Party P,0090275863,WESTMINSTER HOMECARE LTD,101.19,27/07/2020
Delivery Units,Adults and Health,Other Agencies - Third Party P,0090275864,WESTMINSTER HOMECARE LTD,143.34,27/07/2020
Delivery Units,Adults and Health,Other Agencies - Third Party P,0090275866,WESTMINSTER HOMECARE LTD,40.76,27/07/2020
Delivery Units,Adults and Health,Other Agencies - Third Party P,0090275867,WESTMINSTER HOMECARE LTD,118.02,27/07/2020
Delivery Units,Adults and Health,Other Agencies - Third Party P,0090275868,WESTMINSTER HOMECARE LTD,206.57,27/07/2020
Delivery Units,Adults and Health,Other Agencies - Third Party P,0090275869,WESTMINSTER HOMECARE LTD,78.45,27/07/2020
Delivery Units,Adults and Health,Other Agencies - Third Party P,0090275870,WESTMINSTER HOMECARE LTD,344.43,27/07/2020
Delivery Units,Adults and Health,Other Agencies - Third Party P,0090275873,WESTMINSTER HOMECARE LTD,177.10,27/07/2020
Delivery Units,Adults and Health,Other Agencies - Third Party P,0090275875,WESTMINSTER HOMECARE LTD,157.98,27/07/2020
Delivery Units,Adults and Health,Other Agencies - Third Party P,0090275876,WESTMINSTER HOMECARE LTD,147.56,27/07/2020
Delivery Units,Adults and Health,Other Agencies - Third Party P,0090275877,WESTMINSTER HOMECARE LTD,50.58,27/07/2020
Delivery Units,Adults and Health,Other Agencies - Third Party P,0090275878,WESTMINSTER HOMECARE LTD,206.57,27/07/2020
Delivery Units,Adults and Health,Other Agencies - Third Party P,0090275879,WESTMINSTER HOMECARE LTD,248.73,27/07/2020
Delivery Units,Adults and Health,Other Agencies - Third Party P,0090275880,WESTMINSTER HOMECARE LTD,573.37,27/07/2020
Delivery Units,Adults and Health,Other Agencies - Third Party P,0090275881,WESTMINSTER HOMECARE LTD,98.97,27/07/2020
Delivery Units,Adults and Health,Other Agencies - Third Party P,0090275882,WESTMINSTER HOMECARE LTD,84.35,27/07/2020
Delivery Units,Adults and Health,Other Agencies - Third Party P,0090275884,WESTMINSTER HOMECARE LTD,8.43,27/07/2020
Delivery Units,Adults and Health,Other Agencies - Third Party P,0090275885,WESTMINSTER HOMECARE LTD,265.58,27/07/2020
Delivery Units,Adults and Health,Other Agencies - Third Party P,0090275886,WESTMINSTER HOMECARE LTD,265.58,27/07/2020
Delivery Units,Adults and Health,Other Agencies - Third Party P,0090275888,WESTMINSTER HOMECARE LTD,25.29,27/07/2020
Delivery Units,Adults and Health,Other Agencies - Third Party P,0090275889,WESTMINSTER HOMECARE LTD,59.01,27/07/2020
Delivery Units,Adults and Health,Other Agencies - Third Party P,0090275890,WESTMINSTER HOMECARE LTD,413.21,27/07/2020
Delivery Units,Adults and Health,Other Agencies - Third Party P,0090275892,WESTMINSTER HOMECARE LTD,88.55,27/07/2020
Delivery Units,Adults and Health,Other Agencies - Third Party P,0090275893,WESTMINSTER HOMECARE LTD,274.08,27/07/2020
Delivery Units,Adults and Health,Other Agencies - Third Party P,0090275894,WESTMINSTER HOMECARE LTD,63.25,27/07/2020
Delivery Units,Adults and Health,Other Agencies - Third Party P,0090275896,WESTMINSTER HOMECARE LTD,147.56,27/07/2020
Delivery Units,Adults and Health,Other Agencies - Third Party P,0090275898,WESTMINSTER HOMECARE LTD,531.16,27/07/2020
Delivery Units,Adults and Health,Other Agencies - Third Party P,0090275899,WESTMINSTER HOMECARE LTD,143.34,27/07/2020
Delivery Units,Adults and Health,Other Agencies - Third Party P,0090275901,WESTMINSTER HOMECARE LTD,147.56,27/07/2020
Delivery Units,Adults and Health,Other Agencies - Third Party P,0090275902,WESTMINSTER HOMECARE LTD,105.40,27/07/2020
Delivery Units,Adults and Health,Other Agencies - Third Party P,0090275903,WESTMINSTER HOMECARE LTD,147.56,27/07/2020
Delivery Units,Adults and Health,Other Agencies - Third Party P,0090275905,WESTMINSTER HOMECARE LTD,32.62,27/07/2020
Delivery Units,Adults and Health,Other Agencies - Third Party P,0090275906,WESTMINSTER HOMECARE LTD,118.02,27/07/2020
Delivery Units,Adults and Health,Other Agencies - Third Party P,0090275907,WESTMINSTER HOMECARE LTD,206.57,27/07/2020
Delivery Units,Adults and Health,Other Agencies - Third Party P,0090275908,WESTMINSTER HOMECARE LTD,84.35,27/07/2020
Delivery Units,Adults and Health,Other Agencies - Third Party P,0090275909,WESTMINSTER HOMECARE LTD,352.58,27/07/2020
Delivery Units,Adults and Health,Other Agencies - Third Party P,0090275912,WESTMINSTER HOMECARE LTD,177.10,27/07/2020
Delivery Units,Adults and Health,Other Agencies - Third Party P,0090275914,WESTMINSTER HOMECARE LTD,172.32,27/07/2020
Delivery Units,Adults and Health,Other Agencies - Third Party P,0090275915,WESTMINSTER HOMECARE LTD,147.56,27/07/2020
Delivery Units,Adults and Health,Other Agencies - Third Party P,0090275916,WESTMINSTER HOMECARE LTD,50.58,27/07/2020
Delivery Units,Adults and Health,Other Agencies - Third Party P,0090275917,WESTMINSTER HOMECARE LTD,206.57,27/07/2020
Delivery Units,Adults and Health,Other Agencies - Third Party P,0090275918,WESTMINSTER HOMECARE LTD,265.58,27/07/2020
Delivery Units,Adults and Health,Other Agencies - Third Party P,0090275919,WESTMINSTER HOMECARE LTD,573.36,27/07/2020
Delivery Units,Adults and Health,Other Agencies - Third Party P,0090275920,WESTMINSTER HOMECARE LTD,59.03,27/07/2020
Delivery Units,Adults and Health,Other Agencies - Third Party P,0090275921,WESTMINSTER HOMECARE LTD,116.97,27/07/2020
Delivery Units,Adults and Health,Other Agencies - Third Party P,0090275922,WESTMINSTER HOMECARE LTD,84.35,27/07/2020
Delivery Units,Adults and Health,Other Agencies - Third Party P,0090275924,WESTMINSTER HOMECARE LTD,8.43,27/07/2020
Delivery Units,Adults and Health,Other Agencies - Third Party P,0090275925,WESTMINSTER HOMECARE LTD,265.58,27/07/2020
Delivery Units,Adults and Health,Other Agencies - Third Party P,0090275926,WESTMINSTER HOMECARE LTD,265.58,27/07/2020
Delivery Units,Adults and Health,Other Agencies - Third Party P,0090275928,WESTMINSTER HOMECARE LTD,25.29,27/07/2020
Delivery Units,Adults and Health,Other Agencies - Third Party P,0090275929,WESTMINSTER HOMECARE LTD,59.01,27/07/2020
Delivery Units,Adults and Health,Other Agencies - Third Party P,0090275930,WESTMINSTER HOMECARE LTD,396.34,27/07/2020
Delivery Units,Adults and Health,Other Agencies - Third Party P,0090275932,WESTMINSTER HOMECARE LTD,88.55,27/07/2020
Delivery Units,Adults and Health,Other Agencies - Third Party P,0090275933,WESTMINSTER HOMECARE LTD,274.08,27/07/2020
Delivery Units,Adults and Health,Other Agencies - Third Party P,0090275934,WESTMINSTER HOMECARE LTD,37.95,27/07/2020
Delivery Units,Adults and Health,Other Agencies - Third Party P,0090275936,WESTMINSTER HOMECARE LTD,147.56,27/07/2020
Delivery Units,Adults and Health,Other Agencies - Third Party P,0090275937,WESTMINSTER HOMECARE LTD,29.51,27/07/2020
Delivery Units,Adults and Health,Other Agencies - Third Party P,1001703302,ENARA COMMUNITY CARE,"2,527.00",09/07/2020
Delivery Units,Adults and Health,Other Agencies - Third Party P,1002617002,ENARA COMMUNITY CARE,"2,527.00",10/07/2020
Delivery Units,Adults and Health,Other Agencies - Third Party P,1002631302,ENARA COMMUNITY CARE,"2,527.00",09/07/2020
Delivery Units,Adults and Health,Other Agencies - Third Party P,1002798702,ENARA COMMUNITY CARE,"2,527.00",20/07/2020
Delivery Units,Adults and Health,Other Agencies - Third Party P,1002800102,ENARA COMMUNITY CARE,"2,527.00",20/07/2020
Delivery Units,Adults and Health,Other Agencies - Third Party P,0090272484,CAREWATCH (BARNET),120.26,14/07/2020
Delivery Units,Adults and Health,Other Agencies - Third Party P,0090272485,CAREWATCH (BARNET),120.26,14/07/2020
Delivery Units,Adults and Health,Other Agencies - Third Party P,0090272486,CAREWATCH (BARNET),120.26,14/07/2020
Delivery Units,Adults and Health,Other Agencies - Third Party P,0090272487,CAREWATCH (BARNET),90.20,14/07/2020
Delivery Units,Adults and Health,Other Agencies - Third Party P,0090272488,CAREWATCH (BARNET),240.52,14/07/2020
Delivery Units,Adults and Health,Other Agencies - Third Party P,0090272489,CAREWATCH (BARNET),240.52,14/07/2020
Delivery Units,Adults and Health,Other Agencies - Third Party P,0090272490,CAREWATCH (BARNET),240.52,14/07/2020
Delivery Units,Adults and Health,Other Agencies - Third Party P,0090272491,CAREWATCH (BARNET),240.52,14/07/2020
Delivery Units,Adults and Health,Other Agencies - Third Party P,0090272492,CAREWATCH (BARNET),601.30,14/07/2020
Delivery Units,Adults and Health,Other Agencies - Third Party P,0090272493,CAREWATCH (BARNET),601.30,14/07/2020
Delivery Units,Adults and Health,Other Agencies - Third Party P,0090272494,CAREWATCH (BARNET),601.30,14/07/2020
Delivery Units,Adults and Health,Other Agencies - Third Party P,0090272495,CAREWATCH (BARNET),601.30,14/07/2020
Delivery Units,Adults and Health,Other Agencies - Third Party P,0090272496,CAREWATCH (BARNET),51.54,14/07/2020
Delivery Units,Adults and Health,Other Agencies - Third Party P,0090272497,CAREWATCH (BARNET),51.54,14/07/2020
Delivery Units,Adults and Health,Other Agencies - Third Party P,0090272498,CAREWATCH (BARNET),51.56,14/07/2020
Delivery Units,Adults and Health,Other Agencies - Third Party P,0090272499,CAREWATCH (BARNET),17.18,14/07/2020
Delivery Units,Adults and Health,Other Agencies - Third Party P,0090272500,CAREWATCH (BARNET),150.36,14/07/2020
Delivery Units,Adults and Health,Other Agencies - Third Party P,0090272501,CAREWATCH (BARNET),150.36,14/07/2020
Delivery Units,Adults and Health,Other Agencies - Third Party P,0090272502,CAREWATCH (BARNET),150.33,14/07/2020
Delivery Units,Adults and Health,Other Agencies - Third Party P,0090272503,CAREWATCH (BARNET),150.33,14/07/2020
Delivery Units,Adults and Health,Other Agencies - Third Party P,0090272504,CAREWATCH (BARNET),712.97,14/07/2020
Delivery Units,Adults and Health,Other Agencies - Third Party P,0090272505,CAREWATCH (BARNET),712.97,14/07/2020
Delivery Units,Adults and Health,Other Agencies - Third Party P,0090272506,CAREWATCH (BARNET),712.97,14/07/2020
Delivery Units,Adults and Health,Other Agencies - Third Party P,0090272507,CAREWATCH (BARNET),682.90,14/07/2020
Delivery Units,Adults and Health,Other Agencies - Third Party P,0090272508,CAREWATCH (BARNET),257.73,14/07/2020
Delivery Units,Adults and Health,Other Agencies - Third Party P,0090272509,CAREWATCH (BARNET),257.73,14/07/2020
Delivery Units,Adults and Health,Other Agencies - Third Party P,0090272510,CAREWATCH (BARNET),257.73,14/07/2020
Delivery Units,Adults and Health,Other Agencies - Third Party P,0090272511,CAREWATCH (BARNET),257.73,14/07/2020
Delivery Units,Adults and Health,Other Agencies - Third Party P,0090272512,CAREWATCH (BARNET),180.39,14/07/2020
Delivery Units,Adults and Health,Other Agencies - Third Party P,0090272513,CAREWATCH (BARNET),180.39,14/07/2020
Delivery Units,Adults and Health,Other Agencies - Third Party P,0090272514,CAREWATCH (BARNET),180.39,14/07/2020
Delivery Units,Adults and Health,Other Agencies - Third Party P,0090272515,CAREWATCH (BARNET),180.39,14/07/2020
Delivery Units,Adults and Health,Other Agencies - Third Party P,0090272516,CAREWATCH (BARNET),253.44,14/07/2020
Delivery Units,Adults and Health,Other Agencies - Third Party P,0090272517,CAREWATCH (BARNET),98.80,14/07/2020
Delivery Units,Adults and Health,Other Agencies - Third Party P,0090272518,CAREWATCH (BARNET),133.15,14/07/2020
Delivery Units,Adults and Health,Other Agencies - Third Party P,0090272519,CAREWATCH (BARNET),73.02,14/07/2020
Delivery Units,Adults and Health,Other Agencies - Third Party P,0090272520,CAREWATCH (BARNET),116.00,14/07/2020
Delivery Units,Adults and Health,Other Agencies - Third Party P,0090272521,CAREWATCH (BARNET),116.00,14/07/2020
Delivery Units,Adults and Health,Other Agencies - Third Party P,0090272522,CAREWATCH (BARNET),116.00,14/07/2020
Delivery Units,Adults and Health,Other Agencies - Third Party P,0090272523,CAREWATCH (BARNET),116.00,14/07/2020
Delivery Units,Adults and Health,Other Agencies - Third Party P,0090272528,CAREWATCH (BARNET),300.65,14/07/2020
Delivery Units,Adults and Health,Other Agencies - Third Party P,0090272529,CAREWATCH (BARNET),300.65,14/07/2020
Delivery Units,Adults and Health,Other Agencies - Third Party P,0090272530,CAREWATCH (BARNET),300.65,14/07/2020
Delivery Units,Adults and Health,Other Agencies - Third Party P,0090272531,CAREWATCH (BARNET),300.65,14/07/2020
Delivery Units,Adults and Health,Other Agencies - Third Party P,0090272532,CAREWATCH (BARNET),176.10,14/07/2020
Delivery Units,Adults and Health,Other Agencies - Third Party P,0090272533,CAREWATCH (BARNET),180.39,14/07/2020
Delivery Units,Adults and Health,Other Agencies - Third Party P,0090272534,CAREWATCH (BARNET),176.10,14/07/2020
Delivery Units,Adults and Health,Other Agencies - Third Party P,0090272535,CAREWATCH (BARNET),180.39,14/07/2020
Delivery Units,Adults and Health,Other Agencies - Third Party P,0090272536,CAREWATCH (BARNET),223.34,14/07/2020
Delivery Units,Adults and Health,Other Agencies - Third Party P,0090272537,CAREWATCH (BARNET),68.72,14/07/2020
Delivery Units,Adults and Health,Other Agencies - Third Party P,0090272538,CAREWATCH (BARNET),115.97,14/07/2020
Delivery Units,Adults and Health,Other Agencies - Third Party P,0090272539,CAREWATCH (BARNET),85.90,14/07/2020
Delivery Units,Adults and Health,Other Agencies - Third Party P,0090272540,CAREWATCH (BARNET),240.52,14/07/2020
Delivery Units,Adults and Health,Other Agencies - Third Party P,0090272541,CAREWATCH (BARNET),240.52,14/07/2020
Delivery Units,Adults and Health,Other Agencies - Third Party P,0090272542,CAREWATCH (BARNET),227.64,14/07/2020
Delivery Units,Adults and Health,Other Agencies - Third Party P,0090272543,CAREWATCH (BARNET),231.93,14/07/2020
Delivery Units,Adults and Health,Other Agencies - Third Party P,0090272544,CAREWATCH (BARNET),270.62,14/07/2020
Delivery Units,Adults and Health,Other Agencies - Third Party P,0090272545,CAREWATCH (BARNET),270.62,14/07/2020
Delivery Units,Adults and Health,Other Agencies - Third Party P,0090272546,CAREWATCH (BARNET),270.62,14/07/2020
Delivery Units,Adults and Health,Other Agencies - Third Party P,0090272547,CAREWATCH (BARNET),270.62,14/07/2020
Delivery Units,Adults and Health,Other Agencies - Third Party P,0090272548,CAREWATCH (BARNET),201.87,14/07/2020
Delivery Units,Adults and Health,Other Agencies - Third Party P,0090272549,CAREWATCH (BARNET),197.57,14/07/2020
Delivery Units,Adults and Health,Other Agencies - Third Party P,0090272550,CAREWATCH (BARNET),201.87,14/07/2020
Delivery Units,Adults and Health,Other Agencies - Third Party P,0090272551,CAREWATCH (BARNET),197.57,14/07/2020
Delivery Units,Adults and Health,Other Agencies - Third Party P,0090272552,CAREWATCH (BARNET),90.20,14/07/2020
Delivery Units,Adults and Health,Other Agencies - Third Party P,0090272553,CAREWATCH (BARNET),64.42,14/07/2020
Delivery Units,Adults and Health,Other Agencies - Third Party P,0090272558,CAREWATCH (BARNET),133.15,14/07/2020
Delivery Units,Adults and Health,Other Agencies - Third Party P,0090272559,CAREWATCH (BARNET),137.44,14/07/2020
Delivery Units,Adults and Health,Other Agencies - Third Party P,0090272560,CAREWATCH (BARNET),137.44,14/07/2020
Delivery Units,Adults and Health,Other Agencies - Third Party P,0090272561,CAREWATCH (BARNET),137.44,14/07/2020
Delivery Units,Adults and Health,Other Agencies - Third Party P,0090272562,CAREWATCH (BARNET),90.20,14/07/2020
Delivery Units,Adults and Health,Other Agencies - Third Party P,0090272563,CAREWATCH (BARNET),90.20,14/07/2020
Delivery Units,Adults and Health,Other Agencies - Third Party P,0090272564,CAREWATCH (BARNET),90.20,14/07/2020
Delivery Units,Adults and Health,Other Agencies - Third Party P,0090272565,CAREWATCH (BARNET),90.20,14/07/2020
Delivery Units,Adults and Health,Other Agencies - Third Party P,0090272566,CAREWATCH (BARNET),34.36,14/07/2020
Delivery Units,Adults and Health,Other Agencies - Third Party P,0090272567,CAREWATCH (BARNET),17.18,14/07/2020
Delivery Units,Adults and Health,Other Agencies - Third Party P,0090272568,CAREWATCH (BARNET),17.18,14/07/2020
Delivery Units,Adults and Health,Other Agencies - Third Party P,0090272569,CAREWATCH (BARNET),17.18,14/07/2020
Delivery Units,Adults and Health,Other Agencies - Third Party P,0090272570,CAREWATCH (BARNET),17.18,14/07/2020
Delivery Units,Adults and Health,Other Agencies - Third Party P,0090272571,CAREWATCH (BARNET),17.18,14/07/2020
Delivery Units,Adults and Health,Other Agencies - Third Party P,0090272572,CAREWATCH (BARNET),304.98,14/07/2020
Delivery Units,Adults and Health,Other Agencies - Third Party P,0090272573,CAREWATCH (BARNET),304.94,14/07/2020
Delivery Units,Adults and Health,Other Agencies - Third Party P,0090272574,CAREWATCH (BARNET),304.98,14/07/2020
Delivery Units,Adults and Health,Other Agencies - Third Party P,0090272575,CAREWATCH (BARNET),304.98,14/07/2020
Delivery Units,Adults and Health,Other Agencies - Third Party P,0090272580,CAREWATCH (BARNET),206.16,14/07/2020
Delivery Units,Adults and Health,Other Agencies - Third Party P,0090272581,CAREWATCH (BARNET),227.64,14/07/2020
Delivery Units,Adults and Health,Other Agencies - Third Party P,0090272582,CAREWATCH (BARNET),223.34,14/07/2020
Delivery Units,Adults and Health,Other Agencies - Third Party P,0090272583,CAREWATCH (BARNET),223.34,14/07/2020
Delivery Units,Adults and Health,Other Agencies - Third Party P,0090272584,CAREWATCH (BARNET),201.86,14/07/2020
Delivery Units,Adults and Health,Other Agencies - Third Party P,0090272585,CAREWATCH (BARNET),184.69,14/07/2020
Delivery Units,Adults and Health,Other Agencies - Third Party P,0090272586,CAREWATCH (BARNET),180.39,14/07/2020
Delivery Units,Adults and Health,Other Agencies - Third Party P,0090272587,CAREWATCH (BARNET),188.98,14/07/2020
Delivery Units,Adults and Health,Other Agencies - Third Party P,0090272588,CAREWATCH (BARNET),330.75,14/07/2020
Delivery Units,Adults and Health,Other Agencies - Third Party P,0090272589,CAREWATCH (BARNET),330.75,14/07/2020
Delivery Units,Adults and Health,Other Agencies - Third Party P,0090272590,CAREWATCH (BARNET),330.75,14/07/2020
Delivery Units,Adults and Health,Other Agencies - Third Party P,0090272591,CAREWATCH (BARNET),180.39,14/07/2020
Delivery Units,Adults and Health,Other Agencies - Third Party P,0090272592,CAREWATCH (BARNET),244.85,14/07/2020
Delivery Units,Adults and Health,Other Agencies - Third Party P,0090272593,CAREWATCH (BARNET),244.85,14/07/2020
Delivery Units,Adults and Health,Other Agencies - Third Party P,0090272594,CAREWATCH (BARNET),244.85,14/07/2020
Delivery Units,Adults and Health,Other Agencies - Third Party P,0090272595,CAREWATCH (BARNET),244.85,14/07/2020
Delivery Units,Adults and Health,Other Agencies - Third Party P,0090272596,CAREWATCH (BARNET),150.36,14/07/2020
Delivery Units,Adults and Health,Other Agencies - Third Party P,0090272597,CAREWATCH (BARNET),146.03,14/07/2020
Delivery Units,Adults and Health,Other Agencies - Third Party P,0090272598,CAREWATCH (BARNET),150.36,14/07/2020
Delivery Units,Adults and Health,Other Agencies - Third Party P,0090272599,CAREWATCH (BARNET),150.36,14/07/2020
Delivery Units,Adults and Health,Other Agencies - Third Party P,0090272600,CAREWATCH (BARNET),330.75,14/07/2020
Delivery Units,Adults and Health,Other Agencies - Third Party P,0090272601,CAREWATCH (BARNET),330.75,14/07/2020
Delivery Units,Adults and Health,Other Agencies - Third Party P,0090272602,CAREWATCH (BARNET),330.75,14/07/2020
Delivery Units,Adults and Health,Other Agencies - Third Party P,0090272603,CAREWATCH (BARNET),330.72,14/07/2020
Delivery Units,Adults and Health,Other Agencies - Third Party P,0090272608,CAREWATCH (BARNET),38.66,14/07/2020
Delivery Units,Adults and Health,Other Agencies - Third Party P,0090272609,CAREWATCH (BARNET),51.54,14/07/2020
Delivery Units,Adults and Health,Other Agencies - Third Party P,0090272610,CAREWATCH (BARNET),12.88,14/07/2020
Delivery Units,Adults and Health,Other Agencies - Third Party P,0090272611,CAREWATCH (BARNET),270.62,14/07/2020
Delivery Units,Adults and Health,Other Agencies - Third Party P,0090272612,CAREWATCH (BARNET),270.62,14/07/2020
Delivery Units,Adults and Health,Other Agencies - Third Party P,0090272613,CAREWATCH (BARNET),262.00,14/07/2020
Delivery Units,Adults and Health,Other Agencies - Third Party P,0090272614,CAREWATCH (BARNET),266.29,14/07/2020
Delivery Units,Adults and Health,Other Agencies - Third Party P,0090272615,CAREWATCH (BARNET),120.26,14/07/2020
Delivery Units,Adults and Health,Other Agencies - Third Party P,0090272616,CAREWATCH (BARNET),120.26,14/07/2020
Delivery Units,Adults and Health,Other Agencies - Third Party P,0090272617,CAREWATCH (BARNET),120.26,14/07/2020
Delivery Units,Adults and Health,Other Agencies - Third Party P,0090272618,CAREWATCH (BARNET),120.26,14/07/2020
Delivery Units,Adults and Health,Other Agencies - Third Party P,0090272619,CAREWATCH (BARNET),90.23,14/07/2020
Delivery Units,Adults and Health,Other Agencies - Third Party P,0090272620,CAREWATCH (BARNET),90.23,14/07/2020
Delivery Units,Adults and Health,Other Agencies - Third Party P,0090272621,CAREWATCH (BARNET),90.20,14/07/2020
Delivery Units,Adults and Health,Other Agencies - Third Party P,0090272622,CAREWATCH (BARNET),90.20,14/07/2020
Delivery Units,Adults and Health,Other Agencies - Third Party P,0090272623,CAREWATCH (BARNET),193.27,14/07/2020
Delivery Units,Adults and Health,Other Agencies - Third Party P,0090272624,CAREWATCH (BARNET),197.57,14/07/2020
Delivery Units,Adults and Health,Other Agencies - Third Party P,0090272625,CAREWATCH (BARNET),184.68,14/07/2020
Delivery Units,Adults and Health,Other Agencies - Third Party P,0090272626,CAREWATCH (BARNET),197.57,14/07/2020
Delivery Units,Adults and Health,Other Agencies - Third Party P,0090272627,CAREWATCH (BARNET),330.71,14/07/2020
Delivery Units,Adults and Health,Other Agencies - Third Party P,0090272628,CAREWATCH (BARNET),330.72,14/07/2020
Delivery Units,Adults and Health,Other Agencies - Third Party P,0090272629,CAREWATCH (BARNET),330.75,14/07/2020
Delivery Units,Adults and Health,Other Agencies - Third Party P,0090272630,CAREWATCH (BARNET),330.75,14/07/2020
Delivery Units,Adults and Health,Other Agencies - Third Party P,0090272631,CAREWATCH (BARNET),300.72,14/07/2020
Delivery Units,Adults and Health,Other Agencies - Third Party P,0090272632,CAREWATCH (BARNET),300.72,14/07/2020
Delivery Units,Adults and Health,Other Agencies - Third Party P,0090272633,CAREWATCH (BARNET),300.72,14/07/2020
Delivery Units,Adults and Health,Other Agencies - Third Party P,0090272634,CAREWATCH (BARNET),300.72,14/07/2020
Delivery Units,Adults and Health,Other Agencies - Third Party P,0090272635,CAREWATCH (BARNET),25.78,14/07/2020
Delivery Units,Adults and Health,Other Agencies - Third Party P,0090272636,CAREWATCH (BARNET),25.77,14/07/2020
Delivery Units,Adults and Health,Other Agencies - Third Party P,0090272637,CAREWATCH (BARNET),25.77,14/07/2020
Delivery Units,Adults and Health,Other Agencies - Third Party P,0090272638,CAREWATCH (BARNET),25.77,14/07/2020
Delivery Units,Adults and Health,Other Agencies - Third Party P,0090272642,CAREWATCH (BARNET),240.52,14/07/2020
Delivery Units,Adults and Health,Other Agencies - Third Party P,0090272643,CAREWATCH (BARNET),240.52,14/07/2020
Delivery Units,Adults and Health,Other Agencies - Third Party P,0090272644,CAREWATCH (BARNET),240.52,14/07/2020
Delivery Units,Adults and Health,Other Agencies - Third Party P,0090272645,CAREWATCH (BARNET),240.52,14/07/2020
Delivery Units,Adults and Health,Other Agencies - Third Party P,0090272646,CAREWATCH (BARNET),120.26,14/07/2020
Delivery Units,Adults and Health,Other Agencies - Third Party P,0090272647,CAREWATCH (BARNET),107.38,14/07/2020
Delivery Units,Adults and Health,Other Agencies - Third Party P,0090272648,CAREWATCH (BARNET),103.08,14/07/2020
Delivery Units,Adults and Health,Other Agencies - Third Party P,0090272649,CAREWATCH (BARNET),120.26,14/07/2020
Delivery Units,Adults and Health,Other Agencies - Third Party P,0090272650,CAREWATCH (BARNET),270.62,14/07/2020
Delivery Units,Adults and Health,Other Agencies - Third Party P,0090272651,CAREWATCH (BARNET),270.62,14/07/2020
Delivery Units,Adults and Health,Other Agencies - Third Party P,0090272652,CAREWATCH (BARNET),270.62,14/07/2020
Delivery Units,Adults and Health,Other Agencies - Third Party P,0090272653,CAREWATCH (BARNET),270.62,14/07/2020
Delivery Units,Adults and Health,Other Agencies - Third Party P,0090272654,CAREWATCH (BARNET),51.54,14/07/2020
Delivery Units,Adults and Health,Other Agencies - Third Party P,0090272655,CAREWATCH (BARNET),51.54,14/07/2020
Delivery Units,Adults and Health,Other Agencies - Third Party P,0090272656,CAREWATCH (BARNET),12.88,14/07/2020
Delivery Units,Adults and Health,Other Agencies - Third Party P,0090272657,CAREWATCH (BARNET),210.49,14/07/2020
Delivery Units,Adults and Health,Other Agencies - Third Party P,0090272658,CAREWATCH (BARNET),210.49,14/07/2020
Delivery Units,Adults and Health,Other Agencies - Third Party P,0090272659,CAREWATCH (BARNET),120.26,14/07/2020
Delivery Units,Adults and Health,Other Agencies - Third Party P,0090272660,CAREWATCH (BARNET),120.26,14/07/2020
Delivery Units,Adults and Health,Other Agencies - Third Party P,0090272661,CAREWATCH (BARNET),51.54,14/07/2020
Delivery Units,Adults and Health,Other Agencies - Third Party P,0090272666,CAREWATCH (BARNET),25.77,14/07/2020
Delivery Units,Adults and Health,Other Agencies - Third Party P,0090272667,CAREWATCH (BARNET),25.77,14/07/2020
Delivery Units,Adults and Health,Other Agencies - Third Party P,0090272668,CAREWATCH (BARNET),25.77,14/07/2020
Delivery Units,Adults and Health,Other Agencies - Third Party P,0090272669,CAREWATCH (BARNET),25.77,14/07/2020
Delivery Units,Adults and Health,Other Agencies - Third Party P,0090272670,CAREWATCH (BARNET),107.38,14/07/2020
Delivery Units,Adults and Health,Other Agencies - Third Party P,0090272671,CAREWATCH (BARNET),103.08,14/07/2020
Delivery Units,Adults and Health,Other Agencies - Third Party P,0090272672,CAREWATCH (BARNET),120.26,14/07/2020
Delivery Units,Adults and Health,Other Agencies - Third Party P,0090272673,CAREWATCH (BARNET),120.26,14/07/2020
Delivery Units,Adults and Health,Other Agencies - Third Party P,0090272674,CAREWATCH (BARNET),210.49,14/07/2020
Delivery Units,Adults and Health,Other Agencies - Third Party P,0090272675,CAREWATCH (BARNET),210.49,14/07/2020
Delivery Units,Adults and Health,Other Agencies - Third Party P,0090272676,CAREWATCH (BARNET),210.49,14/07/2020
Delivery Units,Adults and Health,Other Agencies - Third Party P,0090272677,CAREWATCH (BARNET),210.49,14/07/2020
Delivery Units,Adults and Health,Other Agencies - Third Party P,0090272678,CAREWATCH (BARNET),249.11,14/07/2020
Delivery Units,Adults and Health,Other Agencies - Third Party P,0090272679,CAREWATCH (BARNET),150.33,14/07/2020
Delivery Units,Adults and Health,Other Agencies - Third Party P,0090272680,CAREWATCH (BARNET),103.08,14/07/2020
Delivery Units,Adults and Health,Other Agencies - Third Party P,0090272681,CAREWATCH (BARNET),107.38,14/07/2020
Delivery Units,Adults and Health,Other Agencies - Third Party P,0090272682,CAREWATCH (BARNET),85.90,14/07/2020
Delivery Units,Adults and Health,Other Agencies - Third Party P,0090272683,CAREWATCH (BARNET),85.90,14/07/2020
Delivery Units,Adults and Health,Other Agencies - Third Party P,0090272684,CAREWATCH (BARNET),120.26,14/07/2020
Delivery Units,Adults and Health,Other Agencies - Third Party P,0090272685,CAREWATCH (BARNET),120.26,14/07/2020
Delivery Units,Adults and Health,Other Agencies - Third Party P,0090272686,CAREWATCH (BARNET),150.33,14/07/2020
Delivery Units,Adults and Health,Other Agencies - Third Party P,0090272687,CAREWATCH (BARNET),133.15,14/07/2020
Delivery Units,Adults and Health,Other Agencies - Third Party P,0090272688,CAREWATCH (BARNET),68.72,14/07/2020
Delivery Units,Adults and Health,Other Agencies - Third Party P,0090272689,CAREWATCH (BARNET),154.64,14/07/2020
Delivery Units,Adults and Health,Other Agencies - Third Party P,0090272690,CAREWATCH (BARNET),270.59,14/07/2020
Delivery Units,Adults and Health,Other Agencies - Third Party P,0090272691,CAREWATCH (BARNET),262.03,14/07/2020
Delivery Units,Adults and Health,Other Agencies - Third Party P,0090272692,CAREWATCH (BARNET),262.03,14/07/2020
Delivery Units,Adults and Health,Other Agencies - Third Party P,0090272693,CAREWATCH (BARNET),262.03,14/07/2020
Delivery Units,Adults and Health,Other Agencies - Third Party P,0090272694,CAREWATCH (BARNET),468.16,14/07/2020
Delivery Units,Adults and Health,Other Agencies - Third Party P,0090272695,CAREWATCH (BARNET),468.26,14/07/2020
Delivery Units,Adults and Health,Other Agencies - Third Party P,0090272696,CAREWATCH (BARNET),90.20,14/07/2020
Delivery Units,Adults and Health,Other Agencies - Third Party P,0090272697,CAREWATCH (BARNET),64.42,14/07/2020
Delivery Units,Adults and Health,Other Agencies - Third Party P,0090272702,CAREWATCH (BARNET),300.65,14/07/2020
Delivery Units,Adults and Health,Other Agencies - Third Party P,0090272703,CAREWATCH (BARNET),296.36,14/07/2020
Delivery Units,Adults and Health,Other Agencies - Third Party P,0090272704,CAREWATCH (BARNET),292.06,14/07/2020
Delivery Units,Adults and Health,Other Agencies - Third Party P,0090272705,CAREWATCH (BARNET),279.17,14/07/2020
Delivery Units,Adults and Health,Other Agencies - Third Party P,0090272706,CAREWATCH (BARNET),210.49,14/07/2020
Delivery Units,Adults and Health,Other Agencies - Third Party P,0090272707,CAREWATCH (BARNET),210.49,14/07/2020
Delivery Units,Adults and Health,Other Agencies - Third Party P,0090272708,CAREWATCH (BARNET),210.49,14/07/2020
Delivery Units,Adults and Health,Other Agencies - Third Party P,0090272709,CAREWATCH (BARNET),210.49,14/07/2020
Delivery Units,Adults and Health,Other Agencies - Third Party P,0090272710,CAREWATCH (BARNET),287.80,14/07/2020
Delivery Units,Adults and Health,Other Agencies - Third Party P,0090272711,CAREWATCH (BARNET),287.80,14/07/2020
Delivery Units,Adults and Health,Other Agencies - Third Party P,0090272712,CAREWATCH (BARNET),287.80,14/07/2020
Delivery Units,Adults and Health,Other Agencies - Third Party P,0090272713,CAREWATCH (BARNET),287.80,14/07/2020
Delivery Units,Adults and Health,Other Agencies - Third Party P,0090272714,CAREWATCH (BARNET),283.47,14/07/2020
Delivery Units,Adults and Health,Other Agencies - Third Party P,0090272715,CAREWATCH (BARNET),274.88,14/07/2020
Delivery Units,Adults and Health,Other Agencies - Third Party P,0090272716,CAREWATCH (BARNET),292.06,14/07/2020
Delivery Units,Adults and Health,Other Agencies - Third Party P,0090272717,CAREWATCH (BARNET),279.17,14/07/2020
Delivery Units,Adults and Health,Other Agencies - Third Party P,0090272718,CAREWATCH (BARNET),240.52,14/07/2020
Delivery Units,Adults and Health,Other Agencies - Third Party P,0090272719,CAREWATCH (BARNET),206.16,14/07/2020
Delivery Units,Adults and Health,Other Agencies - Third Party P,0090272720,CAREWATCH (BARNET),206.16,14/07/2020
Delivery Units,Adults and Health,Other Agencies - Third Party P,0090272721,CAREWATCH (BARNET),206.16,14/07/2020
Delivery Units,Adults and Health,Other Agencies - Third Party P,0090272722,CAREWATCH (BARNET),60.13,14/07/2020
Delivery Units,Adults and Health,Other Agencies - Third Party P,0090272723,CAREWATCH (BARNET),60.13,14/07/2020
Delivery Units,Adults and Health,Other Agencies - Third Party P,0090272724,CAREWATCH (BARNET),60.13,14/07/2020
Delivery Units,Adults and Health,Other Agencies - Third Party P,0090272725,CAREWATCH (BARNET),60.13,14/07/2020
Delivery Units,Adults and Health,Other Agencies - Third Party P,0090272726,CAREWATCH (BARNET),262.00,14/07/2020
Delivery Units,Adults and Health,Other Agencies - Third Party P,0090272727,CAREWATCH (BARNET),42.95,14/07/2020
Delivery Units,Adults and Health,Other Agencies - Third Party P,0090272728,CAREWATCH (BARNET),210.49,14/07/2020
Delivery Units,Adults and Health,Other Agencies - Third Party P,0090272729,CAREWATCH (BARNET),210.49,14/07/2020
Delivery Units,Adults and Health,Other Agencies - Third Party P,0090272730,CAREWATCH (BARNET),210.49,14/07/2020
Delivery Units,Adults and Health,Other Agencies - Third Party P,0090272731,CAREWATCH (BARNET),210.49,14/07/2020
Delivery Units,Adults and Health,Other Agencies - Third Party P,0090272732,CAREWATCH (BARNET),60.13,14/07/2020
Delivery Units,Adults and Health,Other Agencies - Third Party P,0090272733,CAREWATCH (BARNET),60.13,14/07/2020
Delivery Units,Adults and Health,Other Agencies - Third Party P,0090272734,CAREWATCH (BARNET),60.13,14/07/2020
Delivery Units,Adults and Health,Other Agencies - Third Party P,0090272735,CAREWATCH (BARNET),60.13,14/07/2020
Delivery Units,Adults and Health,Other Agencies - Third Party P,0090272736,CAREWATCH (BARNET),240.59,14/07/2020
Delivery Units,Adults and Health,Other Agencies - Third Party P,0090272737,CAREWATCH (BARNET),240.59,14/07/2020
Delivery Units,Adults and Health,Other Agencies - Third Party P,0090272738,CAREWATCH (BARNET),240.59,14/07/2020
Delivery Units,Adults and Health,Other Agencies - Third Party P,0090272739,CAREWATCH (BARNET),240.59,14/07/2020
Delivery Units,Adults and Health,Other Agencies - Third Party P,0090272744,CAREWATCH (BARNET),25.77,14/07/2020
Delivery Units,Adults and Health,Other Agencies - Third Party P,0090272745,CAREWATCH (BARNET),60.13,14/07/2020
Delivery Units,Adults and Health,Other Agencies - Third Party P,0090272746,CAREWATCH (BARNET),81.60,14/07/2020
Delivery Units,Adults and Health,Other Agencies - Third Party P,0090272747,CAREWATCH (BARNET),85.90,14/07/2020
Delivery Units,Adults and Health,Other Agencies - Third Party P,0090272748,CAREWATCH (BARNET),90.20,14/07/2020
Delivery Units,Adults and Health,Other Agencies - Third Party P,0090272749,CAREWATCH (BARNET),150.36,14/07/2020
Delivery Units,Adults and Health,Other Agencies - Third Party P,0090272750,CAREWATCH (BARNET),150.36,14/07/2020
Delivery Units,Adults and Health,Other Agencies - Third Party P,0090272751,CAREWATCH (BARNET),150.36,14/07/2020
Delivery Units,Adults and Health,Other Agencies - Third Party P,0090272752,CAREWATCH (BARNET),150.36,14/07/2020
Delivery Units,Adults and Health,Other Agencies - Third Party P,0090272760,CAREWATCH (BARNET),429.62,14/07/2020
Delivery Units,Adults and Health,Other Agencies - Third Party P,0090272761,CAREWATCH (BARNET),240.58,14/07/2020
Delivery Units,Adults and Health,Other Agencies - Third Party P,0090268953,DYNAMIC PEOPLE LTD,140.79,01/07/2020
Delivery Units,Adults and Health,Other Agencies - Third Party P,0090268954,DYNAMIC PEOPLE LTD,88.50,01/07/2020
Delivery Units,Adults and Health,Other Agencies - Third Party P,0090268955,DYNAMIC PEOPLE LTD,72.40,01/07/2020
Delivery Units,Adults and Health,Other Agencies - Third Party P,0090268956,DYNAMIC PEOPLE LTD,60.34,01/07/2020
Delivery Units,Adults and Health,Other Agencies - Third Party P,0090268958,DYNAMIC PEOPLE LTD,80.45,01/07/2020
Delivery Units,Adults and Health,Other Agencies - Third Party P,0090268959,DYNAMIC PEOPLE LTD,84.47,01/07/2020
Delivery Units,Adults and Health,Other Agencies - Third Party P,0090268960,DYNAMIC PEOPLE LTD,128.72,01/07/2020
Delivery Units,Adults and Health,Other Agencies - Third Party P,0090268961,DYNAMIC PEOPLE LTD,88.50,01/07/2020
Delivery Units,Adults and Health,Other Agencies - Third Party P,0090268962,DYNAMIC PEOPLE LTD,197.10,01/07/2020
Delivery Units,Adults and Health,Other Agencies - Third Party P,0090268963,DYNAMIC PEOPLE LTD,281.58,01/07/2020
Delivery Units,Adults and Health,Other Agencies - Third Party P,0090268964,DYNAMIC PEOPLE LTD,144.81,01/07/2020
Delivery Units,Adults and Health,Other Agencies - Third Party P,0090268966,DYNAMIC PEOPLE LTD,96.54,01/07/2020
Delivery Units,Adults and Health,Other Agencies - Third Party P,0090268968,DYNAMIC PEOPLE LTD,253.42,01/07/2020
Delivery Units,Adults and Health,Other Agencies - Third Party P,0090268969,DYNAMIC PEOPLE LTD,253.42,01/07/2020
Delivery Units,Adults and Health,Other Agencies - Third Party P,0090268970,DYNAMIC PEOPLE LTD,140.79,01/07/2020
Delivery Units,Adults and Health,Other Agencies - Third Party P,0090268971,DYNAMIC PEOPLE LTD,140.79,01/07/2020
Delivery Units,Adults and Health,Other Agencies - Third Party P,0090268974,DYNAMIC PEOPLE LTD,52.29,01/07/2020
Delivery Units,Adults and Health,Other Agencies - Third Party P,0090268975,DYNAMIC PEOPLE LTD,140.79,01/07/2020
Delivery Units,Adults and Health,Other Agencies - Third Party P,0090268976,DYNAMIC PEOPLE LTD,394.20,01/07/2020
Delivery Units,Adults and Health,Other Agencies - Third Party P,0090268978,DYNAMIC PEOPLE LTD,32.18,01/07/2020
Delivery Units,Adults and Health,Other Agencies - Third Party P,0090268979,DYNAMIC PEOPLE LTD,24.14,01/07/2020
Delivery Units,Adults and Health,Other Agencies - Third Party P,0090268981,DYNAMIC PEOPLE LTD,124.70,01/07/2020
Delivery Units,Adults and Health,Other Agencies - Third Party P,0090268982,DYNAMIC PEOPLE LTD,124.70,01/07/2020
Delivery Units,Adults and Health,Other Agencies - Third Party P,0090268983,DYNAMIC PEOPLE LTD,241.35,01/07/2020
Delivery Units,Adults and Health,Other Agencies - Third Party P,0090268984,DYNAMIC PEOPLE LTD,60.34,01/07/2020
Delivery Units,Adults and Health,Other Agencies - Third Party P,0090268985,DYNAMIC PEOPLE LTD,96.54,01/07/2020
Delivery Units,Adults and Health,Other Agencies - Third Party P,0090268986,DYNAMIC PEOPLE LTD,253.42,01/07/2020
Delivery Units,Adults and Health,Other Agencies - Third Party P,0090268987,DYNAMIC PEOPLE LTD,462.59,01/07/2020
Delivery Units,Adults and Health,Other Agencies - Third Party P,0090268988,DYNAMIC PEOPLE LTD,297.67,01/07/2020
Delivery Units,Adults and Health,Other Agencies - Third Party P,0090268990,DYNAMIC PEOPLE LTD,337.89,01/07/2020
Delivery Units,Adults and Health,Other Agencies - Third Party P,0090268991,DYNAMIC PEOPLE LTD,96.54,01/07/2020
Delivery Units,Adults and Health,Other Agencies - Third Party P,0090268994,DYNAMIC PEOPLE LTD,225.26,01/07/2020
Delivery Units,Adults and Health,Other Agencies - Third Party P,0090268996,DYNAMIC PEOPLE LTD,253.42,01/07/2020
Delivery Units,Adults and Health,Other Agencies - Third Party P,0090268997,DYNAMIC PEOPLE LTD,144.81,01/07/2020
Delivery Units,Adults and Health,Other Agencies - Third Party P,0090268998,DYNAMIC PEOPLE LTD,84.47,01/07/2020
Delivery Units,Adults and Health,Other Agencies - Third Party P,0090268999,DYNAMIC PEOPLE LTD,309.73,01/07/2020
Delivery Units,Adults and Health,Other Agencies - Third Party P,0090269000,DYNAMIC PEOPLE LTD,84.47,01/07/2020
Delivery Units,Adults and Health,Other Agencies - Third Party P,0090269001,DYNAMIC PEOPLE LTD,217.22,01/07/2020
Delivery Units,Adults and Health,Other Agencies - Third Party P,0090269002,DYNAMIC PEOPLE LTD,56.32,01/07/2020
Delivery Units,Adults and Health,Other Agencies - Third Party P,0090269003,DYNAMIC PEOPLE LTD,140.79,01/07/2020
Delivery Units,Adults and Health,Other Agencies - Third Party P,0090269007,DYNAMIC PEOPLE LTD,36.20,01/07/2020
Delivery Units,Adults and Health,Other Agencies - Third Party P,0090269009,DYNAMIC PEOPLE LTD,84.47,01/07/2020
Delivery Units,Adults and Health,Other Agencies - Third Party P,0090269011,DYNAMIC PEOPLE LTD,84.47,01/07/2020
Delivery Units,Adults and Health,Other Agencies - Third Party P,0090269013,DYNAMIC PEOPLE LTD,112.63,01/07/2020
Delivery Units,Adults and Health,Other Agencies - Third Party P,0090269014,DYNAMIC PEOPLE LTD,168.94,01/07/2020
Delivery Units,Adults and Health,Other Agencies - Third Party P,0090269015,DYNAMIC PEOPLE LTD,84.47,01/07/2020
Delivery Units,Adults and Health,Other Agencies - Third Party P,0090269016,DYNAMIC PEOPLE LTD,241.35,01/07/2020
Delivery Units,Adults and Health,Other Agencies - Third Party P,0090269017,DYNAMIC PEOPLE LTD,16.09,01/07/2020
Delivery Units,Adults and Health,Other Agencies - Third Party P,0090269018,DYNAMIC PEOPLE LTD,309.73,01/07/2020
Delivery Units,Adults and Health,Other Agencies - Third Party P,0090269020,DYNAMIC PEOPLE LTD,120.68,01/07/2020
Delivery Units,Adults and Health,Other Agencies - Third Party P,0090269021,DYNAMIC PEOPLE LTD,273.53,01/07/2020
Delivery Units,Adults and Health,Other Agencies - Third Party P,0090269023,DYNAMIC PEOPLE LTD,32.18,01/07/2020
Delivery Units,Adults and Health,Other Agencies - Third Party P,0090269024,DYNAMIC PEOPLE LTD,301.69,01/07/2020
Delivery Units,Adults and Health,Other Agencies - Third Party P,0090269025,DYNAMIC PEOPLE LTD,84.47,01/07/2020
Delivery Units,Adults and Health,Other Agencies - Third Party P,0090269026,DYNAMIC PEOPLE LTD,96.54,01/07/2020
Delivery Units,Adults and Health,Other Agencies - Third Party P,0090269028,DYNAMIC PEOPLE LTD,390.18,01/07/2020
Delivery Units,Adults and Health,Other Agencies - Third Party P,0090269029,DYNAMIC PEOPLE LTD,140.79,01/07/2020
Delivery Units,Adults and Health,Other Agencies - Third Party P,0090269030,DYNAMIC PEOPLE LTD,128.72,01/07/2020
Delivery Units,Adults and Health,Other Agencies - Third Party P,0090269031,DYNAMIC PEOPLE LTD,156.88,01/07/2020
Delivery Units,Adults and Health,Other Agencies - Third Party P,0090269032,DYNAMIC PEOPLE LTD,309.73,01/07/2020
Delivery Units,Adults and Health,Other Agencies - Third Party P,0090269033,DYNAMIC PEOPLE LTD,128.72,01/07/2020
Delivery Units,Adults and Health,Other Agencies - Third Party P,0090269035,DYNAMIC PEOPLE LTD,337.89,01/07/2020
Delivery Units,Adults and Health,Other Agencies - Third Party P,0090269036,DYNAMIC PEOPLE LTD,253.42,01/07/2020
Delivery Units,Adults and Health,Other Agencies - Third Party P,0090269037,DYNAMIC PEOPLE LTD,241.35,01/07/2020
Delivery Units,Adults and Health,Other Agencies - Third Party P,0090269038,DYNAMIC PEOPLE LTD,156.88,01/07/2020
Delivery Units,Adults and Health,Other Agencies - Third Party P,0090269039,DYNAMIC PEOPLE LTD,225.26,01/07/2020
Delivery Units,Adults and Health,Other Agencies - Third Party P,0090269040,DYNAMIC PEOPLE LTD,120.68,01/07/2020
Delivery Units,Adults and Health,Other Agencies - Third Party P,0090269041,DYNAMIC PEOPLE LTD,32.18,01/07/2020
Delivery Units,Adults and Health,Other Agencies - Third Party P,0090269043,DYNAMIC PEOPLE LTD,124.70,01/07/2020
Delivery Units,Adults and Health,Other Agencies - Third Party P,0090269045,DYNAMIC PEOPLE LTD,48.27,01/07/2020
Delivery Units,Adults and Health,Other Agencies - Third Party P,0090269046,DYNAMIC PEOPLE LTD,281.58,01/07/2020
Delivery Units,Adults and Health,Other Agencies - Third Party P,0090269047,DYNAMIC PEOPLE LTD,176.99,01/07/2020
Delivery Units,Adults and Health,Other Agencies - Third Party P,0090269048,DYNAMIC PEOPLE LTD,48.27,01/07/2020
Delivery Units,Adults and Health,Other Agencies - Third Party P,0090269049,DYNAMIC PEOPLE LTD,297.67,01/07/2020
Delivery Units,Adults and Health,Other Agencies - Third Party P,0090269050,DYNAMIC PEOPLE LTD,269.51,01/07/2020
Delivery Units,Adults and Health,Other Agencies - Third Party P,0090269051,DYNAMIC PEOPLE LTD,213.19,01/07/2020
Delivery Units,Adults and Health,Other Agencies - Third Party P,0090269052,DYNAMIC PEOPLE LTD,253.42,01/07/2020
Delivery Units,Adults and Health,Other Agencies - Third Party P,0090269053,DYNAMIC PEOPLE LTD,112.63,01/07/2020
Delivery Units,Adults and Health,Other Agencies - Third Party P,0090269054,DYNAMIC PEOPLE LTD,84.47,01/07/2020
Delivery Units,Adults and Health,Other Agencies - Third Party P,0090269056,DYNAMIC PEOPLE LTD,80.45,01/07/2020
Delivery Units,Adults and Health,Other Agencies - Third Party P,0090269058,DYNAMIC PEOPLE LTD,225.26,01/07/2020
Delivery Units,Adults and Health,Other Agencies - Third Party P,0090269059,DYNAMIC PEOPLE LTD,88.50,01/07/2020
Delivery Units,Adults and Health,Other Agencies - Third Party P,0090269060,DYNAMIC PEOPLE LTD,84.47,01/07/2020
Delivery Units,Adults and Health,Other Agencies - Third Party P,0090269061,DYNAMIC PEOPLE LTD,24.14,01/07/2020
Delivery Units,Adults and Health,Other Agencies - Third Party P,0090269062,DYNAMIC PEOPLE LTD,84.47,01/07/2020
Delivery Units,Adults and Health,Other Agencies - Third Party P,0090269063,DYNAMIC PEOPLE LTD,112.63,01/07/2020
Delivery Units,Adults and Health,Other Agencies - Third Party P,0090269065,DYNAMIC PEOPLE LTD,450.52,01/07/2020
Delivery Units,Adults and Health,Other Agencies - Third Party P,0090269067,DYNAMIC PEOPLE LTD,84.47,01/07/2020
Delivery Units,Adults and Health,Other Agencies - Third Party P,0090270125,DYNAMIC PEOPLE LTD,150.84,07/07/2020
Delivery Units,Adults and Health,Other Agencies - Third Party P,0090270126,DYNAMIC PEOPLE LTD,140.79,07/07/2020
Delivery Units,Adults and Health,Other Agencies - Third Party P,0090270127,DYNAMIC PEOPLE LTD,80.45,07/07/2020
Delivery Units,Adults and Health,Other Agencies - Third Party P,0090270128,DYNAMIC PEOPLE LTD,72.40,07/07/2020
Delivery Units,Adults and Health,Other Agencies - Third Party P,0090270129,DYNAMIC PEOPLE LTD,66.37,07/07/2020
Delivery Units,Adults and Health,Other Agencies - Third Party P,0090270130,DYNAMIC PEOPLE LTD,60.34,07/07/2020
Delivery Units,Adults and Health,Other Agencies - Third Party P,0090270131,DYNAMIC PEOPLE LTD,88.50,07/07/2020
Delivery Units,Adults and Health,Other Agencies - Third Party P,0090270132,DYNAMIC PEOPLE LTD,136.76,07/07/2020
Delivery Units,Adults and Health,Other Agencies - Third Party P,0090270133,DYNAMIC PEOPLE LTD,90.51,07/07/2020
Delivery Units,Adults and Health,Other Agencies - Third Party P,0090270134,DYNAMIC PEOPLE LTD,84.47,07/07/2020
Delivery Units,Adults and Health,Other Agencies - Third Party P,0090270135,DYNAMIC PEOPLE LTD,136.76,07/07/2020
Delivery Units,Adults and Health,Other Agencies - Third Party P,0090270136,DYNAMIC PEOPLE LTD,128.72,07/07/2020
Delivery Units,Adults and Health,Other Agencies - Third Party P,0090270137,DYNAMIC PEOPLE LTD,92.52,07/07/2020
Delivery Units,Adults and Health,Other Agencies - Third Party P,0090270138,DYNAMIC PEOPLE LTD,88.50,07/07/2020
Delivery Units,Adults and Health,Other Agencies - Third Party P,0090270139,DYNAMIC PEOPLE LTD,211.18,07/07/2020
Delivery Units,Adults and Health,Other Agencies - Third Party P,0090270140,DYNAMIC PEOPLE LTD,197.10,07/07/2020
Delivery Units,Adults and Health,Other Agencies - Third Party P,0090270141,DYNAMIC PEOPLE LTD,301.69,07/07/2020
Delivery Units,Adults and Health,Other Agencies - Third Party P,0090270142,DYNAMIC PEOPLE LTD,281.58,07/07/2020
Delivery Units,Adults and Health,Other Agencies - Third Party P,0090270143,DYNAMIC PEOPLE LTD,181.01,07/07/2020
Delivery Units,Adults and Health,Other Agencies - Third Party P,0090270144,DYNAMIC PEOPLE LTD,168.94,07/07/2020
Delivery Units,Adults and Health,Other Agencies - Third Party P,0090270147,DYNAMIC PEOPLE LTD,104.58,07/07/2020
Delivery Units,Adults and Health,Other Agencies - Third Party P,0090270148,DYNAMIC PEOPLE LTD,80.45,07/07/2020
Delivery Units,Adults and Health,Other Agencies - Third Party P,0090270151,DYNAMIC PEOPLE LTD,66.37,07/07/2020
Delivery Units,Adults and Health,Other Agencies - Third Party P,0090270152,DYNAMIC PEOPLE LTD,271.52,07/07/2020
Delivery Units,Adults and Health,Other Agencies - Third Party P,0090270153,DYNAMIC PEOPLE LTD,253.42,07/07/2020
Delivery Units,Adults and Health,Other Agencies - Third Party P,0090270154,DYNAMIC PEOPLE LTD,150.84,07/07/2020
Delivery Units,Adults and Health,Other Agencies - Third Party P,0090270155,DYNAMIC PEOPLE LTD,140.79,07/07/2020
Delivery Units,Adults and Health,Other Agencies - Third Party P,0090270156,DYNAMIC PEOPLE LTD,150.84,07/07/2020
Delivery Units,Adults and Health,Other Agencies - Third Party P,0090270157,DYNAMIC PEOPLE LTD,140.79,07/07/2020
Delivery Units,Adults and Health,Other Agencies - Third Party P,0090270162,DYNAMIC PEOPLE LTD,52.29,07/07/2020
Delivery Units,Adults and Health,Other Agencies - Third Party P,0090270163,DYNAMIC PEOPLE LTD,52.29,07/07/2020
Delivery Units,Adults and Health,Other Agencies - Third Party P,0090270164,DYNAMIC PEOPLE LTD,150.84,07/07/2020
Delivery Units,Adults and Health,Other Agencies - Third Party P,0090270165,DYNAMIC PEOPLE LTD,422.36,07/07/2020
Delivery Units,Adults and Health,Other Agencies - Third Party P,0090270166,DYNAMIC PEOPLE LTD,394.20,07/07/2020
Delivery Units,Adults and Health,Other Agencies - Third Party P,0090270169,DYNAMIC PEOPLE LTD,32.18,07/07/2020
Delivery Units,Adults and Health,Other Agencies - Third Party P,0090270170,DYNAMIC PEOPLE LTD,32.18,07/07/2020
Delivery Units,Adults and Health,Other Agencies - Third Party P,0090270173,DYNAMIC PEOPLE LTD,132.74,07/07/2020
Delivery Units,Adults and Health,Other Agencies - Third Party P,0090270174,DYNAMIC PEOPLE LTD,134.75,07/07/2020
Delivery Units,Adults and Health,Other Agencies - Third Party P,0090270175,DYNAMIC PEOPLE LTD,124.70,07/07/2020
Delivery Units,Adults and Health,Other Agencies - Third Party P,0090270176,DYNAMIC PEOPLE LTD,261.46,07/07/2020
